Department,Entity,PaidDate,Expense Type,Expense Area,SupplierName,voucher_no,amount
DFID,DFID,16/06/2011,Training - Course Fees,DFID Sierra Leone and Liberia,NULL,300022753,562.67
DFID,DFID,03/06/2011,Technical and Advisory Services,Stabilisation Unit,THE CROWN AGENTS FOR OVERSEA GOVERNMENTS AND ADMINISTRATIONS LIMITED,400149692,956.28
DFID,DFID,03/06/2011,Technical and Advisory Services,Stabilisation Unit,THE CROWN AGENTS FOR OVERSEA GOVERNMENTS AND ADMINISTRATIONS LIMITED,400151446,"11,785.20"
DFID,DFID,03/06/2011,Technical and Advisory Services,Stabilisation Unit,THE CROWN AGENTS FOR OVERSEA GOVERNMENTS AND ADMINISTRATIONS LIMITED,400151446,"5,614.80"
DFID,DFID,13/06/2011,Technical and Advisory Services,Stabilisation Unit,THE CROWN AGENTS FOR OVERSEA GOVERNMENTS AND ADMINISTRATIONS LIMITED,400152523,"14,976.00"
DFID,DFID,13/06/2011,Technical and Advisory Services,Stabilisation Unit,THE CROWN AGENTS FOR OVERSEA GOVERNMENTS AND ADMINISTRATIONS LIMITED,400152532,"15,264.00"
DFID,DFID,06/06/2011,Technical and Advisory Services,Stabilisation Unit,THE CROWN AGENTS FOR OVERSEA GOVERNMENTS AND ADMINISTRATIONS LIMITED,400152535,"37,968.00"
DFID,DFID,20/06/2011,Technical and Advisory Services,DFID Sierra Leone and Liberia,BRITISH COUNCIL,400154244,"292,137.46"
DFID,DFID,09/06/2011,Consultancy Services,Overseas Territories Department,OXFORD POLICY MANAGEMENT,400154250,"8,846.00"
DFID,DFID,06/06/2011,Technical and Advisory Services,DFID Sierra Leone and Liberia,OXFORD POLICY MANAGEMENT,400155677,"15,017.41"
DFID,DFID,10/06/2011,Training - Travel & Subsistence,DFID Uganda,Intercontinental Nairobi,400155811,512.98
DFID,DFID,09/06/2011,Mobile telephones & accessories,Africa Regional Department,Celtel Kenya Ltd,400155852,78.08
DFID,DFID,09/06/2011,Mobile telephones & accessories,DFID Kenya,Celtel Kenya Ltd,400155852,160.35
DFID,DFID,09/06/2011,Mobile telephones & accessories,DFID Kenya,Celtel Kenya Ltd,400155852,855.49
DFID,DFID,09/06/2011,Mobile telephones & accessories,DFID Kenya,Celtel Kenya Ltd,400155852,13.94
DFID,DFID,09/06/2011,Mobile telephones & accessories,DFID Kenya,Celtel Kenya Ltd,400155852,128
DFID,DFID,09/06/2011,Mobile telephones & accessories,DFID Kenya,Celtel Kenya Ltd,400155852,405.2
DFID,DFID,09/06/2011,Mobile telephones & accessories,Africa Regional Department,Celtel Kenya Ltd,400155852,20.9
DFID,DFID,09/06/2011,Mobile telephones & accessories,Africa Regional Department,Celtel Kenya Ltd,400155852,105.83
DFID,DFID,09/06/2011,Mobile telephones & accessories,Information Systems Department,Celtel Kenya Ltd,400155852,46.13
DFID,DFID,09/06/2011,Telephone Usage & services,DFID Sudan,Celtel Kenya Ltd,400155852,1.2
DFID,DFID,09/06/2011,Mobile telephones & accessories,DFID Kenya,Celtel Kenya Ltd,400155852,171.24
DFID,DFID,09/06/2011,Technical and Advisory Services,"Conflict, Humanitarian and Security Department",THE CROWN AGENTS FOR OVERSEA GOVERNMENTS AND ADMINISTRATIONS LIMITED,400156194,"24,000.00"
DFID,DFID,09/06/2011,Technical and Advisory Services,"Conflict, Humanitarian and Security Department",THE CROWN AGENTS FOR OVERSEA GOVERNMENTS AND ADMINISTRATIONS LIMITED,400156194,"5,000.00"
DFID,DFID,29/06/2011,Technical and Advisory Services,DFID Sierra Leone and Liberia,ADAM SMITH INTERNATIONAL  LTD,400156937,"7,074.92"
DFID,DFID,29/06/2011,Technical and Advisory Services,DFID Sierra Leone and Liberia,ADAM SMITH INTERNATIONAL  LTD,400156937,"8,929.53"
DFID,DFID,24/06/2011,Technical and Advisory Services,Stabilisation Unit,recipient withheld,400157671,"6,510.00"
DFID,DFID,13/06/2011,Technical and Advisory Services,Stabilisation Unit,THE CROWN AGENTS FOR OVERSEA GOVERNMENTS AND ADMINISTRATIONS LIMITED,400158016,"14,400.00"
DFID,DFID,13/06/2011,Technical and Advisory Services,Stabilisation Unit,THE CROWN AGENTS FOR OVERSEA GOVERNMENTS AND ADMINISTRATIONS LIMITED,400158023,"7,560.00"
DFID,DFID,14/06/2011,Technical and Advisory Services,"Conflict, Humanitarian and Security Department",THE CROWN AGENTS FOR OVERSEA GOVERNMENTS AND ADMINISTRATIONS LIMITED,400158048,"9,963.60"
DFID,DFID,20/06/2011,Consultancy Services,Stabilisation Unit,THE CROWN AGENTS FOR OVERSEA GOVERNMENTS AND ADMINISTRATIONS LIMITED,400158287,"6,846.00"
DFID,DFID,29/06/2011,Technical and Advisory Services,DFID Sierra Leone and Liberia,TRIPLE LINE CONSULTING LTD,400158303,"4,267.42"
DFID,DFID,13/06/2011,Technical and Advisory Services,Stabilisation Unit,THE CROWN AGENTS FOR OVERSEA GOVERNMENTS AND ADMINISTRATIONS LIMITED,400158307,"13,631.00"
DFID,DFID,29/06/2011,Technical and Advisory Services,DFID Sierra Leone and Liberia,TRIPLE LINE CONSULTING LTD,400158334,"21,753.68"
DFID,DFID,15/06/2011,Technical and Advisory Services,Research and Evidence,LEHIGH UNIVERSITY,400158397,"11,632.90"
DFID,DFID,02/06/2011,Computer software maintenance,Information Systems Department,Rufus Leonard Ltd,400158528,"2,010.00"
DFID,DFID,13/06/2011,Technical and Advisory Services,Stabilisation Unit,THE CROWN AGENTS FOR OVERSEA GOVERNMENTS AND ADMINISTRATIONS LIMITED,400158556,"1,438.80"
DFID,DFID,13/06/2011,Technical and Advisory Services,Stabilisation Unit,THE CROWN AGENTS FOR OVERSEA GOVERNMENTS AND ADMINISTRATIONS LIMITED,400158556,"1,751.29"
DFID,DFID,13/06/2011,Technical and Advisory Services,Stabilisation Unit,THE CROWN AGENTS FOR OVERSEA GOVERNMENTS AND ADMINISTRATIONS LIMITED,400158571,"1,309.26"
DFID,DFID,13/06/2011,Technical and Advisory Services,Stabilisation Unit,THE CROWN AGENTS FOR OVERSEA GOVERNMENTS AND ADMINISTRATIONS LIMITED,400158571,"1,312.89"
DFID,DFID,06/06/2011,Technical and Advisory Services,Stabilisation Unit,THE CROWN AGENTS FOR OVERSEA GOVERNMENTS AND ADMINISTRATIONS LIMITED,400158574,11.24
DFID,DFID,06/06/2011,Technical and Advisory Services,Stabilisation Unit,THE CROWN AGENTS FOR OVERSEA GOVERNMENTS AND ADMINISTRATIONS LIMITED,400158574,"2,953.32"
DFID,DFID,02/06/2011,Technical and Advisory Services,Stabilisation Unit,THE CROWN AGENTS FOR OVERSEA GOVERNMENTS AND ADMINISTRATIONS LIMITED,400158666,"5,851.64"
DFID,DFID,02/06/2011,Technical and Advisory Services,Stabilisation Unit,THE CROWN AGENTS FOR OVERSEA GOVERNMENTS AND ADMINISTRATIONS LIMITED,400158666,"2,548.28"
DFID,DFID,02/06/2011,Removal & waste disposal services,Palace Street,BYWATERS,400158768,606
DFID,DFID,02/06/2011,Removal & waste disposal services,Palace Street,BYWATERS,400158770,"1,332.00"
DFID,DFID,02/06/2011,Removal & waste disposal services,Palace Street,BYWATERS,400158771,"1,170.10"
DFID,DFID,17/06/2011,Technical and Advisory Services,DFID Uganda,COFFEY INTERNATIONAL DEVELOPMENT LTD,400159057,"35,513.58"
DFID,DFID,06/06/2011,Training Providers/Facilitation Services,DFID Afghanistan,Supplier Name Witheld,400159073,"4,617.00"
DFID,DFID,06/06/2011,Training Providers/Facilitation Services,DFID Afghanistan,Supplier Name Witheld,400159073,-1.2
DFID,DFID,24/06/2011,Technical and Advisory Services,Stabilisation Unit,THE CROWN AGENTS FOR OVERSEA GOVERNMENTS AND ADMINISTRATIONS LIMITED,400159137,"11,193.60"
DFID,DFID,24/06/2011,Technical and Advisory Services,Stabilisation Unit,THE CROWN AGENTS FOR OVERSEA GOVERNMENTS AND ADMINISTRATIONS LIMITED,400159137,"6,406.40"
DFID,DFID,16/06/2011,Technical and Advisory Services,Stabilisation Unit,THE CROWN AGENTS FOR OVERSEA GOVERNMENTS AND ADMINISTRATIONS LIMITED,400159144,"9,516.00"
DFID,DFID,16/06/2011,Technical and Advisory Services,Stabilisation Unit,THE CROWN AGENTS FOR OVERSEA GOVERNMENTS AND ADMINISTRATIONS LIMITED,400159144,84
DFID,DFID,13/06/2011,Technical and Advisory Services,Stabilisation Unit,THE CROWN AGENTS FOR OVERSEA GOVERNMENTS AND ADMINISTRATIONS LIMITED,400159147,"8,796.00"
DFID,DFID,13/06/2011,Technical and Advisory Services,Stabilisation Unit,THE CROWN AGENTS FOR OVERSEA GOVERNMENTS AND ADMINISTRATIONS LIMITED,400159147,4
DFID,DFID,16/06/2011,Technical and Advisory Services,Stabilisation Unit,THE CROWN AGENTS FOR OVERSEA GOVERNMENTS AND ADMINISTRATIONS LIMITED,400159149,"5,040.00"
DFID,DFID,16/06/2011,Technical and Advisory Services,Stabilisation Unit,THE CROWN AGENTS FOR OVERSEA GOVERNMENTS AND ADMINISTRATIONS LIMITED,400159149,"13,860.00"
DFID,DFID,10/06/2011,Technical and Advisory Services,Stabilisation Unit,THE CROWN AGENTS FOR OVERSEA GOVERNMENTS AND ADMINISTRATIONS LIMITED,400159175,"9,662.40"
DFID,DFID,10/06/2011,Technical and Advisory Services,Stabilisation Unit,THE CROWN AGENTS FOR OVERSEA GOVERNMENTS AND ADMINISTRATIONS LIMITED,400159175,"4,837.60"
DFID,DFID,06/06/2011,Technical and Advisory Services,Stabilisation Unit,THE CROWN AGENTS FOR OVERSEA GOVERNMENTS AND ADMINISTRATIONS LIMITED,400159187,26.25
DFID,DFID,06/06/2011,Technical and Advisory Services,Stabilisation Unit,THE CROWN AGENTS FOR OVERSEA GOVERNMENTS AND ADMINISTRATIONS LIMITED,400159187,"6,550.04"
DFID,DFID,09/06/2011,Technical and Advisory Services,Stabilisation Unit,THE CROWN AGENTS FOR OVERSEA GOVERNMENTS AND ADMINISTRATIONS LIMITED,400159193,"12,228.00"
DFID,DFID,09/06/2011,Technical and Advisory Services,Stabilisation Unit,THE CROWN AGENTS FOR OVERSEA GOVERNMENTS AND ADMINISTRATIONS LIMITED,400159193,"4,372.00"
DFID,DFID,06/06/2011,Technical and Advisory Services,Stabilisation Unit,THE CROWN AGENTS FOR OVERSEA GOVERNMENTS AND ADMINISTRATIONS LIMITED,400159196,"10,137.60"
DFID,DFID,06/06/2011,Technical and Advisory Services,Stabilisation Unit,THE CROWN AGENTS FOR OVERSEA GOVERNMENTS AND ADMINISTRATIONS LIMITED,400159196,"5,262.40"
DFID,DFID,09/06/2011,Technical and Advisory Services,Stabilisation Unit,THE CROWN AGENTS FOR OVERSEA GOVERNMENTS AND ADMINISTRATIONS LIMITED,400159197,"9,729.60"
DFID,DFID,09/06/2011,Technical and Advisory Services,Stabilisation Unit,THE CROWN AGENTS FOR OVERSEA GOVERNMENTS AND ADMINISTRATIONS LIMITED,400159197,"4,170.40"
DFID,DFID,16/06/2011,Technical and Advisory Services,Stabilisation Unit,Crown Agents Bank,400159294,"8,894.77"
DFID,DFID,16/06/2011,Technical and Advisory Services,Stabilisation Unit,Crown Agents Bank,400159294,"3,605.23"
DFID,DFID,10/06/2011,Technical and Advisory Services,Stabilisation Unit,THE CROWN AGENTS FOR OVERSEA GOVERNMENTS AND ADMINISTRATIONS LIMITED,400159298,"8,551.20"
DFID,DFID,10/06/2011,Technical and Advisory Services,Stabilisation Unit,THE CROWN AGENTS FOR OVERSEA GOVERNMENTS AND ADMINISTRATIONS LIMITED,400159298,"3,448.80"
DFID,DFID,06/06/2011,Technical and Advisory Services,Stabilisation Unit,THE CROWN AGENTS FOR OVERSEA GOVERNMENTS AND ADMINISTRATIONS LIMITED,400159299,"9,852.48"
DFID,DFID,06/06/2011,Technical and Advisory Services,Stabilisation Unit,THE CROWN AGENTS FOR OVERSEA GOVERNMENTS AND ADMINISTRATIONS LIMITED,400159299,"3,947.52"
DFID,DFID,10/06/2011,Technical and Advisory Services,Stabilisation Unit,THE CROWN AGENTS FOR OVERSEA GOVERNMENTS AND ADMINISTRATIONS LIMITED,400159300,"8,928.00"
DFID,DFID,10/06/2011,Technical and Advisory Services,Stabilisation Unit,THE CROWN AGENTS FOR OVERSEA GOVERNMENTS AND ADMINISTRATIONS LIMITED,400159300,"3,972.00"
DFID,DFID,13/06/2011,Aid Programme - Humanitarian Material Relief Assistance and Services,"Conflict, Humanitarian and Security Department",CARE INTERNATIONAL,400159345,"136,159.00"
DFID,DFID,29/06/2011,Technical and Advisory Services,DFID Pakistan,THE CROWN AGENTS FOR OVERSEA GOVERNMENTS AND ADMINISTRATIONS LIMITED,400159391,"39,871.86"
DFID,DFID,09/06/2011,Technical and Advisory Services,Stabilisation Unit,THE CROWN AGENTS FOR OVERSEA GOVERNMENTS AND ADMINISTRATIONS LIMITED,400159404,"8,760.00"
DFID,DFID,09/06/2011,Technical and Advisory Services,Stabilisation Unit,THE CROWN AGENTS FOR OVERSEA GOVERNMENTS AND ADMINISTRATIONS LIMITED,400159404,"3,740.00"
DFID,DFID,24/06/2011,Technical and Advisory Services,Stabilisation Unit,THE CROWN AGENTS FOR OVERSEA GOVERNMENTS AND ADMINISTRATIONS LIMITED,400159473,"8,658.00"
DFID,DFID,24/06/2011,Technical and Advisory Services,Stabilisation Unit,THE CROWN AGENTS FOR OVERSEA GOVERNMENTS AND ADMINISTRATIONS LIMITED,400159473,42
DFID,DFID,06/06/2011,Technical and Advisory Services,Stabilisation Unit,THE CROWN AGENTS FOR OVERSEA GOVERNMENTS AND ADMINISTRATIONS LIMITED,400159477,"9,828.00"
DFID,DFID,06/06/2011,Technical and Advisory Services,Stabilisation Unit,THE CROWN AGENTS FOR OVERSEA GOVERNMENTS AND ADMINISTRATIONS LIMITED,400159477,"4,972.00"
DFID,DFID,06/06/2011,Technical and Advisory Services,Stabilisation Unit,THE CROWN AGENTS FOR OVERSEA GOVERNMENTS AND ADMINISTRATIONS LIMITED,400159480,"8,760.00"
DFID,DFID,06/06/2011,Technical and Advisory Services,Stabilisation Unit,THE CROWN AGENTS FOR OVERSEA GOVERNMENTS AND ADMINISTRATIONS LIMITED,400159480,"4,440.00"
DFID,DFID,09/06/2011,Technical and Advisory Services,Stabilisation Unit,THE CROWN AGENTS FOR OVERSEA GOVERNMENTS AND ADMINISTRATIONS LIMITED,400159497,"9,741.60"
DFID,DFID,09/06/2011,Technical and Advisory Services,Stabilisation Unit,THE CROWN AGENTS FOR OVERSEA GOVERNMENTS AND ADMINISTRATIONS LIMITED,400159497,"4,558.40"
DFID,DFID,06/06/2011,Technical and Advisory Services,Stabilisation Unit,THE CROWN AGENTS FOR OVERSEA GOVERNMENTS AND ADMINISTRATIONS LIMITED,400159501,"9,900.00"
DFID,DFID,06/06/2011,Technical and Advisory Services,Stabilisation Unit,THE CROWN AGENTS FOR OVERSEA GOVERNMENTS AND ADMINISTRATIONS LIMITED,400159501,"4,500.00"
DFID,DFID,06/06/2011,Technical and Advisory Services,Stabilisation Unit,THE CROWN AGENTS FOR OVERSEA GOVERNMENTS AND ADMINISTRATIONS LIMITED,400159503,"8,894.40"
DFID,DFID,06/06/2011,Technical and Advisory Services,Stabilisation Unit,THE CROWN AGENTS FOR OVERSEA GOVERNMENTS AND ADMINISTRATIONS LIMITED,400159503,"4,405.60"
DFID,DFID,10/06/2011,Technical and Advisory Services,Stabilisation Unit,THE CROWN AGENTS FOR OVERSEA GOVERNMENTS AND ADMINISTRATIONS LIMITED,400159508,"9,138.00"
DFID,DFID,10/06/2011,Technical and Advisory Services,Stabilisation Unit,THE CROWN AGENTS FOR OVERSEA GOVERNMENTS AND ADMINISTRATIONS LIMITED,400159508,"5,062.00"
DFID,DFID,01/06/2011,Entertainment & Hospitality,HR DFID Initiatives,recipient withheld,400159648,808.46
DFID,DFID,03/06/2011,Technical and Advisory Services,HR Operations,PRICEWATERHOUSECOOPERS,400159654,"59,182.20"
DFID,DFID,07/06/2011,Technical and Advisory Services,Stabilisation Unit,COFFEY INTERNATIONAL DEVELOPMENT LTD,400159707,"24,114.57"
DFID,DFID,01/06/2011,Legal costs,Internal Audit Department,TREASURY SOLICITORS CASH ACC,400159855,95
DFID,DFID,01/06/2011,Legal costs,Overseas Territories Department,TREASURY SOLICITORS CASH ACC,400159855,637.5
DFID,DFID,01/06/2011,Legal costs,Procurement Department,TREASURY SOLICITORS CASH ACC,400159855,200
DFID,DFID,01/06/2011,Legal costs,Civil Society Department,TREASURY SOLICITORS CASH ACC,400159855,513
DFID,DFID,01/06/2011,Legal costs,IFI  Admin,TREASURY SOLICITORS CASH ACC,400159855,645
DFID,DFID,01/06/2011,Legal costs,DFID Rwanda,TREASURY SOLICITORS CASH ACC,400159855,100
DFID,DFID,24/06/2011,Technical and Advisory Services,Stabilisation Unit,COFFEY INTERNATIONAL DEVELOPMENT LTD,400159887,"41,248.42"
DFID,DFID,07/06/2011,Other travel costs,Stabilisation Unit,THE CROWN AGENTS FOR OVERSEA GOVERNMENTS AND ADMINISTRATIONS LIMITED,400159897,"1,298.48"
DFID,DFID,07/06/2011,Other travel costs,Stabilisation Unit,THE CROWN AGENTS FOR OVERSEA GOVERNMENTS AND ADMINISTRATIONS LIMITED,400159897,"2,085.94"
DFID,DFID,07/06/2011,Other travel costs,Stabilisation Unit,THE CROWN AGENTS FOR OVERSEA GOVERNMENTS AND ADMINISTRATIONS LIMITED,400159897,"6,650.00"
DFID,DFID,02/06/2011,Technical and Advisory Services,DFID Libya,THE CROWN AGENTS FOR OVERSEA GOVERNMENTS AND ADMINISTRATIONS LIMITED,400159898,"202,767.03"
DFID,DFID,03/06/2011,Technical and Advisory Services,DFID Afghanistan,Supplier Name Witheld,400160027,"3,935.29"
DFID,DFID,01/06/2011,Aid Programme - Accountable Grant Payments,DFID Malawi,Malawi Economic Justice Network ,400160037,"36,675.23"
DFID,DFID,01/06/2011,Aid Programme - Accountable Grant Payments,DFID Malawi,CHREAA,400160125,"16,335.66"
DFID,DFID,01/06/2011,Technical and Advisory Services,Africa Regional Department,HTSPE LTD,400160140,"2,580.53"
DFID,DFID,01/06/2011,Technical and Advisory Services,Climate and Environment Group,ANDREW ROBY,400160258,"24,590.00"
DFID,DFID,03/06/2011,Technical and Advisory Services,DFID DRC,THE CROWN AGENTS FOR OVERSEA GOVERNMENTS AND ADMINISTRATIONS LIMITED,400160298,11.71
DFID,DFID,03/06/2011,Technical and Advisory Services,DFID DRC,THE CROWN AGENTS FOR OVERSEA GOVERNMENTS AND ADMINISTRATIONS LIMITED,400160298,"17,210.45"
DFID,DFID,22/06/2011,Technical and Advisory Services,Research and Evidence,PRICEWATERHOUSECOOPERS,400160306,"344,367.00"
DFID,DFID,22/06/2011,Technical and Advisory Services,Research and Evidence,PRICEWATERHOUSECOOPERS,400160312,"237,220.90"
DFID,DFID,22/06/2011,Technical and Advisory Services,Climate and Environment Group,PRICEWATERHOUSECOOPERS,400160312,"158,147.26"
DFID,DFID,02/06/2011,Aid Programme - Humanitarian Material Relief Assistance and Services,"Conflict, Humanitarian and Security Department",IOM,400160313,"1,500,000.00"
DFID,DFID,06/06/2011,Technical and Advisory Services,DFID Afghanistan,Supplier Name Witheld,400160384,"3,365.45"
DFID,DFID,01/06/2011,Technical and Advisory Services,DFID Ethiopia,KEVIN LILLIS,400160386,"22,570.25"
DFID,DFID,02/06/2011,Technical and Advisory Services,DFID India,Best Practices Foundation,400160442,"35,408.16"
DFID,DFID,01/06/2011,Data Network - land lines,Information Systems Department,Sify Technologies Ltd,400160537,"1,784.34"
DFID,DFID,03/06/2011,Technical and Advisory Services,Stabilisation Unit,HOME OFFICE,400160586,"7,041.92"
DFID,DFID,01/06/2011,"Conferences, Seminars & Meeting/Event Resource",DFID Nigeria,Chelsea Hotel Abuja,400160617,"3,519.90"
DFID,DFID,02/06/2011,Technical and Advisory Services,Research and Evidence,EDINBURGH RESEARCH AND INNOVATION LT,400160632,"31,744.46"
DFID,DFID,28/06/2011,Training Providers/Facilitation Services,Stabilisation Unit,COFFEY INTERNATIONAL DEVELOPMENT LTD,400160655,"43,204.00"
DFID,DFID,28/06/2011,Training Providers/Facilitation Services,Stabilisation Unit,COFFEY INTERNATIONAL DEVELOPMENT LTD,400160655,"14,401.00"
DFID,DFID,03/06/2011,Research & Development costs,Research and Evidence,Research into Results Ltd,400160661,"159,210.60"
DFID,DFID,15/06/2011,Hardware -Laptop PCs,DFID Kenya,Bytech Engineering Limited,400160673,227.82
DFID,DFID,15/06/2011,Hardware -Laptop PCs,DFID Kenya,Bytech Engineering Limited,400160673,341.74
DFID,DFID,15/06/2011,Hardware -Laptop PCs,DFID Kenya,Bytech Engineering Limited,400160673,569.56
DFID,DFID,07/06/2011,Technical and Advisory Services,Stabilisation Unit,ROBERTSON COOPER LTD,400160687,"3,600.00"
DFID,DFID,01/06/2011,Technical and Advisory Services,Stabilisation Unit,THE CROWN AGENTS FOR OVERSEA GOVERNMENTS AND ADMINISTRATIONS LIMITED,400160696,651.51
DFID,DFID,01/06/2011,Technical and Advisory Services,Stabilisation Unit,THE CROWN AGENTS FOR OVERSEA GOVERNMENTS AND ADMINISTRATIONS LIMITED,400160696,936.4
DFID,DFID,10/06/2011,Aid Programme - Accountable Grant Payments,Climate and Environment Group,YAYASAN KEANEKARAGMAN HAYATI INDONESIA - KEHATI,400160705,"484,299.00"
DFID,DFID,03/06/2011,Aid Programme - Accountable Grant Payments,DFID Southern Africa,FinMark  TRUST,400160743,"102,586.24"
DFID,DFID,09/06/2011,Aid Programme - Joint programme contribution,DFID Bangladesh,UNICEF NY,400160750,"4,550,317.78"
DFID,DFID,09/06/2011,Aid Programme - Joint programme contribution,DFID Bangladesh,UNICEF NY,400160750,"1,516,771.98"
DFID,DFID,02/06/2011,Other travel costs,Research and Evidence,recipient withheld,400160767,20
DFID,DFID,02/06/2011,Rail Transport,Research and Evidence,recipient withheld,400160767,20
DFID,DFID,02/06/2011,Air fares,Research and Evidence,recipient withheld,400160767,239.66
DFID,DFID,02/06/2011,Hotels - Accommodation only,Research and Evidence,recipient withheld,400160767,270
DFID,DFID,14/06/2011,Aid Programme - Humanitarian Material Relief Assistance and Services,"Conflict, Humanitarian and Security Department",OXFAM,400160789,"1,754,285.00"
DFID,DFID,23/06/2011,Technical and Advisory Services,Research and Evidence,Richard Thomas,400160798,"10,547.45"
DFID,DFID,22/06/2011,Technical and Advisory Services,Climate and Environment Group,Indufor,400160799,"19,784.19"
DFID,DFID,22/06/2011,Technical and Advisory Services,Climate and Environment Group,Indufor,400160799,"7,376.94"
DFID,DFID,01/06/2011,other information & communication technologies,DFID Sierra Leone and Liberia,Airtel (SL) Ltd,400160830,504.65
DFID,DFID,01/06/2011,other information & communication technologies,DFID Sierra Leone and Liberia,Airtel (SL) Ltd,400160830,504.65
DFID,DFID,01/06/2011,other information & communication technologies,DFID Sierra Leone and Liberia,Airtel (SL) Ltd,400160846,520.27
DFID,DFID,01/06/2011,other information & communication technologies,DFID Sierra Leone and Liberia,Airtel (SL) Ltd,400160846,520.27
DFID,DFID,01/06/2011,other information & communication technologies,DFID Sierra Leone and Liberia,Airtel (SL) Ltd,400160847,520.27
DFID,DFID,01/06/2011,other information & communication technologies,DFID Sierra Leone and Liberia,Airtel (SL) Ltd,400160847,520.27
DFID,DFID,01/06/2011,Technical and Advisory Services,Overseas Territories Department,THE CROWN AGENTS FOR OVERSEA GOVERNMENTS AND ADMINISTRATIONS LIMITED,400160850,"74,568.54"
DFID,DFID,03/06/2011,Aid Programme - Accountable Grant Payments,DFID Somalia,World Vision Somalia,400160876,"8,230.78"
DFID,DFID,02/06/2011,Air fares,DFID Nigeria,Olorunshola Emmanuel,400160993,130.49
DFID,DFID,02/06/2011,Air fares,DFID Nigeria,Olorunshola Emmanuel,400160993,106.76
DFID,DFID,02/06/2011,Technical and Advisory Services,DFID Nigeria,Olorunshola Emmanuel,400160993,375.66
DFID,DFID,02/06/2011,Air fares,DFID Nigeria,Chelsea Hotel Abuja,400161005,106.19
DFID,DFID,02/06/2011,Air fares,DFID Nigeria,Chelsea Hotel Abuja,400161005,212.38
DFID,DFID,02/06/2011,Air fares,DFID Nigeria,Chelsea Hotel Abuja,400161005,212.38
DFID,DFID,02/06/2011,Air fares,DFID Nigeria,Chelsea Hotel Abuja,400161005,552.74
DFID,DFID,02/06/2011,Air fares,Africa Regional Department,Chelsea Hotel Abuja,400161005,530.95
DFID,DFID,08/06/2011,Air fares,DFID Nigeria,Olorunshola Emmanuel,400161012,58.66
DFID,DFID,08/06/2011,Air fares,DFID Nigeria,Olorunshola Emmanuel,400161012,469.28
DFID,DFID,02/06/2011,Subscriptions,IFI  Admin,THE STATIONERY OFFICE LIMITED,400161028,468
DFID,DFID,02/06/2011,Subscriptions,IFI  Admin,THE STATIONERY OFFICE LIMITED,400161028,480
DFID,DFID,09/06/2011,Technical and Advisory Services,"Conflict, Humanitarian and Security Department",THE CROWN AGENTS FOR OVERSEA GOVERNMENTS AND ADMINISTRATIONS LIMITED,400161042,"24,000.00"
DFID,DFID,09/06/2011,Technical and Advisory Services,"Conflict, Humanitarian and Security Department",THE CROWN AGENTS FOR OVERSEA GOVERNMENTS AND ADMINISTRATIONS LIMITED,400161042,"5,000.00"
DFID,DFID,01/06/2011,Technical and Advisory Services,Governance and Social Development Group,UNIVERSITY OF OXFORD,400161045,"18,000.00"
DFID,DFID,28/06/2011,Technical and Advisory Services,DFID Sierra Leone and Liberia,ADAM SMITH INTERNATIONAL  LTD,400161073,"12,378.20"
DFID,DFID,10/06/2011,Training - Travel & Subsistence,DFID Zambia,Intercontinental Nairobi,400161183,612.72
DFID,DFID,13/06/2011,Air fares,DFID Kenya,BCD Travel (USD),400161191,593.46
DFID,DFID,02/06/2011,Air fares,DFID Afghanistan,Supplier Name Witheld,400161204,"1,311.22"
DFID,DFID,02/06/2011,Air fares,DFID Afghanistan,Supplier Name Witheld,400161204,156.64
DFID,DFID,02/06/2011,Air fares,Asia Directors Office,Aryan Tourist and Travel Agency,400161204,324.38
DFID,DFID,02/06/2011,Air fares,DFID Afghanistan,Supplier Name Witheld,400161204,"2,022.63"
DFID,DFID,02/06/2011,Rail Transport,HR DFID Initiatives,Supplier Name Witheld,400161240,43.5
DFID,DFID,02/06/2011,Air fares,HR DFID Initiatives,Supplier Name Witheld,400161240,"1,751.74"
DFID,DFID,02/06/2011,Taxi costs,HR DFID Initiatives,Supplier Name Witheld,400161240,14.5
DFID,DFID,02/06/2011,Other passenger transport,HR DFID Initiatives,Supplier Name Witheld,400161240,35.3
DFID,DFID,02/06/2011,Air fares,HR DFID Initiatives,Supplier Name Witheld,400161245,698.39
DFID,DFID,02/06/2011,Hotels - Accommodation only,HR DFID Initiatives,Supplier Name Witheld,400161245,84.96
DFID,DFID,15/06/2011,Technical and Advisory Services,Stabilisation Unit,COFFEY INTERNATIONAL DEVELOPMENT LTD,400161247,"7,808.91"
DFID,DFID,24/06/2011,Technical and Advisory Services,Stabilisation Unit,COFFEY INTERNATIONAL DEVELOPMENT LTD,400161266,"29,135.40"
DFID,DFID,01/06/2011,Technical and Advisory Services,DFID Malawi,EPOS Health Consultants GmbH,400161267,"31,403.51"
DFID,DFID,09/06/2011,Aid Programme - Accountable Grant Payments,Research and Evidence,Institute for Social and Environmental Transition,400161270,"18,549.30"
DFID,DFID,01/06/2011,Aid Programme - Trust Funds contributions,Director Asia and Regional Team,IBRD (HSBC)  C/O THE WORLD BANK,400161273,"434,500.00"
DFID,DFID,02/06/2011,Technical and Advisory Services,Human Development Group,IMPERIAL COLLEGE LONDON,400161275,"44,378.99"
DFID,DFID,15/06/2011,Facilities Management payments,DFID Kenya,Toolcrafts Limited,400161276,270.54
DFID,DFID,15/06/2011,Facilities Management payments,DFID Kenya,Toolcrafts Limited,400161276,270.54
DFID,DFID,13/06/2011,Technical and Advisory Services,Stabilisation Unit,THE CROWN AGENTS FOR OVERSEA GOVERNMENTS AND ADMINISTRATIONS LIMITED,400161277,"8,236.80"
DFID,DFID,13/06/2011,Technical and Advisory Services,Stabilisation Unit,THE CROWN AGENTS FOR OVERSEA GOVERNMENTS AND ADMINISTRATIONS LIMITED,400161282,576
DFID,DFID,02/06/2011,Technical and Advisory Services,DFID Tanzania,KPMG EAST AFRICA LTD,400161283,"53,471.00"
DFID,DFID,02/06/2011,Technical and Advisory Services,DFID Tanzania,KPMG EAST AFRICA LTD,400161283,"18,359.00"
DFID,DFID,06/06/2011,Technical and Advisory Services,Stabilisation Unit,THE CROWN AGENTS FOR OVERSEA GOVERNMENTS AND ADMINISTRATIONS LIMITED,400161284,706.93
DFID,DFID,13/06/2011,Technical and Advisory Services,Stabilisation Unit,THE CROWN AGENTS FOR OVERSEA GOVERNMENTS AND ADMINISTRATIONS LIMITED,400161285,315.73
DFID,DFID,13/06/2011,Technical and Advisory Services,Stabilisation Unit,THE CROWN AGENTS FOR OVERSEA GOVERNMENTS AND ADMINISTRATIONS LIMITED,400161285,"1,575.47"
DFID,DFID,01/06/2011,Aid Programme - Accountable Grant Payments,DFID Afghanistan,Supplier Name Witheld,400161290,"182,820.34"
DFID,DFID,01/06/2011,Aid Programme - Voluntary contributions,Human Development Group,WHO (GENEVA),400161293,"250,000.00"
DFID,DFID,03/06/2011,Aid Programme - Accountable Grant Payments,Director Asia and Regional Team,Community Forestry International,400161294,"20,000.00"
DFID,DFID,01/06/2011,Aid Programme - Accountable Grant Payments,Research and Evidence,UNIVERSITY OF  OXFORD,400161295,"32,255.09"
DFID,DFID,01/06/2011,Training - Course Fees,DFID Ethiopia,NATIONAL SCHOOL OF GOVERNMENT,400161324,"-11,102.47"
DFID,DFID,01/06/2011,Training - Course Fees,DFID Ethiopia,NATIONAL SCHOOL OF GOVERNMENT,400161324,"22,204.94"
DFID,DFID,08/06/2011,Aid Programme - Accountable Grant Payments,"Conflict, Humanitarian and Security Department",Centre for Research on the Epidemiology of Disasters,400161330,"46,452.33"
DFID,DFID,01/06/2011,Aid Programme - Partnership Programme Arrangements,Civil Society Department,TRANSPARENCY INTERNAT,400161349,"843,586.00"
DFID,DFID,01/06/2011,Electricity,DFID Rwanda,ELECTROGAZ,400161351,425.06
DFID,DFID,01/06/2011,Electricity,DFID Rwanda,ELECTROGAZ,400161351,280.01
DFID,DFID,01/06/2011,Water charges,DFID Rwanda,ELECTROGAZ,400161351,228.28
DFID,DFID,01/06/2011,Water charges,DFID Rwanda,ELECTROGAZ,400161351,5.62
DFID,DFID,02/06/2011,Computer software maintenance,Information Systems Department,LOGICACMG UK LTD.,400161353,"113,089.50"
DFID,DFID,01/06/2011,Telephone Usage & services,DFID Rwanda,MTN RWANDACELL,400161354,576.5
DFID,DFID,01/06/2011,Telephone Usage & services,DFID Rwanda,MTN RWANDACELL,400161354,247.07
DFID,DFID,02/06/2011,House rentals,DFID Ghana,Supplier Name Witheld,400161356,"80,889.60"
DFID,DFID,02/06/2011,Consultancy Services,DFID Sudan,HLSP LIMITED,400161361,"4,050.00"
DFID,DFID,01/06/2011,Consultancy Services,DFID Sudan,HLSP LIMITED,400161362,"15,254.58"
DFID,DFID,02/06/2011,Technical and Advisory Services,Europe Department,Recipient withheld,400161363,"16,361.46"
DFID,DFID,02/06/2011,Technical and Advisory Services,Climate and Environment Group,METROECONOMICA LIMITED,400161364,"8,274.00"
DFID,DFID,01/06/2011,Aid Programme - Accountable Grant Payments,DFID Malawi,Tearfund (Malawi),400161366,"46,700.00"
DFID,DFID,01/06/2011,Technical and Advisory Services,Europe Department,Recipient withheld,400161367,"17,934.46"
DFID,DFID,01/06/2011,Computer hardware maintenance,DFID Mozambique,Tech Express,400161398,379.38
DFID,DFID,01/06/2011,Computer hardware maintenance,DFID Mozambique,Tech Express,400161398,162.59
DFID,DFID,01/06/2011,Cleaning Costs,DFID Southern Africa,R & G Industrial Supply CC,400161399,157.23
DFID,DFID,01/06/2011,Cleaning Costs,DFID Southern Africa,R & G Industrial Supply CC,400161399,366.86
DFID,DFID,01/06/2011,Government Car Scheme UK,Top Management Group,GOVERNMENT CAR AND DESPATCH AGENCY,400161410,"1,062.00"
DFID,DFID,06/06/2011,Government Car Scheme UK,Top Management Group,GOVERNMENT CAR AND DESPATCH AGENCY,400161416,504
DFID,DFID,02/06/2011,Technical and Advisory Services,DFID Nigeria,HEALTH PARTNERS INTERNATIONAL,400161419,"246,600.41"
DFID,DFID,01/06/2011,Technical and Advisory Services,DFID Nigeria,THE CROWN AGENTS FOR OVERSEA GOVERNMENTS AND ADMINISTRATIONS LIMITED,400161420,"21,340.62"
DFID,DFID,02/06/2011,Bank Charges/Services,Overseas Pensions Department,Government Actuary's Department,400161421,"11,771.76"
DFID,DFID,01/06/2011,Technical and Advisory Services,Overseas Territories Department,JOHN WARWICK,400161422,"4,501.51"
DFID,DFID,01/06/2011,House rentals,DFID Afghanistan,Supplier Name Witheld,400161426,"11,957.68"
DFID,DFID,01/06/2011,House rentals,DFID Afghanistan,Supplier Name Witheld,400161426,"44,440.14"
DFID,DFID,01/06/2011,Technical and Advisory Services,DFID Nigeria,OXFORD POLICY MANAGEMENT,400161429,"35,463.30"
DFID,DFID,01/06/2011,Technical and Advisory Services,DFID Nepal,OPTIONS CONSULTANCY SERVICES LIMITED,400161433,"76,896.00"
DFID,DFID,02/06/2011,Technical and Advisory Services,DFID Afghanistan,Supplier Name Witheld,400161435,"90,555.00"
DFID,DFID,02/06/2011,Technical and Advisory Services,DFID DRC,EFFECTIVE DEVELOPMENT GROUP (EDG),400161438,"79,835.01"
DFID,DFID,01/06/2011,Technical and Advisory Services,DFID Nigeria,OXFORD POLICY MANAGEMENT,400161439,"16,200.00"
DFID,DFID,03/06/2011,Technical and Advisory Services,DFID Afghanistan,Supplier Name Witheld,400161440,"89,189.50"
DFID,DFID,01/06/2011,Property & Construction Services,Security Section,ROK CONSTRUCTION,400161442,"12,688.80"
DFID,DFID,01/06/2011,Technical and Advisory Services,DFID Nepal,GRM INTERNATIONAL LTD,400161443,"507,755.81"
DFID,DFID,01/06/2011,Property & Construction Services,DFID Ghana,Adeko Company Limited,400161447,"1,725.69"
DFID,DFID,01/06/2011,Electricity,DFID Ghana,Electricity Company of Ghana,400161457,795.14
DFID,DFID,02/06/2011,Technical and Advisory Services,DFID Nigeria,CHEMONICS,400161460,"280,852.50"
DFID,DFID,01/06/2011,Technical and Advisory Services,DFID Zambia,COFFEY INTERNATIONAL DEVELOPMENT LTD,400161464,"10,913.42"
DFID,DFID,01/06/2011,Research & Development costs,Research and Evidence,THE UNIVERSITY OF GREENWICH,400161465,"5,204.75"
DFID,DFID,01/06/2011,Research & Development costs,Research and Evidence,THE UNIVERSITY OF GREENWICH,400161465,"1,700.00"
DFID,DFID,02/06/2011,Consultancy Services,"Middle East, North Africa Advisory and Corporate (MENARC)",HAREWELLE INTERNATIONAL LIMITED,400161467,"1,200.00"
DFID,DFID,01/06/2011,Technical and Advisory Services,DFID Rwanda,TRIBAL HELM CORPORATION LTD.,400161470,"23,537.60"
DFID,DFID,01/06/2011,Medical/Health Services,DFID Zambia,THE CROWN AGENTS FOR OVERSEA GOVERNMENTS AND ADMINISTRATIONS LIMITED,400161472,"180,262.13"
DFID,DFID,01/06/2011,Medical/Health Services,DFID Zambia,THE CROWN AGENTS FOR OVERSEA GOVERNMENTS AND ADMINISTRATIONS LIMITED,400161472,"5,203.24"
DFID,DFID,01/06/2011,Other Building Costs,Abercrombie House,ARNOLD CLARK FINANCE LIMITED,400161476,386.52
DFID,DFID,01/06/2011,Other Building Costs,Abercrombie House,ARNOLD CLARK FINANCE LIMITED,400161476,500
DFID,DFID,01/06/2011,Facilities Management payments,DFID Nigeria,Clemto Investments Ltd,400161479,39.25
DFID,DFID,01/06/2011,Facilities Management payments,DFID Nigeria,Clemto Investments Ltd,400161479,135.43
DFID,DFID,01/06/2011,Facilities Management payments,DFID Nigeria,Clemto Investments Ltd,400161479,374.88
DFID,DFID,06/06/2011,Aid Programme - Core contributions,DFID Indonesia,Agence Francaise de Developpement,400161481,"3,000,000.00"
DFID,DFID,08/06/2011,Technical and Advisory Services,DFID Ghana,Health Research for Action (HERA),400161486,"24,106.02"
DFID,DFID,01/06/2011,Facilities Management payments,DFID Nigeria,Jahrocks Nigeria Ltd,400161487,"1,254.94"
DFID,DFID,01/06/2011,Facilities Management payments,DFID Nigeria,Jahrocks Nigeria Ltd,400161487,597.05
DFID,DFID,01/06/2011,Facilities Management payments,DFID Nigeria,Jahrocks Nigeria Ltd,400161487,82.93
DFID,DFID,13/06/2011,Data Network - land lines,Stabilisation Unit,MINISTRY OF DEFENCE - HQ BRITFOR,400161488,910.09
DFID,DFID,02/06/2011,Technical and Advisory Services,DFID Afghanistan,Supplier Name Witheld,400161489,"75,529.01"
DFID,DFID,13/06/2011,Technical and Advisory Services,Climate and Environment Group,Nathan Associates London Ltd,400161490,"16,450.82"
DFID,DFID,01/06/2011,Facilities Management payments,DFID Ghana,Landsar Developers Limited,400161491,402.38
DFID,DFID,01/06/2011,Facilities Management payments,DFID Ghana,Landsar Developers Limited,400161491,512.12
DFID,DFID,02/06/2011,Property & Construction Services,DFID Ghana,HITL COMPANY LIMITED,400161492,"101,163.60"
DFID,DFID,02/06/2011,Office Supplies,DFID Nigeria,Supplier Name Witheld,400161499,36.23
DFID,DFID,02/06/2011,Vehicle Repairs & Maintenance,DFID Nigeria,Supplier Name Witheld,400161499,16.16
DFID,DFID,02/06/2011,Office Supplies,DFID Nigeria,Supplier Name Witheld,400161499,16.22
DFID,DFID,02/06/2011,Facilities Management payments,DFID Nigeria,Supplier Name Witheld,400161499,259.91
DFID,DFID,02/06/2011,Telephone Usage & services,DFID Nigeria,Supplier Name Witheld,400161499,7.38
DFID,DFID,02/06/2011,Telephone Usage & services,DFID Nigeria,Supplier Name Witheld,400161499,103.68
DFID,DFID,02/06/2011,Telephone Usage & services,DFID Nigeria,Supplier Name Witheld,400161499,6.04
DFID,DFID,02/06/2011,Telephone Usage & services,DFID Nigeria,Supplier Name Witheld,400161499,46
DFID,DFID,02/06/2011,Telephone Usage & services,DFID Nigeria,Supplier Name Witheld,400161499,5.75
DFID,DFID,02/06/2011,Office Supplies,DFID Nigeria,Supplier Name Witheld,400161499,19.82
DFID,DFID,02/06/2011,Office Supplies,DFID Nigeria,Supplier Name Witheld,400161499,44.28
DFID,DFID,02/06/2011,Vehicle Repairs & Maintenance,DFID Nigeria,Supplier Name Witheld,400161499,19.76
DFID,DFID,08/06/2011,Aid Programme - Accountable Grant Payments,Climate and Environment Group,FERN,400161509,"69,758.88"
DFID,DFID,08/06/2011,Aid Programme - Accountable Grant Payments,Climate and Environment Group,FERN,400161509,27.11
DFID,DFID,01/06/2011,Legal costs,DFID Ghana,A&A Law Consult,400161516,536.45
DFID,DFID,01/06/2011,Legal costs,DFID Ghana,A&A Law Consult,400161516,682.75
DFID,DFID,01/06/2011,Facilities Management payments,DFID Ghana,D'Clark Air-condition & Electrical Engineering,400161519,"1,735.86"
DFID,DFID,01/06/2011,Facilities Management payments,DFID Ghana,D'Clark Air-condition & Electrical Engineering,400161519,"1,363.89"
DFID,DFID,02/06/2011,Computer software maintenance,Information Systems Department,NORTHGATE HR LIMITED,400161520,"2,636.98"
DFID,DFID,03/06/2011,Aid Programme - Accountable Grant Payments,DFID Sudan,FinMark  TRUST,400161524,"431,653.08"
DFID,DFID,01/06/2011,Training - Course Fees,DFID Ghana,Feyson Company Limited/PGSM,400161525,"2,837.07"
DFID,DFID,10/06/2011,Technical and Advisory Services,Research and Evidence,HAREWELLE INTERNATIONAL LIMITED,400161533,"6,000.00"
DFID,DFID,02/06/2011,Facilities Management payments,DFID Nigeria,Supplier Name Witheld,400161534,545.89
DFID,DFID,02/06/2011,Telephone Usage & services,DFID Nigeria,Supplier Name Witheld,400161534,338.24
DFID,DFID,02/06/2011,Office Supplies,DFID Nigeria,Supplier Name Witheld,400161534,30.41
DFID,DFID,02/06/2011,Office Supplies,DFID Nigeria,Supplier Name Witheld,400161534,24.88
DFID,DFID,02/06/2011,Recruitment costs,HR DFID Initiatives,SHL Group LTD,400161539,638.4
DFID,DFID,01/06/2011,Technical and Advisory Services,DFID Nigeria,Dr Sulleiman Adediran,400161541,"7,974.34"
DFID,DFID,02/06/2011,Air fares,DFID Tanzania,Bon Voyage Travel Centre Ltd(USD),400161552,544.74
DFID,DFID,03/06/2011,FCO shared service charges,DFID Tanzania,British High Commission(Tsh),400161555,"6,000.59"
DFID,DFID,03/06/2011,Technical and Advisory Services,DFID Tanzania,British High Commission(Tsh),400161555,"1,089.59"
DFID,DFID,02/06/2011,Technical and Advisory Services,DFID Mozambique,MB Consulting Lda,400161559,"10,809.95"
DFID,DFID,02/06/2011,Facilities Management payments,DFID Kenya,Sparrow & Co Ltd,400161570,846.67
DFID,DFID,02/06/2011,Training - Course Fees,DFID Ethiopia,Wossenu Demissie,400161571,594.24
DFID,DFID,02/06/2011,Furniture & Fittings,DFID Kenya,Sparrow & Co Ltd,400161572,746.22
DFID,DFID,02/06/2011,Office Equipment - Purchases,DFID Afghanistan,Supplier Name Witheld,400161578,496.51
DFID,DFID,02/06/2011,Office Equipment - Purchases,DFID Afghanistan,Supplier Name Witheld,400161578,16.02
DFID,DFID,02/06/2011,Office Equipment - Purchases,DFID Afghanistan,Supplier Name Witheld,400161578,16.02
DFID,DFID,02/06/2011,Office Equipment - Purchases,DFID Afghanistan,Supplier Name Witheld,400161578,16.02
DFID,DFID,02/06/2011,Office Equipment - Purchases,DFID Afghanistan,Supplier Name Witheld,400161578,16.02
DFID,DFID,02/06/2011,Office Equipment - Purchases,DFID Afghanistan,Supplier Name Witheld,400161578,32.03
DFID,DFID,02/06/2011,Office Equipment - Purchases,DFID Afghanistan,Supplier Name Witheld,400161578,16.02
DFID,DFID,02/06/2011,Office Equipment - Purchases,DFID Afghanistan,Supplier Name Witheld,400161578,16.02
DFID,DFID,02/06/2011,Office Equipment - Purchases,DFID Afghanistan,Supplier Name Witheld,400161578,288.3
DFID,DFID,02/06/2011,Facilities Management payments,DFID Uganda,K.B.M Investments Ltd,400161580,96.81
DFID,DFID,02/06/2011,Facilities Management payments,DFID Uganda,K.B.M Investments Ltd,400161580,116.93
DFID,DFID,02/06/2011,Facilities Management payments,DFID Uganda,K.B.M Investments Ltd,400161580,102.6
DFID,DFID,02/06/2011,Facilities Management payments,DFID Uganda,K.B.M Investments Ltd,400161580,"1,048.02"
DFID,DFID,02/06/2011,Technical and Advisory Services,Private Sector Department,BPP LEARNING MEDIA LIMITED,400161581,325
DFID,DFID,02/06/2011,Technical and Advisory Services,Private Sector Department,BPP LEARNING MEDIA LIMITED,400161581,665
DFID,DFID,02/06/2011,Technical and Advisory Services,PRD Cabinet,HTSPE LTD,400161589,"1,929.00"
DFID,DFID,13/06/2011,Technical and Advisory Services,DFID Malawi,HLSP LIMITED,400161595,"13,911.30"
DFID,DFID,06/06/2011,Technical and Advisory Services,DFID India,INDIA INTERNATIONAL CENTRE,400161599,"1,997.03"
DFID,DFID,09/06/2011,Technical and Advisory Services,DFID Somalia,COFFEY INTERNATIONAL DEVELOPMENT LTD,400161609,"87,898.77"
DFID,DFID,09/06/2011,Technical and Advisory Services,DFID Somalia,COFFEY INTERNATIONAL DEVELOPMENT LTD,400161609,"-7,109.42"
DFID,DFID,02/06/2011,Operating Lease rental of buildings,DFID Southern Africa,Vukile Property Fund Ltd,400161610,"11,956.90"
DFID,DFID,02/06/2011,Operating Lease rental of buildings,DFID Southern Africa,Vukile Property Fund Ltd,400161610,"5,124.38"
DFID,DFID,07/06/2011,Recruitment costs,Security Section,DISCLOSURE SCOTLAND,400161614,875
DFID,DFID,05/06/2011,Air fares,DFID Nigeria,Supplier Name Witheld,400161622,"1,760.98"
DFID,DFID,20/06/2011,Air fares,DFID Afghanistan,Supplier Name Witheld,400161641,"3,385.22"
DFID,DFID,20/06/2011,Air fares,DFID Afghanistan,Supplier Name Witheld,400161641,317.47
DFID,DFID,20/06/2011,Air fares,DFID Afghanistan,Supplier Name Witheld,400161641,317.47
DFID,DFID,20/06/2011,Air fares,Internal Audit Department,Aryan Tourist and Travel Agency,400161641,707.94
DFID,DFID,02/06/2011,Contract & Agency Staff,DFID Rwanda,itsinda impano,400161642,186.05
DFID,DFID,02/06/2011,Contract & Agency Staff,DFID Rwanda,itsinda impano,400161642,434.12
DFID,DFID,02/06/2011,Technical and Advisory Services,DFID Rwanda,Hitimana Stephen,400161643,"2,154.60"
DFID,DFID,02/06/2011,Technical and Advisory Services,DFID Kenya,Alfred Ojwang,400161647,610.23
DFID,DFID,02/06/2011,Technical and Advisory Services,DFID Kenya,Carree Njeri Ndoka,400161650,"1,490.78"
DFID,DFID,02/06/2011,Technical and Advisory Services,DFID Kenya,Kairichi Consultancy Limited,400161652,"3,271.83"
DFID,DFID,02/06/2011,Technical and Advisory Services,DFID Kenya,Monica Kerretts,400161653,547.78
DFID,DFID,02/06/2011,Technical and Advisory Services,DFID Kenya,Andrew Nyabera Nyagwencha,400161654,"1,291.04"
DFID,DFID,02/06/2011,Property & Construction Services,DFID Zambia,Robertson & CO,400161655,"1,406.43"
DFID,DFID,13/06/2011,Aid Programme - Accountable Grant Payments,Value for Money,CIPFA,400161667,"79,690.00"
DFID,DFID,02/06/2011,Relocation costs,DFID Rwanda,CROWN RELOCATIONS  UK,400161668,"2,330.35"
DFID,DFID,07/06/2011,Consultancy Services,Stabilisation Unit,THE CROWN AGENTS FOR OVERSEA GOVERNMENTS AND ADMINISTRATIONS LIMITED,400161669,"4,821.54"
DFID,DFID,02/06/2011,Relocation costs,DFID Rwanda,CROWN RELOCATIONS  UK,400161670,"3,723.85"
DFID,DFID,02/06/2011,Technical and Advisory Services,DFID Nigeria,Eleanor Nwadinobi,400161675,"1,448.34"
DFID,DFID,13/06/2011,Telephone Usage & services,Chief Economist Office,VODAFONE CORPORATE,400161681,194.99
DFID,DFID,13/06/2011,Telephone Usage & services,Chief Economist Office,VODAFONE CORPORATE,400161681,15.48
DFID,DFID,13/06/2011,Telephone Usage & services,Chief Economist Office,VODAFONE CORPORATE,400161681,328.45
DFID,DFID,13/06/2011,Telephone Usage & services,Chief Economist Office,VODAFONE CORPORATE,400161681,16.1
DFID,DFID,13/06/2011,Telephone Usage & services,Chief Economist Office,VODAFONE CORPORATE,400161681,26.18
DFID,DFID,06/06/2011,Technical and Advisory Services,DFID Pakistan,THE CROWN AGENTS FOR OVERSEA GOVERNMENTS AND ADMINISTRATIONS LIMITED,400161682,"17,856.00"
DFID,DFID,06/06/2011,Telephone Sys -hardware,Information Systems Department,OGC BUYING SOLUTIONS,400161683,"123,881.34"
DFID,DFID,02/06/2011,Technical and Advisory Services,DFID Uganda,D T SMITH,400161684,"8,500.00"
DFID,DFID,02/06/2011,Technical and Advisory Services,Stabilisation Unit,THE CROWN AGENTS FOR OVERSEA GOVERNMENTS AND ADMINISTRATIONS LIMITED,400161685,"1,258.40"
DFID,DFID,02/06/2011,Technical and Advisory Services,Stabilisation Unit,THE CROWN AGENTS FOR OVERSEA GOVERNMENTS AND ADMINISTRATIONS LIMITED,400161685,768.55
DFID,DFID,02/06/2011,Aid Programme - Accountable Grant Payments,DFID India,SKILLSHARE INTERNATIONAL,400161692,"49,589.00"
DFID,DFID,02/06/2011,Technical and Advisory Services,DFID Sudan,ATOS CONSULTING LIMITED,400161695,"358,588.53"
DFID,DFID,02/06/2011,Aid Programme - Accountable Grant Payments,DFID India,CHRISTIAN AID,400161697,"168,958.48"
DFID,DFID,03/06/2011,Further Education costs,DFID Kenya,Resource Development International Ltd,400161703,"4,200.00"
DFID,DFID,06/06/2011,Technical and Advisory Services,"Conflict, Humanitarian and Security Department",recipient withheld,400161710,"3,045.02"
DFID,DFID,08/06/2011,Printer Consumables,DFID Kenya,MFI Office Solutions,400161728,436.86
DFID,DFID,08/06/2011,Printer Consumables,DFID Kenya,MFI Office Solutions,400161728,"1,747.44"
DFID,DFID,03/06/2011,Training - Travel & Subsistence,DFID Zambia,Intercontinental Nairobi,400161737,610.37
DFID,DFID,03/06/2011,House rentals,DFID Ethiopia,TAM Food Processing P.L.C.,400161738,"10,279.86"
DFID,DFID,03/06/2011,House rentals,DFID Ethiopia,Supplier Name Witheld,400161739,"14,302.41"
DFID,DFID,03/06/2011,House rentals,DFID Ethiopia,Supplier Name Witheld,400161740,"10,439.96"
DFID,DFID,09/06/2011,Consultancy Services,Stabilisation Unit,THE CROWN AGENTS FOR OVERSEA GOVERNMENTS AND ADMINISTRATIONS LIMITED,400161753,"5,868.00"
DFID,DFID,03/06/2011,Technical and Advisory Services,DFID Yemen,GRM INTERNATIONAL LTD,400161755,"11,661.28"
DFID,DFID,06/06/2011,Technical and Advisory Services,DFID Pakistan,THE CROWN AGENTS FOR OVERSEA GOVERNMENTS AND ADMINISTRATIONS LIMITED,400161758,"78,003.60"
DFID,DFID,03/06/2011,Technical and Advisory Services,DFID Nigeria,MACRAE MASON DEVELOPMENT,400161761,"25,040.66"
DFID,DFID,03/06/2011,Technical and Advisory Services,DFID Yemen,THE CROWN AGENTS FOR OVERSEA GOVERNMENTS AND ADMINISTRATIONS LIMITED,400161763,"5,760.00"
DFID,DFID,13/06/2011,Technical and Advisory Services,"Conflict, Humanitarian and Security Department",THE CROWN AGENTS FOR OVERSEA GOVERNMENTS AND ADMINISTRATIONS LIMITED,400161764,"2,505.60"
DFID,DFID,03/06/2011,Technical and Advisory Services,DFID Yemen,THE CROWN AGENTS FOR OVERSEA GOVERNMENTS AND ADMINISTRATIONS LIMITED,400161765,576
DFID,DFID,03/06/2011,Air fares,DFID Nigeria,Chelsea Hotel Abuja,400161766,524.53
DFID,DFID,03/06/2011,Air fares,DFID Nigeria,Chelsea Hotel Abuja,400161766,210.36
DFID,DFID,03/06/2011,Technical and Advisory Services,Stabilisation Unit,THE CROWN AGENTS FOR OVERSEA GOVERNMENTS AND ADMINISTRATIONS LIMITED,400161767,"11,584.00"
DFID,DFID,03/06/2011,Technical and Advisory Services,Stabilisation Unit,THE CROWN AGENTS FOR OVERSEA GOVERNMENTS AND ADMINISTRATIONS LIMITED,400161768,"12,680.00"
DFID,DFID,03/06/2011,Technical and Advisory Services,Stabilisation Unit,THE CROWN AGENTS FOR OVERSEA GOVERNMENTS AND ADMINISTRATIONS LIMITED,400161769,"6,657.00"
DFID,DFID,10/06/2011,Technical and Advisory Services,Climate and Environment Group,recipient withheld,400161770,"19,184.06"
DFID,DFID,06/06/2011,Technical and Advisory Services,DFID Ethiopia,recipient withheld,400161771,"2,196.00"
DFID,DFID,07/06/2011,Technical and Advisory Services,Stabilisation Unit,THE CROWN AGENTS FOR OVERSEA GOVERNMENTS AND ADMINISTRATIONS LIMITED,400161772,"2,438.47"
DFID,DFID,03/06/2011,Technical and Advisory Services,DFID Bangladesh,TURNER & TOWNSEND,400161773,"26,166.10"
DFID,DFID,03/06/2011,Technical and Advisory Services,Abercrombie House,MITIE Technical Facilities Management Ltd,400161774,366.22
DFID,DFID,03/06/2011,Facilities Management payments,Abercrombie House,MITIE Technical Facilities Management Ltd,400161774,"9,184.06"
DFID,DFID,03/06/2011,Cleaning Costs,Abercrombie House,MITIE Technical Facilities Management Ltd,400161774,"11,241.99"
DFID,DFID,03/06/2011,Technical and Advisory Services,Palace Street,MITIE Technical Facilities Management Ltd,400161774,748.27
DFID,DFID,03/06/2011,Facilities Management payments,Palace Street,MITIE Technical Facilities Management Ltd,400161774,"15,741.77"
DFID,DFID,03/06/2011,Cleaning Costs,Palace Street,MITIE Technical Facilities Management Ltd,400161774,"20,186.22"
DFID,DFID,03/06/2011,Property & Construction Services,Abercrombie House,MITIE Technical Facilities Management Ltd,400161774,"5,477.16"
DFID,DFID,03/06/2011,Property & Construction Services,Palace Street,MITIE Technical Facilities Management Ltd,400161774,"7,154.52"
DFID,DFID,03/06/2011,Technical and Advisory Services,DFID DRC,THE CROWN AGENTS FOR OVERSEA GOVERNMENTS AND ADMINISTRATIONS LIMITED,400161776,"6,107.23"
DFID,DFID,03/06/2011,Research & Development costs,DFID Zambia,HEALTH PARTNERS INTERNATIONAL,400161777,"7,429.54"
DFID,DFID,03/06/2011,Technical and Advisory Services,DFID Zambia,THE CROWN AGENTS FOR OVERSEA GOVERNMENTS AND ADMINISTRATIONS LIMITED,400161782,"116,093.50"
DFID,DFID,03/06/2011,Technical and Advisory Services,"Conflict, Humanitarian and Security Department",THE CROWN AGENTS FOR OVERSEA GOVERNMENTS AND ADMINISTRATIONS LIMITED,400161783,"7,430.40"
DFID,DFID,03/06/2011,Postage Costs,Abercrombie House,ROYAL MAIL,400161786,"1,800.00"
DFID,DFID,03/06/2011,Facilities Management payments,DFID Ghana,B & D Consultancy Company Limited,400161787,243.23
DFID,DFID,03/06/2011,Facilities Management payments,DFID Ghana,B & D Consultancy Company Limited,400161787,"1,837.73"
DFID,DFID,03/06/2011,House rentals,DFID Sudan,Supplier Name Witheld,400161788,"15,876.06"
DFID,DFID,03/06/2011,House rentals,DFID Sudan,Supplier Name Witheld,400161788,"15,876.06"
DFID,DFID,03/06/2011,House rentals,DFID Ghana,Orange Tree Limited,400161789,"3,405.50"
DFID,DFID,06/06/2011,Technical and Advisory Services,DFID Jerusalem and Palestinian Programme,REPIM,400161794,"33,500.00"
DFID,DFID,03/06/2011,Research & Development costs,Research and Evidence,THE CROWN AGENTS FOR OVERSEA GOVERNMENTS AND ADMINISTRATIONS LIMITED,400161802,"24,063.42"
DFID,DFID,03/06/2011,Aid Programme - Other Financial Aid to Government,DFID Kenya,THE CROWN AGENTS FOR OVERSEA GOVERNMENTS AND ADMINISTRATIONS LIMITED,400161803,"59,343.81"
DFID,DFID,08/06/2011,Medicines & Drugs,DFID Nigeria,THE CROWN AGENTS FOR OVERSEA GOVERNMENTS AND ADMINISTRATIONS LIMITED,400161804,"73,252.18"
DFID,DFID,03/06/2011,Contraceptives,DFID Nigeria,THE CROWN AGENTS FOR OVERSEA GOVERNMENTS AND ADMINISTRATIONS LIMITED,400161805,"11,211.13"
DFID,DFID,03/06/2011,Technical and Advisory Services,DFID Nigeria,THE CROWN AGENTS FOR OVERSEA GOVERNMENTS AND ADMINISTRATIONS LIMITED,400161805,325.12
DFID,DFID,03/06/2011,Technical and Advisory Services,DFID DRC,THE CROWN AGENTS FOR OVERSEA GOVERNMENTS AND ADMINISTRATIONS LIMITED,400161806,"12,313.20"
DFID,DFID,06/06/2011,Hardware - desktop PCs,DFID Bangladesh,THE CROWN AGENTS FOR OVERSEA GOVERNMENTS AND ADMINISTRATIONS LIMITED,400161807,852.47
DFID,DFID,07/06/2011,Technical and Advisory Services,DFID Caribbean and Nicaragua,THE CROWN AGENTS FOR OVERSEA GOVERNMENTS AND ADMINISTRATIONS LIMITED,400161808,576
DFID,DFID,06/06/2011,Data Network - land lines,Information Systems Department,MTN Business Solutions,400161812,"19,079.48"
DFID,DFID,06/06/2011,Technical and Advisory Services,DFID Kenya,Leonard Matheka (Kenya USD),400161813,"4,223.33"
DFID,DFID,24/06/2011,Technical and Advisory Services,Stabilisation Unit,recipient withheld,400161814,605
DFID,DFID,24/06/2011,Technical and Advisory Services,Stabilisation Unit,recipient withheld,400161815,"10,230.00"
DFID,DFID,09/06/2011,Technical and Advisory Services,PRD Cabinet,HTSPE LTD,400161818,"60,000.00"
DFID,DFID,09/06/2011,Technical and Advisory Services,PRD Cabinet,HTSPE LTD,400161818,"-57,727.50"
DFID,DFID,07/06/2011,Technical and Advisory Services,DFID Afghanistan,HTSPE LTD,400161820,"25,044.00"
DFID,DFID,03/06/2011,Technical and Advisory Services,DFID Mozambique,THE CROWN AGENTS FOR OVERSEA GOVERNMENTS AND ADMINISTRATIONS LIMITED,400161823,"55,722.00"
DFID,DFID,08/06/2011,Auditors Remuneration & Expenses,Internal Audit Department,RSM Tenon Limited,400161824,"3,000.00"
DFID,DFID,07/06/2011,Technical and Advisory Services,DFID Afghanistan,ATOS CONSULTING LIMITED,400161825,"221,748.00"
DFID,DFID,06/06/2011,Technical and Advisory Services,DFID Nepal,WSP INTERNATIONAL LIMITED,400161826,"15,633.87"
DFID,DFID,07/06/2011,Technical and Advisory Services,DFID Nepal,WSP INTERNATIONAL LIMITED,400161828,"59,429.00"
DFID,DFID,07/06/2011,Technical and Advisory Services,DFID Nepal,WSP INTERNATIONAL LIMITED,400161828,"535,043.31"
DFID,DFID,03/06/2011,Technical and Advisory Services,Finance and Performance Department,THE CROWN AGENTS FOR OVERSEA GOVERNMENTS AND ADMINISTRATIONS LIMITED,400161829,"36,250.00"
DFID,DFID,03/06/2011,Aid Programme - Poverty Reduction Budget Support,DFID Mozambique,THE CROWN AGENTS FOR OVERSEA GOVERNMENTS AND ADMINISTRATIONS LIMITED,400161830,"1,000,000.00"
DFID,DFID,06/06/2011,Technical and Advisory Services,Research and Evidence,WRENmedia,400161834,"23,358.98"
DFID,DFID,03/06/2011,Consultancy Services,Private Sector Department,ACCENTURE (UK) LIMITED,400161837,"5,000.00"
DFID,DFID,03/06/2011,Consultancy Services,Private Sector Department,ACCENTURE (UK) LIMITED,400161837,"-2,500.00"
DFID,DFID,03/06/2011,Technical and Advisory Services,"Conflict, Humanitarian and Security Department",CLARE HARKIN,400161838,"2,822.31"
DFID,DFID,10/06/2011,Technical and Advisory Services,DFID Rwanda,TRIBAL HELM CORPORATION LTD.,400161839,"12,377.14"
DFID,DFID,06/06/2011,Technical and Advisory Services,DFID Southern Africa,Capacity Development Consultants,400161840,"7,647.41"
DFID,DFID,03/06/2011,Recruitment costs,HR DFID Initiatives,RUSSELL REYNOLDS ASSOCIATES,400161842,"9,999.60"
DFID,DFID,03/06/2011,Technical and Advisory Services,HR DFID Initiatives,Healix International Limited (Fees),400161843,"13,952.44"
DFID,DFID,03/06/2011,Technical and Advisory Services,HR DFID Initiatives,Healix International Limited (Fees),400161844,"13,952.44"
DFID,DFID,03/06/2011,Training - Course Fees,Stabilisation Unit,SOAS Language Centre,400161845,"1,120.00"
DFID,DFID,07/06/2011,Technical and Advisory Services,"Conflict, Humanitarian and Security Department",THE HALO TRUST,400161846,"6,505.00"
DFID,DFID,09/06/2011,Technical and Advisory Services,Overseas Territories Department,Teraquad Limited,400161847,"9,310.72"
DFID,DFID,03/06/2011,Research & Development costs,Research and Evidence,LONDON SCHOOL OF HYGIENE AND TR,400161848,"14,905.31"
DFID,DFID,03/06/2011,Technical and Advisory Services,DFID Kosovo,PUBLIC ADMINISTRATION INTERN,400161849,"47,272.06"
DFID,DFID,09/06/2011,Technical and Advisory Services,DFID Afghanistan,THE CROWN AGENTS FOR OVERSEA GOVERNMENTS AND ADMINISTRATIONS LIMITED,400161850,"3,225.60"
DFID,DFID,09/06/2011,Technical and Advisory Services,DFID Afghanistan,THE CROWN AGENTS FOR OVERSEA GOVERNMENTS AND ADMINISTRATIONS LIMITED,400161850,"1,280.00"
DFID,DFID,09/06/2011,Technical and Advisory Services,"Conflict, Humanitarian and Security Department",THE CROWN AGENTS FOR OVERSEA GOVERNMENTS AND ADMINISTRATIONS LIMITED,400161850,196.2
DFID,DFID,09/06/2011,Technical and Advisory Services,Procurement Department,THE CROWN AGENTS FOR OVERSEA GOVERNMENTS AND ADMINISTRATIONS LIMITED,400161850,"13,849.60"
DFID,DFID,09/06/2011,Technical and Advisory Services,Overseas Territories Department,THE CROWN AGENTS FOR OVERSEA GOVERNMENTS AND ADMINISTRATIONS LIMITED,400161850,153.6
DFID,DFID,09/06/2011,Technical and Advisory Services,DFID India,THE CROWN AGENTS FOR OVERSEA GOVERNMENTS AND ADMINISTRATIONS LIMITED,400161850,716.8
DFID,DFID,09/06/2011,Technical and Advisory Services,Overseas Territories Department,THE CROWN AGENTS FOR OVERSEA GOVERNMENTS AND ADMINISTRATIONS LIMITED,400161850,"5,510.40"
DFID,DFID,09/06/2011,Technical and Advisory Services,Private Sector Department,THE CROWN AGENTS FOR OVERSEA GOVERNMENTS AND ADMINISTRATIONS LIMITED,400161850,614.4
DFID,DFID,09/06/2011,Technical and Advisory Services,DFID Nepal,THE CROWN AGENTS FOR OVERSEA GOVERNMENTS AND ADMINISTRATIONS LIMITED,400161850,174.4
DFID,DFID,09/06/2011,Technical and Advisory Services,Global Funds Department,THE CROWN AGENTS FOR OVERSEA GOVERNMENTS AND ADMINISTRATIONS LIMITED,400161850,486.4
DFID,DFID,09/06/2011,Technical and Advisory Services,Palace Street,THE CROWN AGENTS FOR OVERSEA GOVERNMENTS AND ADMINISTRATIONS LIMITED,400161850,"2,304.00"
DFID,DFID,04/06/2011,Facilities Management payments,DFID DRC,Sharim Entreprise,400161853,"1,314.18"
DFID,DFID,04/06/2011,Hotels - Accommodation only,DFID DRC,Grand Hotel,400161855,547.68
DFID,DFID,04/06/2011,Technical and Advisory Services,DFID DRC,ecoded,400161857,"4,645.48"
DFID,DFID,04/06/2011,Technical and Advisory Services,DFID DRC,ecoded,400161857,"-2,322.74"
DFID,DFID,04/06/2011,Property & Construction Services,DFID DRC,Meubles Modernes Du Congo,400161860,"4,460.27"
DFID,DFID,04/06/2011,Furniture & Fittings,DFID DRC,Dream Home,400161861,501.22
DFID,DFID,10/06/2011,Telephone Usage & services,DFID DRC,Vodacom,400161872,854.94
DFID,DFID,10/06/2011,Telephone Usage & services,DFID DRC,Vodacom,400161872,262.62
DFID,DFID,06/06/2011,Technical and Advisory Services,DFID Bangladesh,Naushad Faiz (Bangladesh),400161876,"2,608.10"
DFID,DFID,07/06/2011,other information & communication technologies,DFID Afghanistan,Supplier Name Witheld,400161879,520.59
DFID,DFID,07/06/2011,other information & communication technologies,DFID Afghanistan,Supplier Name Witheld,400161879,"1,127.94"
DFID,DFID,06/06/2011,Air fares,DFID Zimbabwe,Premier Travel,400161884,"1,074.25"
DFID,DFID,06/06/2011,Furniture & Fittings,DFID Zimbabwe,Zimbrellas T/A Lasdenbale,400161885,509.56
DFID,DFID,06/06/2011,Technical and Advisory Services,DFID Pakistan,British Council,400161899,"25,414.77"
DFID,DFID,06/06/2011,Technical and Advisory Services,DFID Zambia,Taj Pamodzi Hotel,400161909,709.17
DFID,DFID,06/06/2011,Technical and Advisory Services,DFID Zambia,Taj Pamodzi Hotel,400161921,714.91
DFID,DFID,06/06/2011,Technical and Advisory Services,DFID Zambia,Taj Pamodzi Hotel,400161923,619.95
DFID,DFID,06/06/2011,Vehicle Repairs & Maintenance,DFID India,QUTAB SERVICE STATION,400161934,951.35
DFID,DFID,07/06/2011,Technical and Advisory Services,"Conflict, Humanitarian and Security Department",THE HALO TRUST,400161945,"136,800.00"
DFID,DFID,08/06/2011,Other rentals,Abercrombie House,NCS GROUP LTD,400161946,"6,474.00"
DFID,DFID,09/06/2011,Operating Lease rental of buildings,DFID Southern Africa,Nashua Mobile (Pty) Ltd,400161950,"4,178.01"
DFID,DFID,07/06/2011,Aid Programme - Accountable Grant Payments,DFID Kosovo,University of Sarajevo,400161951,"7,565.00"
DFID,DFID,13/06/2011,Aid Programme - Accountable Grant Payments,Human Development Group,NORRAG,400161954,"23,670.00"
DFID,DFID,08/06/2011,Aid Programme - Accountable Grant Payments,DFID Kenya,KINGS COLLEGE LONDON,400161955,"5,060.15"
DFID,DFID,06/06/2011,"Conferences, Seminars & Meeting/Event Resource",DFID Zambia,Lilayi Lodge Zambia,400161958,887.41
DFID,DFID,06/06/2011,Technical and Advisory Services,DFID Ethiopia,Dr Mohammed Mussa(MMA Development Consultancy),400161962,684.69
DFID,DFID,10/06/2011,Aid Programme - Joint programme contribution,DFID Tajikistan,UNDP CONTRIBUTIONS GBP,400161965,"1,000,000.00"
DFID,DFID,06/06/2011,Oil - Other Utilities,DFID Zimbabwe,Redan Petroleum,400161976,"5,799.76"
DFID,DFID,06/06/2011,Oil - Other Utilities,DFID Zimbabwe,Redan Petroleum,400161976,724.89
DFID,DFID,06/06/2011,Furniture & Fittings,DFID Zimbabwe,Sterling Export Corporation,400161986,"1,874.77"
DFID,DFID,07/06/2011,Aid Programme - Accountable Grant Payments,Africa Regional Department,AFRICAN MONITOR,400161987,"13,834.00"
DFID,DFID,06/06/2011,Data Network - land lines,Information Systems Department,Subisu Cable Net Pvt Ltd,400161990,779.64
DFID,DFID,08/06/2011,Aid Programme - Accountable Grant Payments,DFID Kenya,Development Media International,400161991,"49,351.00"
DFID,DFID,15/06/2011,Aid Programme - Accountable Grant Payments,DFID Kenya,Family Care International,400162010,"72,896.00"
DFID,DFID,08/06/2011,Technical and Advisory Services,Stabilisation Unit,"WILSON, BRYDON & KENNEDY",400162014,"12,420.00"
DFID,DFID,08/06/2011,Technical and Advisory Services,Stabilisation Unit,"WILSON, BRYDON & KENNEDY",400162014,878
DFID,DFID,06/06/2011,Technical and Advisory Services,DFID Ethiopia,Goh Capital Partners PLC,400162019,"20,156.22"
DFID,DFID,06/06/2011,Water charges,DFID Nepal,Bal Krishna Dahal,400162020,623.04
DFID,DFID,06/06/2011,Water charges,DFID Nepal,Bal Krishna Dahal,400162020,83.63
DFID,DFID,06/06/2011,Water charges,DFID Nepal,Bal Krishna Dahal,400162020,100.36
DFID,DFID,06/06/2011,Water charges,DFID Nepal,Bal Krishna Dahal,400162020,50.18
DFID,DFID,06/06/2011,Vehicle Repairs & Maintenance,DFID Nepal,Eco Vision,400162021,521.85
DFID,DFID,06/06/2011,Vehicle Repairs & Maintenance,DFID Nepal,Eco Vision,400162021,281
DFID,DFID,06/06/2011,House rentals,DFID Ethiopia,Supplier Name Witheld,400162023,"25,939.35"
DFID,DFID,06/06/2011,Facilities Management payments,DFID Nepal,John Sanday Associates Pvt. Ltd,400162030,176.62
DFID,DFID,06/06/2011,Facilities Management payments,DFID Nepal,John Sanday Associates Pvt. Ltd,400162030,256.76
DFID,DFID,06/06/2011,Facilities Management payments,DFID Nepal,John Sanday Associates Pvt. Ltd,400162030,88.64
DFID,DFID,06/06/2011,Facilities Management payments,DFID Nepal,John Sanday Associates Pvt. Ltd,400162030,106.03
DFID,DFID,06/06/2011,Facilities Management payments,DFID Nepal,John Sanday Associates Pvt. Ltd,400162030,517.54
DFID,DFID,06/06/2011,Facilities Management payments,DFID Nepal,John Sanday Associates Pvt. Ltd,400162030,"2,756.19"
DFID,DFID,06/06/2011,Facilities Management payments,DFID Nepal,John Sanday Associates Pvt. Ltd,400162030,159.61
DFID,DFID,06/06/2011,Vehicle Petrol & Oil,DFID Nepal,Nepal Oil Corporation,400162033,"4,582.90"
DFID,DFID,06/06/2011,Technical and Advisory Services,DFID Mozambique,Benilde Graciete Garrine,400162036,"1,521.61"
DFID,DFID,07/06/2011,Hotels - Accommodation only,DFID Tanzania,Southern Sun Hotels(T) Ltd (USD),400162043,547.78
DFID,DFID,14/06/2011,Aid Programme - Accountable Grant Payments,DFID Malawi, Overseas Development Institute,400162044,"12,079.24"
DFID,DFID,06/06/2011,Computer software maintenance,Internal Audit Department,Magique Galileo Software Limited,400162045,"2,100.00"
DFID,DFID,06/06/2011,Technical and Advisory Services,HR DFID Initiatives,XAFINITY PAYMASTER,400162047,"5,807.20"
DFID,DFID,06/06/2011,Technical and Advisory Services,HR Advisory Group,XAFINITY PAYMASTER,400162049,840
DFID,DFID,07/06/2011,Technical and Advisory Services,Africa Regional Department,PRICEWATERHOUSECOOPERS (KENYA),400162052,"10,761.00"
DFID,DFID,06/06/2011,Training Providers/Facilitation Services,HR Advisory Group,XAFINITY PAYMASTER,400162054,250
DFID,DFID,06/06/2011,Training Providers/Facilitation Services,HR Advisory Group,XAFINITY PAYMASTER,400162054,36.25
DFID,DFID,06/06/2011,Training Providers/Facilitation Services,HR Advisory Group,XAFINITY PAYMASTER,400162054,250
DFID,DFID,06/06/2011,Training Providers/Facilitation Services,HR Advisory Group,XAFINITY PAYMASTER,400162054,36.25
DFID,DFID,06/06/2011,Training Providers/Facilitation Services,HR Advisory Group,XAFINITY PAYMASTER,400162054,250
DFID,DFID,06/06/2011,Training Providers/Facilitation Services,HR Advisory Group,XAFINITY PAYMASTER,400162054,36.25
DFID,DFID,09/06/2011,Technical and Advisory Services,DFID Uganda,JOE KANENGERE NUWAMANYA,400162069,"4,200.00"
DFID,DFID,06/06/2011,Oil - Other Utilities,DFID Sierra Leone and Liberia,Ibrahim Shour General Auto Spares,400162071,217.5
DFID,DFID,06/06/2011,Oil - Other Utilities,DFID Sierra Leone and Liberia,Ibrahim Shour General Auto Spares,400162071,326.25
DFID,DFID,06/06/2011,Technical and Advisory Services,DFID Iraq,ADAM SMITH INTERNATIONAL  LTD,400162072,"31,387.82"
DFID,DFID,06/06/2011,Facilities Management payments,DFID Sierra Leone and Liberia,Siaka Dumbuya,400162102,777.37
DFID,DFID,09/06/2011,Electricity,Palace Street,EDF ENERGY,400162107,"27,171.32"
DFID,DFID,09/06/2011,Electricity,Palace Street,EDF ENERGY,400162107,29.92
DFID,DFID,09/06/2011,Operating Lease rental of buildings,DFID Southern Africa,CSIR,400162108,"2,646.50"
DFID,DFID,06/06/2011,Consultancy Services,Private Sector Department,John Churchill,400162116,668.2
DFID,DFID,06/06/2011,Taxi costs,DFID Malawi,J & K Car Hire,400162117,"1,407.37"
DFID,DFID,06/06/2011,Technical and Advisory Services,DFID Malawi,Supplier Name Witheld,400162125,"6,832.15"
DFID,DFID,06/06/2011,Other Building Costs,DFID Malawi,Plus Ten General Dealers,400162128,577.18
DFID,DFID,06/06/2011,Storage & Distribution costs,Information Systems Department,TNT Express (UK) Ltd,400162156,"4,315.81"
DFID,DFID,06/06/2011,Aid Programme - Joint programme contribution,DFID Tajikistan,IBRD HSBC T,400162160,"350,000.00"
DFID,DFID,08/06/2011,Research & Development costs,Research and Evidence,UNIVERSITY OF  OXFORD,400162162,"397,047.26"
DFID,DFID,06/06/2011,Technical and Advisory Services,DFID Afghanistan,ADAM SMITH INTERNATIONAL  LTD,400162164,"90,454.10"
DFID,DFID,07/06/2011,Electricity,DFID Nepal,Nepal Electricity Authority,400162179,266.28
DFID,DFID,07/06/2011,Electricity,DFID Nepal,Nepal Electricity Authority,400162179,494.52
DFID,DFID,07/06/2011,House rentals,DFID Bangladesh,Supplier Name Witheld,400162180,"12,734.38"
DFID,DFID,08/06/2011,Facilities Management payments,DFID Tanzania,Future Century Ltd(USD),400162194,754.88
DFID,DFID,07/06/2011,Courier & Bag Services,DFID Nepal,British Embassy (NRs),400162199,671.68
DFID,DFID,07/06/2011,Courier & Bag Services,DFID Nepal,British Embassy (NRs),400162199,361.67
DFID,DFID,07/06/2011,Technical and Advisory Services,DFID Pakistan,Beaconhouse National University IPP,400162204,"20,010.45"
DFID,DFID,08/06/2011,Facilities Management payments,DFID Tanzania,Future Century Ltd(USD),400162207,508.58
DFID,DFID,07/06/2011,Hotels - Accommodation only,DFID Pakistan,PEARL CONTINENTAL HOTEL LAHORE,400162214,"1,357.05"
DFID,DFID,07/06/2011,other information & communication technologies,DFID Afghanistan,Supplier Name Witheld,400162219,"15,010.10"
DFID,DFID,07/06/2011,other information & communication technologies,DFID Afghanistan,Supplier Name Witheld,400162219,"6,927.74"
DFID,DFID,07/06/2011,Office Equipment - Purchases,DFID Tanzania,Status Investment Company,400162222,"4,137.32"
DFID,DFID,07/06/2011,Technical and Advisory Services,DFID India,GfK Mode Pvt. Ltd.,400162223,"9,425.03"
DFID,DFID,07/06/2011,Technical and Advisory Services,DFID India,Crisil Risk and Infrastructure Solutions Limited,400162225,"6,846.65"
DFID,DFID,07/06/2011,Office Equipment - Maintenance,DFID Tanzania,SED INVESTMENT (USD),400162226,"2,620.35"
DFID,DFID,07/06/2011,Technical and Advisory Services,DFID India,DELOITTE TOUCHE TOHMATSU INDIA PRIVA,400162231,"3,365.42"
DFID,DFID,08/06/2011,Training Providers/Facilitation Services,Research and Evidence,MASSACHUSETTS INSTITUTE OF TECHNOLOGY,400162232,"2,452.00"
DFID,DFID,07/06/2011,Technical and Advisory Services,DFID Zimbabwe,THE CROWN AGENTS FOR OVERSEA GOVERNMENTS AND ADMINISTRATIONS LIMITED,400162234,963.41
DFID,DFID,07/06/2011,Technical and Advisory Services,DFID Zimbabwe,THE CROWN AGENTS FOR OVERSEA GOVERNMENTS AND ADMINISTRATIONS LIMITED,400162235,"3,464.67"
DFID,DFID,07/06/2011,Aid Programme - Other Financial Aid to Government,Overseas Territories Department,THE CROWN AGENTS FOR OVERSEA GOVERNMENTS AND ADMINISTRATIONS LIMITED,400162255,"1,200,000.00"
DFID,DFID,09/06/2011,Aid Programme - Joint programme contribution,DFID Tajikistan,GTZ GmBH Eschborn,400162262,"2,000,000.00"
DFID,DFID,07/06/2011,Facilities Management payments,DFID India,CB RICHARD ELLIS SOUTH ASIA PVT LTD,400162270,"14,910.79"
DFID,DFID,07/06/2011,Contract Catering Services,DFID India,THE GOURMET FACTORY,400162272,"2,305.51"
DFID,DFID,08/06/2011,Technical and Advisory Services,"Conflict, Humanitarian and Security Department",MINES ADVISORY GROUP,400162278,"24,271.00"
DFID,DFID,07/06/2011,Technical and Advisory Services,DFID India,CB RICHARD ELLIS SOUTH ASIA PVT LTD,400162284,597.75
DFID,DFID,07/06/2011,Computer hardware maintenance,DFID Nigeria,Osmat Network,400162289,956.38
DFID,DFID,07/06/2011,Computer hardware maintenance,DFID Nigeria,Osmat Network,400162289,782.49
DFID,DFID,07/06/2011,Aid Programme - Joint programme contribution,DFID Tajikistan,UNDP CONTRIBUTIONS GBP,400162290,"200,000.00"
DFID,DFID,07/06/2011,Facilities Management payments,DFID Rwanda,RWANDA CLEANING COMPANY,400162293,704.43
DFID,DFID,07/06/2011,Technical and Advisory Services,DFID Pakistan,Muhammad Asghar Ali,400162299,685.74
DFID,DFID,08/06/2011,Aid Programme - Accountable Grant Payments,DFID Malawi,The Body of Case Handling Institutions,400162307,"40,687.04"
DFID,DFID,10/06/2011,Aid Programme - Accountable Grant Payments,DFID Somalia,DANISH REFUGEE COUNCIL (DKK),400162308,"241,042.83"
DFID,DFID,08/06/2011,Technical and Advisory Services,DFID Nigeria,   THE WORLD BANK,400162310,"8,250.00"
DFID,DFID,07/06/2011,Aid Programme - Voluntary contributions,DFID DRC, UNICEF,400162311,"615,000.00"
DFID,DFID,10/06/2011,Technical and Advisory Services,"Conflict, Humanitarian and Security Department",MINES ADVISORY GROUP,400162313,"32,183.00"
DFID,DFID,07/06/2011,Technical and Advisory Services,"Conflict, Humanitarian and Security Department",MINES ADVISORY GROUP,400162315,"123,360.00"
DFID,DFID,07/06/2011,Property & Construction Services,DFID Ethiopia,SAFECON Electro Mechanical Works PLC,400162329,"3,391.11"
DFID,DFID,10/06/2011,Technical and Advisory Services,"Conflict, Humanitarian and Security Department",MINES ADVISORY GROUP,400162330,"151,778.00"
DFID,DFID,07/06/2011,Property & Construction Services,DFID Ethiopia,SAFECON Electro Mechanical Works PLC,400162331,"1,238.58"
DFID,DFID,07/06/2011,Other Building Costs,DFID Ethiopia,SAFECON Electro Mechanical Works PLC,400162331,"1,238.58"
DFID,DFID,10/06/2011,Technical and Advisory Services,"Conflict, Humanitarian and Security Department",MINES ADVISORY GROUP,400162332,"19,989.00"
DFID,DFID,07/06/2011,Technical and Advisory Services,DFID Mozambique,MB Consulting Lda,400162334,"1,347.53"
DFID,DFID,07/06/2011,Property & Construction Services,DFID Ethiopia,SAFECON Electro Mechanical Works PLC,400162335,"9,751.51"
DFID,DFID,22/06/2011,Technical and Advisory Services,Climate and Environment Group,GBRW LIMITED,400162340,"2,326.88"
DFID,DFID,08/06/2011,Technical and Advisory Services,News Team,THE PRESS ASSOCIATION,400162341,530.48
DFID,DFID,08/06/2011,Technical and Advisory Services,DFID Bangladesh,TRIBAL HELM CORPORATION LTD.,400162343,"184,477.81"
DFID,DFID,16/06/2011,Technical and Advisory Services,Stabilisation Unit,THE CROWN AGENTS FOR OVERSEA GOVERNMENTS AND ADMINISTRATIONS LIMITED,400162350,912
DFID,DFID,13/06/2011,Aid Programme - Accountable Grant Payments,DFID Pakistan,Supplier Name Witheld,400162354,"719,902.00"
DFID,DFID,07/06/2011,"Conferences, Seminars & Meeting/Event Resource",DFID Mozambique,Turvisa Girassol,400162359,"1,709.07"
DFID,DFID,07/06/2011,Technical and Advisory Services,DFID Pakistan,OXFORD POLICY MANAGEMENT,400162361,"74,964.63"
DFID,DFID,08/06/2011,Technical and Advisory Services,DFID India,OPTIONS CONSULTANCY SERVICES LIMITED,400162362,"12,298.51"
DFID,DFID,07/06/2011,Technical and Advisory Services,DFID India,OPTIONS CONSULTANCY SERVICES LIMITED,400162369,"9,084.29"
DFID,DFID,07/06/2011,Technical and Advisory Services,Private Sector Department,EMERGING MARKETS GROUP,400162370,"7,200.00"
DFID,DFID,08/06/2011,Technical and Advisory Services,Private Sector Department,EMERGING MARKETS GROUP,400162371,"174,388.34"
DFID,DFID,08/06/2011,Technical and Advisory Services,Overseas Territories Department,OXFORD POLICY MANAGEMENT,400162372,"24,357.24"
DFID,DFID,07/06/2011,Technical and Advisory Services,DFID Bangladesh,MAXWELL STAMP PLC,400162373,"104,184.63"
DFID,DFID,07/06/2011,Technical and Advisory Services,Stabilisation Unit,THE CROWN AGENTS FOR OVERSEA GOVERNMENTS AND ADMINISTRATIONS LIMITED,400162374,"1,616.00"
DFID,DFID,15/06/2011,Technical and Advisory Services,DFID Sierra Leone and Liberia,Cowater International Inc.,400162375,"17,162.08"
DFID,DFID,08/06/2011,Aid Programme - Accountable Grant Payments,DFID Malawi,Catholic Commission for Justice and,400162376,"442,377.77"
DFID,DFID,09/06/2011,Technical and Advisory Services,DFID Pakistan,MOTT MACDONALD INTERNATIONAL,400162377,"41,111.79"
DFID,DFID,07/06/2011,Technical and Advisory Services,Stabilisation Unit,THE CROWN AGENTS FOR OVERSEA GOVERNMENTS AND ADMINISTRATIONS LIMITED,400162378,"6,974.00"
DFID,DFID,07/06/2011,Technical and Advisory Services,DFID Bangladesh,MAXWELL STAMP PLC,400162379,"183,230.20"
DFID,DFID,07/06/2011,Technical and Advisory Services,DFID Bangladesh,MAXWELL STAMP PLC,400162379,"400,000.00"
DFID,DFID,17/06/2011,Training Providers/Facilitation Services,Stabilisation Unit,CRANFIELD UNIVERSITY,400162381,"24,677.00"
DFID,DFID,07/06/2011,Technical and Advisory Services,DFID Nepal,UNIVERSITY OF WOLVERHAMPTON,400162383,"138,406.90"
DFID,DFID,09/06/2011,Technical and Advisory Services,Research and Evidence,ROYAL TROPICAL INSTITUTE,400162387,"13,195.20"
DFID,DFID,08/06/2011,Technical and Advisory Services,Research and Evidence,PRICEWATERHOUSECOOPERS,400162392,"125,664.65"
DFID,DFID,07/06/2011,Aid Programme - Challenge Fund payments,Civil Society Department,Triple Line Consulting Limited,400162393,"501,990.85"
DFID,DFID,08/06/2011,Technical and Advisory Services,DFID Zambia,MS MARY JENNINGS,400162397,"9,939.66"
DFID,DFID,08/06/2011,Technical and Advisory Services,DFID Zambia,MS MARY JENNINGS,400162397,"-4,601.32"
DFID,DFID,08/06/2011,Technical and Advisory Services,DFID Zambia,MS MARY JENNINGS,400162397,"10,944.40"
DFID,DFID,07/06/2011,Technical and Advisory Services,Civil Society Department,Triple Line Consulting Limited,400162398,"1,751,963.86"
DFID,DFID,10/06/2011,Technical and Advisory Services,"Conflict, Humanitarian and Security Department",MINES ADVISORY GROUP,400162400,"47,265.00"
DFID,DFID,08/06/2011,Technical and Advisory Services,"Conflict, Humanitarian and Security Department",MINES ADVISORY GROUP,400162401,"31,074.00"
DFID,DFID,08/06/2011,Technical and Advisory Services,"Conflict, Humanitarian and Security Department",MINES ADVISORY GROUP,400162403,"104,149.00"
DFID,DFID,07/06/2011,Technical and Advisory Services,Research and Evidence,CHRISTOPHER ADAM,400162404,"3,554.73"
DFID,DFID,07/06/2011,Aid Programme - Accountable Grant Payments,United Nations and Commonwealth Dept (UNCD),UNESCO,400162405,"29,737.00"
DFID,DFID,07/06/2011,Research & Development costs,Research and Evidence,UNIVERSITY OF LEEDS,400162406,"355,566.00"
DFID,DFID,08/06/2011,Technical and Advisory Services,DFID Ethiopia,COFFEY INTERNATIONAL DEVELOPMENT LTD,400162410,"2,531.33"
DFID,DFID,08/06/2011,Office Equipment - Purchases,Palace Street,TR Control Solutions Ltd,400162411,"1,278.00"
DFID,DFID,07/06/2011,Operating Lease rental of buildings,Palace Street,ROBSON ASSOCIATES,400162412,"1,311,421.00"
DFID,DFID,09/06/2011,Aid Programme - Accountable Grant Payments,DFID China,Simon Fraser University,400162413,926.74
DFID,DFID,08/06/2011,Office Equipment - Purchases,Palace Street,TR Control Solutions Ltd,400162415,921.6
DFID,DFID,08/06/2011,Aid Programme - Other Financial Aid to Government,DFID Afghanistan,THE CROWN AGENTS FOR OVERSEA GOVERNMENTS AND ADMINISTRATIONS LIMITED,400162416,"579,640.09"
DFID,DFID,07/06/2011,Air fares,Chief Economist Office,The Express Travel Group,400162417,56.71
DFID,DFID,07/06/2011,Air fares,HR DFID Initiatives,The Express Travel Group,400162417,774.99
DFID,DFID,07/06/2011,Air fares,DFID Ethiopia,The Express Travel Group,400162417,"2,059.05"
DFID,DFID,07/06/2011,Air fares,Top Management Group,The Express Travel Group,400162417,113.42
DFID,DFID,07/06/2011,Air fares,DFID Ethiopia,The Express Travel Group,400162417,450.84
DFID,DFID,08/06/2011,Technical and Advisory Services,DFID India,INFRASTRUCTURE PROFESSIONALS ENTERPRISE,400162418,"33,820.19"
DFID,DFID,14/06/2011,Technical and Advisory Services,DFID Nigeria,ABT ASSOCIATES INC,400162419,"691,227.35"
DFID,DFID,08/06/2011,Technical and Advisory Services,DFID Afghanistan,Supplier Name Witheld,400162424,"126,588.33"
DFID,DFID,15/06/2011,Aid Programme - Accountable Grant Payments,DFID Kenya, Farm Africa,400162427,"45,841.50"
DFID,DFID,07/06/2011,Technical and Advisory Services,DFID Bangladesh,MAXWELL STAMP PLC,400162429,"26,707.68"
DFID,DFID,08/06/2011,Technical and Advisory Services,DFID India,CHRISTIAN AID,400162431,"80,956.34"
DFID,DFID,07/06/2011,Technical and Advisory Services,DFID Afghanistan,ADAM SMITH INTERNATIONAL  LTD,400162433,"20,352.28"
DFID,DFID,07/06/2011,Aid Programme - Development Awareness Fund payments,Outreach and Stakeholder Relationships,THE CROWN AGENTS FOR OVERSEA GOVERNMENTS AND ADMINISTRATIONS LIMITED,400162435,"5,465.93"
DFID,DFID,07/06/2011,Aid Programme - Accountable Grant Payments,Climate and Environment Group,PROFOREST,400162436,"20,000.00"
DFID,DFID,07/06/2011,Aid Programme - Voluntary contributions,DFID Jerusalem and Palestinian Programme,   UNOPS,400162438,"100,000.00"
DFID,DFID,07/06/2011,Aid Programme - Trust Funds contributions,Director Asia and Regional Team,IBRD (HSBC)  C/O THE WORLD BANK,400162440,"150,000.00"
DFID,DFID,08/06/2011,House rentals,DFID Vietnam,Supplier Name Witheld,400162447,"5,689.17"
DFID,DFID,08/06/2011,Technical and Advisory Services,DFID Pakistan,British Council Pakistan,400162458,"63,689.45"
DFID,DFID,08/06/2011,Technical and Advisory Services,DFID Pakistan,Sarah Saeed,400162461,"2,019.40"
DFID,DFID,08/06/2011,Building Plant - Air Conditioners,DFID Bangladesh,Haroon Engineering Limited,400162472,569.45
DFID,DFID,08/06/2011,Cleaning Costs,DFID Bangladesh,Property Care Services Ltd,400162475,510.06
DFID,DFID,08/06/2011,Other Building Costs,Value for Money,Shred-It Glasgow Limited,400162489,9.84
DFID,DFID,08/06/2011,Other Building Costs,Abercrombie House,Shred-It Glasgow Limited,400162489,44.4
DFID,DFID,08/06/2011,Postage Costs,Internal Audit Department,Shred-It Glasgow Limited,400162489,172.2
DFID,DFID,08/06/2011,Other Building Costs,HR Operations,Shred-It Glasgow Limited,400162489,250.56
DFID,DFID,08/06/2011,Other Building Costs,HR Operations,Shred-It Glasgow Limited,400162489,59.4
DFID,DFID,08/06/2011,Other Building Costs,Procurement Department,Shred-It Glasgow Limited,400162489,24.6
DFID,DFID,09/06/2011,Technical and Advisory Services,DFID India,INFRASTRUCTURE PROFESSIONALS ENTERPRISE,400162495,"16,910.09"
DFID,DFID,08/06/2011,Technical and Advisory Services,DFID Uganda,ADAM SMITH INTERNATIONAL  LTD,400162497,"45,215.13"
DFID,DFID,09/06/2011,Aid Programme - Accountable Grant Payments,Human Development Group,The Carter Center,400162498,"200,000.00"
DFID,DFID,08/06/2011,Technical and Advisory Services,DFID Kenya,WFP Somalia,400162500,"1,219.51"
DFID,DFID,08/06/2011,Air fares,DFID Somalia,WFP Somalia,400162500,609.76
DFID,DFID,08/06/2011,Technical and Advisory Services,DFID Somalia,WFP Somalia,400162500,"3,048.78"
DFID,DFID,17/06/2011,Aid Programme - Accountable Grant Payments,Civil Society Department,IBON FOUNDATION INC,400162503,"31,000.00"
DFID,DFID,13/06/2011,Aid Programme - Other Financial Aid to Government,DFID Nepal,THE CROWN AGENTS FOR OVERSEA GOVERNMENTS AND ADMINISTRATIONS LIMITED,400162506,"484,960.13"
DFID,DFID,08/06/2011,Aid Programme - Accountable Grant Payments,Africa Regional Department, Overseas Development Institute,400162507,"528,956.00"
DFID,DFID,08/06/2011,Aid Programme - Accountable Grant Payments,Outreach and Stakeholder Relationships,CENTRE FOR GLOBAL EDUCATION,400162508,"20,000.00"
DFID,DFID,08/06/2011,Aid Programme - Accountable Grant Payments,DFID Zambia,African Parliamentarians Network Against Corruption,400162512,"41,054.43"
DFID,DFID,09/06/2011,Aid Programme - Accountable Grant Payments,DFID Kenya,EQUITY GROUP FOUNDATION,400162518,"227,690.00"
DFID,DFID,20/06/2011,Air fares,Information Systems Department,Niyibizi General Dealer,400162520,58.5
DFID,DFID,20/06/2011,Air fares,Global Funds Department,Niyibizi General Dealer,400162520,128.24
DFID,DFID,20/06/2011,Other passenger transport,DFID Southern Africa,Niyibizi General Dealer,400162520,236.68
DFID,DFID,20/06/2011,Other passenger transport,DFID Southern Africa,Niyibizi General Dealer,400162520,40.5
DFID,DFID,08/06/2011,Data Network - land lines,Information Systems Department,KUBE NETWORKS LTD,400162522,645.24
DFID,DFID,08/06/2011,Data Network - land lines,Information Systems Department,KUBE NETWORKS LTD,400162522,3.5
DFID,DFID,08/06/2011,Technical and Advisory Services,DFID Southern Africa,Singizi Consulting CC,400162526,"9,138.48"
DFID,DFID,08/06/2011,Taxi costs,Africa Regional Department,Supplier Name Witheld,400162529,26.79
DFID,DFID,08/06/2011,Travel - Subsistence,Africa Regional Department,Supplier Name Witheld,400162529,418
DFID,DFID,08/06/2011,Hotels - Accommodation only,Africa Regional Department,Supplier Name Witheld,400162529,130.8
DFID,DFID,08/06/2011,Technical and Advisory Services,DFID India,CARE INTERNATIONAL,400162530,"127,165.00"
DFID,DFID,08/06/2011,Technical and Advisory Services,DFID India,CARE INTERNATIONAL,400162530,"7,505.07"
DFID,DFID,09/06/2011,Training Providers/Facilitation Services,Trade Policy Unit,Interanalysis Limited,400162532,"77,240.60"
DFID,DFID,09/06/2011,Training Providers/Facilitation Services,Trade Policy Unit,Interanalysis Limited,400162532,"12,110.92"
DFID,DFID,08/06/2011,Water charges,Africa Regional Department,Supplier Name Witheld,400162533,10.94
DFID,DFID,08/06/2011,Mobile telephones & accessories,Africa Regional Department,Supplier Name Witheld,400162533,-39.69
DFID,DFID,08/06/2011,Facilities Management payments,Africa Regional Department,Supplier Name Witheld,400162533,84.83
DFID,DFID,08/06/2011,Electricity,Africa Regional Department,Supplier Name Witheld,400162533,825.94
DFID,DFID,08/06/2011,Medical/Health Services,DFID Zambia,THE CROWN AGENTS FOR OVERSEA GOVERNMENTS AND ADMINISTRATIONS LIMITED,400162534,"5,850.50"
DFID,DFID,08/06/2011,Medical/Health Services,DFID Zambia,THE CROWN AGENTS FOR OVERSEA GOVERNMENTS AND ADMINISTRATIONS LIMITED,400162534,148.79
DFID,DFID,08/06/2011,Technical and Advisory Services,DFID Zimbabwe,GRM INTERNATIONAL LTD,400162535,"71,587.56"
DFID,DFID,08/06/2011,Medical/Health Services,DFID Zambia,THE CROWN AGENTS FOR OVERSEA GOVERNMENTS AND ADMINISTRATIONS LIMITED,400162536,560
DFID,DFID,09/06/2011,Technical and Advisory Services,Information Systems Department,OPIN SYSTEMS LIMITED,400162538,"10,260.00"
DFID,DFID,09/06/2011,Telephone Usage & services,DFID Nigeria,Supplier Name Witheld,400162540,351.62
DFID,DFID,09/06/2011,Telephone Usage & services,DFID Nigeria,Supplier Name Witheld,400162540,74.14
DFID,DFID,09/06/2011,Telephone Usage & services,DFID Nigeria,Supplier Name Witheld,400162540,70.32
DFID,DFID,09/06/2011,Telephone Usage & services,DFID Nigeria,Supplier Name Witheld,400162540,39.07
DFID,DFID,09/06/2011,Telephone Usage & services,DFID Nigeria,Supplier Name Witheld,400162540,5.86
DFID,DFID,09/06/2011,Telephone Usage & services,DFID Nigeria,Supplier Name Witheld,400162540,78.14
DFID,DFID,08/06/2011,Air fares,HR DFID Initiatives,Supplier Name Witheld,400162542,"1,298.18"
DFID,DFID,08/06/2011,Hotels - Accommodation only,HR DFID Initiatives,Supplier Name Witheld,400162542,65
DFID,DFID,08/06/2011,Taxi costs,HR DFID Initiatives,Supplier Name Witheld,400162542,58.5
DFID,DFID,08/06/2011,Travel - Subsistence,HR DFID Initiatives,Supplier Name Witheld,400162542,12.53
DFID,DFID,08/06/2011,Aid Programme - Accountable Grant Payments,Civil Society Department,KPMG DEVELOPMENT SERVICE,400162550,"445,718.12"
DFID,DFID,08/06/2011,Technical and Advisory Services,DFID Mozambique,Inalcidia Abilio Dos Santos Araujo,400162551,"7,012.20"
DFID,DFID,08/06/2011,Aid Programme - Accountable Grant Payments,Civil Society Department,KPMG DEVELOPMENT SERVICE,400162552,"489,058.30"
DFID,DFID,08/06/2011,Technical and Advisory Services,DFID Sierra Leone and Liberia,HENRY VAGG,400162553,"1,491.94"
DFID,DFID,09/06/2011,Electricity,Abercrombie House,EDF ENERGY,400162554,"13,315.90"
DFID,DFID,09/06/2011,Aid Programme - Accountable Grant Payments,DFID Somalia,PACT INC,400162556,"150,000.00"
DFID,DFID,09/06/2011,Technical and Advisory Services,Stabilisation Unit,HOME OFFICE,400162557,"36,694.69"
DFID,DFID,09/06/2011,Technical and Advisory Services,Stabilisation Unit,HOME OFFICE,400162558,"27,274.38"
DFID,DFID,08/06/2011,Aid Programme - Accountable Grant Payments,Africa Regional Department,THE SAVE THE CHILDREN FUND,400162560,"1,106,511.00"
DFID,DFID,13/06/2011,Aid Programme - Accountable Grant Payments,DFID Pakistan,INTERNATIONAL RESCUE COMMITTEE UK,400162561,"128,706.00"
DFID,DFID,08/06/2011,Postage Costs,Palace Street,PITNEY BOWES (RECREDIT FRANKING M/C),400162562,"1,000.00"
DFID,DFID,09/06/2011,Aid Programme - Accountable Grant Payments,Europe Department,EAST WEST MANAGEMENT INSTITUTE,400162565,"71,153.00"
DFID,DFID,09/06/2011,Technical and Advisory Services,DFID India,ERNST &  YOUNG PRIVATE LTD,400162566,"31,399.39"
DFID,DFID,09/06/2011,Technical and Advisory Services,DFID India,ERNST &  YOUNG PRIVATE LTD,400162580,"31,399.39"
DFID,DFID,09/06/2011,Technical and Advisory Services,DFID India,ERNST &  YOUNG PRIVATE LTD,400162581,"31,399.39"
DFID,DFID,09/06/2011,Technical and Advisory Services,DFID India,ERNST &  YOUNG PRIVATE LTD,400162582,"31,399.39"
DFID,DFID,09/06/2011,Technical and Advisory Services,DFID India,ERNST &  YOUNG PRIVATE LTD,400162583,"31,399.39"
DFID,DFID,09/06/2011,Technical and Advisory Services,DFID India,ERNST &  YOUNG PRIVATE LTD,400162585,"73,264.26"
DFID,DFID,09/06/2011,Technical and Advisory Services,DFID India,ERNST &  YOUNG PRIVATE LTD,400162588,"31,399.39"
DFID,DFID,13/06/2011,Data Network - land lines,Information Systems Department,KUBE NETWORKS LTD,400162589,"1,879.52"
DFID,DFID,13/06/2011,Data Network - land lines,Information Systems Department,KUBE NETWORKS LTD,400162589,3.5
DFID,DFID,09/06/2011,Other travel costs,Stabilisation Unit,Supplier Name Witheld,400162590,936.7
DFID,DFID,09/06/2011,Technical and Advisory Services,DFID India,ERNST &  YOUNG PRIVATE LTD,400162591,"146,527.52"
DFID,DFID,08/06/2011,Aid Programme - Accountable Grant Payments,DFID Sudan,TEARFUND,400162592,"363,156.00"
DFID,DFID,08/06/2011,Aid Programme - Development Awareness Fund payments,Outreach and Stakeholder Relationships,THE CROWN AGENTS FOR OVERSEA GOVERNMENTS AND ADMINISTRATIONS LIMITED,400162595,"46,665.69"
DFID,DFID,09/06/2011,Technical and Advisory Services,DFID India,ERNST &  YOUNG PRIVATE LTD,400162597,"31,399.39"
DFID,DFID,09/06/2011,Technical and Advisory Services,DFID India,ERNST &  YOUNG PRIVATE LTD,400162598,"31,399.39"
DFID,DFID,10/06/2011,Technical and Advisory Services,DFID Zambia,COFFEY INTERNATIONAL DEVELOPMENT LTD,400162600,"6,752.72"
DFID,DFID,09/06/2011,Hotels - Accommodation only,DFID Ethiopia,Boston Lodge PLC,400162601,"3,934.88"
DFID,DFID,08/06/2011,Aid Programme - Development Awareness Fund payments,Outreach and Stakeholder Relationships,THE CROWN AGENTS FOR OVERSEA GOVERNMENTS AND ADMINISTRATIONS LIMITED,400162604,"82,749.68"
DFID,DFID,10/06/2011,Mobile telephones & accessories,DFID Sierra Leone and Liberia,Airtel (SL) Ltd,400162608,407.07
DFID,DFID,10/06/2011,Mobile telephones & accessories,DFID Sierra Leone and Liberia,Airtel (SL) Ltd,400162608,271.38
DFID,DFID,08/06/2011,Technical and Advisory Services,Stabilisation Unit,Recon Ltd,400162610,"2,174.40"
DFID,DFID,08/06/2011,Technical and Advisory Services,Stabilisation Unit,Recon Ltd,400162610,117.92
DFID,DFID,08/06/2011,Aid Programme - Other Financial Aid to Government,Overseas Territories Department,THE CROWN AGENTS FOR OVERSEA GOVERNMENTS AND ADMINISTRATIONS LIMITED,400162618,"3,095,000.00"
DFID,DFID,08/06/2011,Aid Programme - Other Financial Aid to Government,Overseas Territories Department,THE CROWN AGENTS FOR OVERSEA GOVERNMENTS AND ADMINISTRATIONS LIMITED,400162618,"185,000.00"
DFID,DFID,09/06/2011,Aid Programme - Accountable Grant Payments,Trade Policy Unit,INTERNATIONAL INSTITUTE FOR SUSTAINABLE DEVELOPMENT ,400162619,"59,591.00"
DFID,DFID,10/06/2011,Training - Course Fees,Governance and Social Development Group,NATIONAL SCHOOL OF GOVERNMENT,400162620,900
DFID,DFID,08/06/2011,Technical and Advisory Services,DFID Nigeria,THE CROWN AGENTS FOR OVERSEA GOVERNMENTS AND ADMINISTRATIONS LIMITED,400162621,"4,405.58"
DFID,DFID,08/06/2011,Contraceptives,DFID Nigeria,THE CROWN AGENTS FOR OVERSEA GOVERNMENTS AND ADMINISTRATIONS LIMITED,400162621,"151,916.67"
DFID,DFID,08/06/2011,Contraceptives,DFID Nigeria,THE CROWN AGENTS FOR OVERSEA GOVERNMENTS AND ADMINISTRATIONS LIMITED,400162622,"60,806.38"
DFID,DFID,08/06/2011,Technical and Advisory Services,DFID Nigeria,THE CROWN AGENTS FOR OVERSEA GOVERNMENTS AND ADMINISTRATIONS LIMITED,400162622,"1,763.39"
DFID,DFID,09/06/2011,Aid Programme - Accountable Grant Payments,DFID Zimbabwe,The Research Institute of the McGill University Health Centre,400162623,"526,103.93"
DFID,DFID,08/06/2011,Aid Programme - Other Financial Aid to Government,DFID Malawi,THE CROWN AGENTS FOR OVERSEA GOVERNMENTS AND ADMINISTRATIONS LIMITED,400162624,"165,000.00"
DFID,DFID,08/06/2011,Technical and Advisory Services,DFID Jerusalem and Palestinian Programme,Valsa Shah Consulting,400162627,"4,500.00"
DFID,DFID,09/06/2011,Technical and Advisory Services,Overseas Territories Department, JOHN MURPHY,400162629,"6,982.42"
DFID,DFID,08/06/2011,Technical and Advisory Services,Stabilisation Unit,Supplier Name Witheld,400162630,"2,268.00"
DFID,DFID,08/06/2011,Technical and Advisory Services,Stabilisation Unit,Supplier Name Witheld,400162631,"1,134.00"
DFID,DFID,08/06/2011,Technical and Advisory Services,Stabilisation Unit,Supplier Name Witheld,400162632,"1,134.00"
DFID,DFID,08/06/2011,Technical and Advisory Services,Research and Evidence,CAB INTERNATIONAL,400162638,"17,948.42"
DFID,DFID,08/06/2011,Technical and Advisory Services,Research and Evidence,CAB INTERNATIONAL,400162638,"57,833.42"
DFID,DFID,08/06/2011,Technical and Advisory Services,DFID Nigeria,MALARIA CONSORTIUM,400162640,"273,884.00"
DFID,DFID,09/06/2011,Technical and Advisory Services,DFID India,SUNIL VIJAY & ASSOCIATES,400162649,951.91
DFID,DFID,09/06/2011,Technical and Advisory Services,DFID Nepal,Print Point Publishing,400162650,"8,063.50"
DFID,DFID,09/06/2011,Air fares,DFID Nepal,Jaya Travels & Tours Ltd,400162654,686.13
DFID,DFID,09/06/2011,Hotels - Accommodation only,DFID Nepal,Summit Hotel Pvt Ltd,400162662,"2,194.71"
DFID,DFID,09/06/2011,Furniture & Fittings,DFID Zambia,Universal Fire Fighting Equipment Limited (ZMK),400162665,517.13
DFID,DFID,09/06/2011,Furniture & Fittings,DFID Zambia,Dzitandizeni Trades School,400162667,780.22
DFID,DFID,09/06/2011,Technical and Advisory Services,DFID Zimbabwe,Great Minds Consultancy Group,400162678,"8,920.73"
DFID,DFID,10/06/2011,Technical and Advisory Services,DFID Zambia,JAN PRIEBE,400162683,"7,065.50"
DFID,DFID,09/06/2011,Air fares,Europe Department,FIESA,400162688,"28,745.12"
DFID,DFID,09/06/2011,Technical and Advisory Services,DFID Kosovo,REPIM,400162696,"14,602.32"
DFID,DFID,13/06/2011,Technical and Advisory Services,DFID Kenya,Supplier Name Witheld,400162699,"28,270.88"
DFID,DFID,13/06/2011,Technical and Advisory Services,DFID Somalia,Supplier Name Witheld,400162699,"25,000.00"
DFID,DFID,10/06/2011,Electricity,DFID Zimbabwe,ZESA,400162703,96.66
DFID,DFID,10/06/2011,Electricity,DFID Zimbabwe,ZESA,400162703,147.27
DFID,DFID,10/06/2011,Electricity,DFID Zimbabwe,ZESA,400162703,720.35
DFID,DFID,10/06/2011,Technical and Advisory Services,DFID Mozambique,DANA Agency,400162712,"6,342.27"
DFID,DFID,09/06/2011,Data Network - land lines,Information Systems Department,Telkom SA Ltd,400162714,"1,914.52"
DFID,DFID,13/06/2011,Technical and Advisory Services,Procurement Department,MICHAEL PAGE INTERNATIONAL RECRUITMENT LIMITED,400162715,"1,170.15"
DFID,DFID,09/06/2011,Technical and Advisory Services,DFID Rwanda,ITAD LTD,400162717,"11,285.03"
DFID,DFID,09/06/2011,Training - Course Fees,DFID Mozambique,"ANARKALY,LDA",400162719,867.98
DFID,DFID,14/06/2011,Technical and Advisory Services,DFID Afghanistan,Supplier Name Witheld,400162720,"1,625.52"
DFID,DFID,09/06/2011,Recruitment costs,HR DFID Initiatives,British Airways Ltd,400162725,939.78
DFID,DFID,09/06/2011,Air fares,Research and Evidence,British Airways Ltd,400162726,"3,060.18"
DFID,DFID,09/06/2011,Aid Programme - Accountable Grant Payments,DFID Sierra Leone and Liberia,National Election Watch,400162732,"111,068.29"
DFID,DFID,09/06/2011,Electricity,DFID India,BSES RAJDHANI POWER LIMITED,400162736,"6,878.45"
DFID,DFID,09/06/2011,Air fares,DFID Nigeria,recipient withheld,400162742,77.36
DFID,DFID,09/06/2011,Air fares,DFID Nigeria,recipient withheld,400162742,116.07
DFID,DFID,09/06/2011,Air fares,DFID Nigeria,recipient withheld,400162742,232.15
DFID,DFID,09/06/2011,Air fares,DFID Nigeria,recipient withheld,400162742,36.22
DFID,DFID,09/06/2011,Air fares,DFID Nigeria,recipient withheld,400162742,77.36
DFID,DFID,09/06/2011,Training Providers/Facilitation Services,DFID Tanzania,THE SPRINGFIELD CENTRE,400162744,"3,720.00"
DFID,DFID,14/06/2011,Aid Programme - Voluntary contributions,United Nations and Commonwealth Dept (UNCD),UNDP MULTI-DONOR TRUST FUND OFFICE (USD) ACCOUNT,400162752,"15,000,000.00"
DFID,DFID,14/06/2011,Technical and Advisory Services,Climate and Environment Group,THE IDL GROUP,400162754,"28,273.81"
DFID,DFID,13/06/2011,House rentals,DFID Somalia,Daly & Figgis Advocates,400162757,867.87
DFID,DFID,14/06/2011,Technical and Advisory Services,DFID India,GHK CONSULTING LTD,400162758,"82,780.00"
DFID,DFID,09/06/2011,Technical and Advisory Services,Private Sector Department,Nathan Associates London Ltd,400162760,"4,896.08"
DFID,DFID,09/06/2011,Recruitment costs,HR DFID Initiatives,SHL Group LTD,400162764,729.6
DFID,DFID,10/06/2011,Computer hardware maintenance,Information Systems Department,Rufus Leonard Ltd,400162767,"1,020.00"
DFID,DFID,10/06/2011,Computer software maintenance,Information Systems Department,Rufus Leonard Ltd,400162768,"4,568.00"
DFID,DFID,16/06/2011,Aid Programme - Trust Funds contributions,DFID India,UNDP (India),400162770,"400,000.00"
DFID,DFID,09/06/2011,Aid Programme - Accountable Grant Payments,Growth and Investment Group,Tax Justice Network International Secretariat Limited,400162782,"18,653.87"
DFID,DFID,10/06/2011,Aid Programme - Core contributions,Research and Evidence,CORAF/WECARD,400162784,"1,250,000.00"
DFID,DFID,16/06/2011,Aid Programme - Accountable Grant Payments,"Middle East, North Africa Advisory and Corporate (MENARC)",Carnegie Endowment for International Peace,400162790,"162,500.00"
DFID,DFID,10/06/2011,Data Network - land lines,Information Systems Department,VERIZON UK LIMITED,400162791,"7,712.40"
DFID,DFID,09/06/2011,Technical and Advisory Services,Stabilisation Unit,Ministry of Justice,400162793,"6,089.07"
DFID,DFID,09/06/2011,Telephone Usage & services,DFID Zimbabwe,ECONET,400162794,639.53
DFID,DFID,09/06/2011,Telephone Usage & services,DFID Zimbabwe,ECONET,400162794,822.25
DFID,DFID,10/06/2011,Technical and Advisory Services,Overseas Territories Department,Sea and Shore Projects (Pty) Ltd,400162799,"100,109.77"
DFID,DFID,09/06/2011,Hotels - Accommodation only,DFID Pakistan,PEARL CONTINENTAL HOTEL LAHORE,400162802,"2,897.26"
DFID,DFID,09/06/2011,Hotels - Accommodation only,DFID Pakistan,PEARL CONTINENTAL HOTEL MUZAFFARABAD,400162805,510.47
DFID,DFID,09/06/2011,Storage & Distribution costs,Information Systems Department,TNT Express (UK) Ltd,400162807,"8,449.37"
DFID,DFID,09/06/2011,Hotels - Accommodation only,DFID Pakistan,PEARL CONTINENTAL HOTEL LAHORE,400162809,883.25
DFID,DFID,09/06/2011,Data Network - land lines,DFID DRC,MICRO COM Sprl,400162820,971.95
DFID,DFID,09/06/2011,Storage & Distribution costs,Information Systems Department,TNT Express (UK) Ltd,400162821,"21,320.10"
DFID,DFID,09/06/2011,Cleaning Costs,DFID Malawi,Royal Oak,400162822,433.35
DFID,DFID,09/06/2011,Cleaning Costs,DFID Malawi,Royal Oak,400162822,177
DFID,DFID,14/06/2011,Technical and Advisory Services,DFID Pakistan,OXFORD POLICY MANAGEMENT,400162828,"49,965.50"
DFID,DFID,14/06/2011,Technical and Advisory Services,DFID Pakistan,OXFORD POLICY MANAGEMENT,400162828,"7,674.25"
DFID,DFID,09/06/2011,Printer Consumables,DFID DRC,MFI OFFICE SOLUTIONS S.P.R.L.,400162829,"2,780.49"
DFID,DFID,15/06/2011,Recruitment costs,HR DFID Initiatives,Supplier Name Witheld,400162831,"2,180.98"
DFID,DFID,13/06/2011,Telephone Usage & services,Stabilisation Unit,SPECTRA  GROUP UK LTD,400162833,"24,077.92"
DFID,DFID,13/06/2011,Training Providers/Facilitation Services,Internal Audit Department,INSTITUTE OF INTERNAL AUDITORS-UK,400162836,900
DFID,DFID,10/06/2011,Interview expenses,HR DFID Initiatives,Supplier Name Witheld,400162838,891.82
DFID,DFID,09/06/2011,Data Network -Satellite,Information Systems Department,COLT TELECOMMUNICATIONS,400162843,"1,125.00"
DFID,DFID,09/06/2011,Hotels - Accommodation only,DFID Ghana,The Golden Tulip Hotel,400162846,324.59
DFID,DFID,09/06/2011,Hotels - Accommodation only,DFID Ghana,The Golden Tulip Hotel,400162846,745.86
DFID,DFID,09/06/2011,Technical and Advisory Services,DFID Nigeria,ADAM SMITH INTERNATIONAL  LTD,400162850,"781,489.68"
DFID,DFID,09/06/2011,Data network- remote working,Information Systems Department,Ghana Telecommunications Company Ltd,400162854,"2,996.37"
DFID,DFID,13/06/2011,Technical and Advisory Services,DFID India,ADAM SMITH INTERNATIONAL  LTD,400162855,"28,175.55"
DFID,DFID,15/06/2011,Legal costs,Procurement Department,THE CROWN AGENTS FOR OVERSEA GOVERNMENTS AND ADMINISTRATIONS LIMITED,400162861,"4,130.40"
DFID,DFID,10/06/2011,Mobile telephones & accessories,DFID Sierra Leone and Liberia,Airtel (SL) Ltd,400162862,279.45
DFID,DFID,10/06/2011,Mobile telephones & accessories,DFID Sierra Leone and Liberia,Airtel (SL) Ltd,400162862,419.17
DFID,DFID,09/06/2011,Facilities Management payments,DFID Sierra Leone and Liberia,Abraham A O Olabode,400162867,"1,219.46"
DFID,DFID,10/06/2011,Reproduction & Printing Materials,DFID Southern Africa,Bula Document Solutions,400162876,688.38
DFID,DFID,10/06/2011,Reproduction & Printing Materials,DFID Southern Africa,Bula Document Solutions,400162876,295.02
DFID,DFID,10/06/2011,Technical and Advisory Services,DFID Zambia,ISIS GADDIS,400162897,"6,179.25"
DFID,DFID,10/06/2011,Technical and Advisory Services,Civil Society Department,Triple Line Consulting Limited,400162904,"9,922.86"
DFID,DFID,10/06/2011,Technical and Advisory Services,Civil Society Department,Triple Line Consulting Limited,400162904,"18,387.58"
DFID,DFID,10/06/2011,Training - Travel & Subsistence,DFID DRC,Jeffery Travels,400162906,967.07
DFID,DFID,10/06/2011,Technical and Advisory Services,Private Sector Department,PRICEWATERHOUSECOOPERS,400162910,"24,419.72"
DFID,DFID,10/06/2011,Technical and Advisory Services,DFID DRC,Maria Schwab p/c CFPA,400162913,"1,085.37"
DFID,DFID,10/06/2011,Technical and Advisory Services,DFID Nigeria,HTSPE LTD,400162920,"91,932.82"
DFID,DFID,10/06/2011,Technical and Advisory Services,DFID Nigeria,ADAM SMITH INTERNATIONAL  LTD,400162927,"66,820.25"
DFID,DFID,16/06/2011,Aid Programme - Accountable Grant Payments,DFID Ghana,Nature Conservation Research Centre,400162933,"210,713.75"
DFID,DFID,13/06/2011,Technical and Advisory Services,DFID Pakistan,HLSP LIMITED,400162934,"46,483.44"
DFID,DFID,10/06/2011,Technical and Advisory Services,DFID Jerusalem and Palestinian Programme,DAI EUROPE LIMITED,400162936,"16,898.21"
DFID,DFID,10/06/2011,Technical and Advisory Services,Outreach and Stakeholder Relationships,BRITISH COUNCIL,400162942,"13,038.01"
DFID,DFID,10/06/2011,Medical/Health Services,DFID Zambia,THE CROWN AGENTS FOR OVERSEA GOVERNMENTS AND ADMINISTRATIONS LIMITED,400162944,"31,946.00"
DFID,DFID,10/06/2011,Medical/Health Services,DFID Zambia,THE CROWN AGENTS FOR OVERSEA GOVERNMENTS AND ADMINISTRATIONS LIMITED,400162944,908.45
DFID,DFID,10/06/2011,Technical and Advisory Services,DFID DRC,BRITISH COUNCIL,400162947,"20,027.39"
DFID,DFID,10/06/2011,Technical and Advisory Services,DFID Nepal,HTSPE LTD,400162950,"11,792.10"
DFID,DFID,13/06/2011,Aid Programme - Accountable Grant Payments,DFID Nigeria,A A PeaceWorks,400162955,"38,715.52"
DFID,DFID,10/06/2011,Hotels - Accommodation only,DFID DRC,Grand Hotel,400162965,817.38
DFID,DFID,10/06/2011,Computer software maintenance,DFID Southern Africa,Incredible  Connections,400162968,913.52
DFID,DFID,10/06/2011,Aid Programme - Voluntary contributions,DFID DRC, UNICEF,400162969,"1,250,000.00"
DFID,DFID,10/06/2011,Air fares,United Nations and Commonwealth Dept (UNCD),Bon Voyage Travel Centre Ltd(USD),400162970,725.61
DFID,DFID,13/06/2011,Aid Programme - Accountable Grant Payments,DFID Nigeria,WEST AFRICAN NGO NETWORK,400162976,"84,052.00"
DFID,DFID,17/06/2011,Aid Programme - Accountable Grant Payments,Director Asia and Regional Team,ACCESS HEALTH INTERNATIONAL,400162981,"20,232.00"
DFID,DFID,14/06/2011,Technical and Advisory Services,Africa Regional Department,HLSP LIMITED,400162987,"5,106.00"
DFID,DFID,15/06/2011,Aid Programme - Joint programme contribution,DFID Tajikistan,GTZ GmBH Eschborn,400162990,"1,000,000.00"
DFID,DFID,14/06/2011,Technical and Advisory Services,DFID Southern Africa,ONE WORLD,400162991,"70,020.00"
DFID,DFID,14/06/2011,Technical and Advisory Services,DFID Southern Africa,ONE WORLD,400162993,"17,813.00"
DFID,DFID,14/06/2011,Technical and Advisory Services,DFID Southern Africa,ONE WORLD,400162994,"20,580.00"
DFID,DFID,14/06/2011,Technical and Advisory Services,DFID Southern Africa,ONE WORLD,400162996,"83,079.00"
DFID,DFID,13/06/2011,Technical and Advisory Services,DFID Pakistan,HTSPE LTD,400162997,"23,973.74"
DFID,DFID,10/06/2011,Technical and Advisory Services,DFID Nigeria,Cambridge  Education Limited,400163013,"1,230,324.53"
DFID,DFID,10/06/2011,Technical and Advisory Services,Research and Evidence,HTSPE LTD,400163015,"16,214.11"
DFID,DFID,10/06/2011,Aid Programme - Other Financial Aid to Government,DFID India,THE CROWN AGENTS FOR OVERSEA GOVERNMENTS AND ADMINISTRATIONS LIMITED,400163017,"170,378.78"
DFID,DFID,10/06/2011,Technical and Advisory Services,DFID Nigeria,HTSPE LTD,400163018,"461,884.85"
DFID,DFID,13/06/2011,Further Education costs,DFID Nigeria,University Of Leicester,400163021,"1,243.68"
DFID,DFID,10/06/2011,Recruitment costs,HR DFID Initiatives,MTB CONSULTING,400163026,"1,482.00"
DFID,DFID,13/06/2011,Consultancy Services,Procurement Department,Unit 4,400163029,"2,863.42"
DFID,DFID,10/06/2011,Technical and Advisory Services,News Team,Precise Media,400163033,"2,640.00"
DFID,DFID,13/06/2011,Aid Programme - Core contributions,DFID Zambia,UNAIDS,400163034,"190,000.00"
DFID,DFID,10/06/2011,Technical and Advisory Services,Stabilisation Unit,Ministry of Justice,400163035,"6,091.06"
DFID,DFID,21/06/2011,Technical and Advisory Services,DFID Mozambique,COFFEY INTERNATIONAL DEVELOPMENT LTD,400163036,"2,155.86"
DFID,DFID,15/06/2011,Technical and Advisory Services,"Conflict, Humanitarian and Security Department",COFFEY INTERNATIONAL DEVELOPMENT LTD,400163039,"15,698.58"
DFID,DFID,10/06/2011,Aid Programme - Partnership Programme Arrangements,DFID Sudan,OVERSEAS DEVELOPMENT INSTITUTE,400163040,"25,700.00"
DFID,DFID,10/06/2011,Technical and Advisory Services,Stabilisation Unit,Ministry of Justice,400163041,"22,335.86"
DFID,DFID,10/06/2011,Technical and Advisory Services,DFID Mozambique,Joe Cavanagh,400163044,"4,390.24"
DFID,DFID,10/06/2011,Technical and Advisory Services,HR DFID Initiatives,rpmi,400163045,"1,548.00"
DFID,DFID,10/06/2011,Aid Programme - Accountable Grant Payments,DFID Sierra Leone and Liberia,MARIE STOPES INTERNATIONAL,400163047,"482,183.00"
DFID,DFID,14/06/2011,Air fares,DFID India,KUONI BUSINESS TRAVEL INDIA PVT LTD,400163082,"1,158.91"
DFID,DFID,13/06/2011,Technical and Advisory Services,DFID Nepal,Rajendra Niraula,400163091,430.94
DFID,DFID,13/06/2011,Technical and Advisory Services,DFID Nepal,Rajendra Niraula,400163091,430.94
DFID,DFID,13/06/2011,Technical and Advisory Services,DFID Nepal,Rajendra Niraula,400163091,430.94
DFID,DFID,13/06/2011,Technical and Advisory Services,DFID Nepal,Rajendra Niraula,400163091,430.94
DFID,DFID,13/06/2011,"Conferences, Seminars & Meeting/Event Resource",DFID Pakistan,The Aga Khan University,400163094,"12,426.29"
DFID,DFID,14/06/2011,Air fares,DFID Bangladesh,MAF-Sweden Air Support,400163099,"1,493.98"
DFID,DFID,13/06/2011,Technical and Advisory Services,DFID Bangladesh,Md. Muttaleb,400163100,"3,912.27"
DFID,DFID,13/06/2011,Mobile telephones & accessories,DFID Mozambique,MCell,400163110,262.83
DFID,DFID,13/06/2011,Mobile telephones & accessories,DFID Mozambique,MCell,400163110,841.82
DFID,DFID,13/06/2011,Mobile telephones & accessories,DFID Mozambique,MCell,400163110,287.1
DFID,DFID,14/06/2011,Aid Programme - Accountable Grant Payments,DFID Afghanistan,Supplier Name Witheld,400163115,"247,466.37"
DFID,DFID,13/06/2011,Air fares,DFID Nepal,Jaya Travels & Tours Pvt Ltd. (US$),400163121,778.19
DFID,DFID,13/06/2011,Oil - Other Utilities,DFID Nigeria,Power Holding co of Nigeria,400163136,457.2
DFID,DFID,13/06/2011,Oil - Other Utilities,DFID Nigeria,Power Holding co of Nigeria,400163136,374.07
DFID,DFID,13/06/2011,Technical and Advisory Services,DFID Zimbabwe,LIVERPOOL ASSOCIATES IN TROP. HEALTH,400163137,"84,133.01"
DFID,DFID,16/06/2011,Aid Programme - Accountable Grant Payments,DFID India,ActionAid India,400163138,"36,510.74"
DFID,DFID,16/06/2011,Aid Programme - Accountable Grant Payments,DFID India,ActionAid India,400163138,"126,909.47"
DFID,DFID,13/06/2011,Aid Programme - Partnership Programme Arrangements,Civil Society Department,COMIC RELIEF,400163158,"706,167.00"
DFID,DFID,28/06/2011,Training Providers/Facilitation Services,Evaluation Department,CARLETON UNIVERSITY,400163162,"4,163.38"
DFID,DFID,13/06/2011,Technical and Advisory Services,Research and Evidence,SAFERWORLD,400163164,"5,525.00"
DFID,DFID,13/06/2011,Technical and Advisory Services,Research and Evidence,ATTENDA LIMITED,400163166,"1,584.00"
DFID,DFID,13/06/2011,Technical and Advisory Services,Research and Evidence,ATTENDA LIMITED,400163166,660
DFID,DFID,14/06/2011,Research & Development costs,Research and Evidence,International Development UEA,400163170,"12,097.19"
DFID,DFID,13/06/2011,Technical and Advisory Services,Procurement Department,MICHAEL PAGE INTERNATIONAL RECRUITMENT LIMITED,400163175,"1,170.15"
DFID,DFID,14/06/2011,Educational Supplies/Aids,DFID Bangladesh,THE CROWN AGENTS FOR OVERSEA GOVERNMENTS AND ADMINISTRATIONS LIMITED,400163176,"8,343.45"
DFID,DFID,28/06/2011,Training Providers/Facilitation Services,Evaluation Department,CARLETON UNIVERSITY,400163183,"2,036.69"
DFID,DFID,13/06/2011,Office Equipment - Purchases,DFID Nepal,Novel International Pvt. Ltd.,400163184,809.43
DFID,DFID,13/06/2011,Office Equipment - Purchases,DFID Nepal,Novel International Pvt. Ltd.,400163184,435.85
DFID,DFID,13/06/2011,Technical and Advisory Services,DFID Nigeria,THE CROWN AGENTS FOR OVERSEA GOVERNMENTS AND ADMINISTRATIONS LIMITED,400163188,250
DFID,DFID,13/06/2011,Office Equipment - Purchases,DFID Nigeria,THE CROWN AGENTS FOR OVERSEA GOVERNMENTS AND ADMINISTRATIONS LIMITED,400163188,"7,297.11"
DFID,DFID,14/06/2011,Technical and Advisory Services,Africa Regional Department,HTSPE LTD,400163191,"10,436.41"
DFID,DFID,13/06/2011,Storage & Distribution costs,Stabilisation Unit,Crown Agents Bank,400163195,"86,458.40"
DFID,DFID,13/06/2011,Storage & Distribution costs,Stabilisation Unit,Crown Agents Bank,400163195,"2,860.32"
DFID,DFID,24/06/2011,Air fares,DFID Kenya,BCD Travel (USD),400163200,678.06
DFID,DFID,24/06/2011,Air fares,DFID Kenya,BCD Travel (USD),400163200,317.08
DFID,DFID,24/06/2011,Air fares,DFID Kenya,BCD Travel (USD),400163200,64.64
DFID,DFID,24/06/2011,Training - Travel & Subsistence,DFID Kenya,BCD Travel (USD),400163200,218.3
DFID,DFID,24/06/2011,Air fares,DFID Kenya,BCD Travel (USD),400163200,165.25
DFID,DFID,24/06/2011,Air fares,Governance and Social Development Group,BCD Travel (USD),400163200,360.37
DFID,DFID,24/06/2011,Air fares,Africa Regional Department,BCD Travel (USD),400163200,721.96
DFID,DFID,24/06/2011,Air fares,Africa Regional Department,BCD Travel (USD),400163200,359.15
DFID,DFID,24/06/2011,Air fares,Africa Regional Department,BCD Travel (USD),400163200,149.39
DFID,DFID,14/06/2011,Technical and Advisory Services,DFID Nepal,ERNST &  YOUNG PRIVATE LTD,400163201,"3,093.75"
DFID,DFID,14/06/2011,Technical and Advisory Services,DFID Nepal,ERNST &  YOUNG PRIVATE LTD,400163201,"3,093.75"
DFID,DFID,14/06/2011,Technical and Advisory Services,DFID Nepal,ERNST &  YOUNG PRIVATE LTD,400163201,"3,093.75"
DFID,DFID,14/06/2011,Technical and Advisory Services,DFID Nepal,ERNST &  YOUNG PRIVATE LTD,400163201,"3,093.75"
DFID,DFID,14/06/2011,Recruitment costs,HR DFID Initiatives,Supplier Name Witheld,400163210,740.43
DFID,DFID,14/06/2011,Air fares,Asia Division London,Saimon Overseas Ltd,400163210,"1,174.20"
DFID,DFID,14/06/2011,Air fares,DFID Bangladesh,Saimon Overseas Ltd,400163210,78.18
DFID,DFID,14/06/2011,Air fares,DFID Bangladesh,Saimon Overseas Ltd,400163210,"1,402.42"
DFID,DFID,15/06/2011,Technical and Advisory Services,DFID China,SIMON ZADEK,400163214,"6,000.00"
DFID,DFID,13/06/2011,Technical and Advisory Services,DFID Afghanistan,Supplier Name Witheld,400163217,"18,469.69"
DFID,DFID,13/06/2011,Aid Programme - Other Financial Aid to Government,DFID Ghana,THE CROWN AGENTS FOR OVERSEA GOVERNMENTS AND ADMINISTRATIONS LIMITED,400163222,"183,333.33"
DFID,DFID,14/06/2011,Facilities Management payments,DFID Nigeria,Design Plus,400163224,"1,124.50"
DFID,DFID,14/06/2011,Aid Programme - Accountable Grant Payments,DFID DRC,Action Against Hunger - USA,400163228,"192,838.80"
DFID,DFID,13/06/2011,Facilities Management payments,DFID Nigeria,Nornit Limited,400163229,980.87
DFID,DFID,13/06/2011,Technical and Advisory Services,Human Development Group,HLSP LIMITED,400163230,"2,574.99"
DFID,DFID,15/06/2011,Technical and Advisory Services,DFID India,GHK CONSULTING LTD,400163231,"35,070.00"
DFID,DFID,15/06/2011,Technical and Advisory Services,PRD Cabinet,WSP INTERNATIONAL LIMITED,400163233,"17,766.46"
DFID,DFID,13/06/2011,Technical and Advisory Services,DFID Kenya,HTSPE LTD,400163237,"21,755.63"
DFID,DFID,13/06/2011,Facilities Management payments,DFID Nigeria,Abdullahi Tukur Zango,400163242,650.69
DFID,DFID,13/06/2011,Technical and Advisory Services,DFID Afghanistan,Supplier Name Witheld,400163244,"57,247.78"
DFID,DFID,14/06/2011,Oil - Other Utilities,DFID Nigeria,ADAJI Petroleum,400163245,"4,919.09"
DFID,DFID,14/06/2011,House rentals,DFID Ghana,Supplier Name Witheld,400163247,"6,424.95"
DFID,DFID,13/06/2011,Technical and Advisory Services,DFID Nigeria,HEALTH PARTNERS INTERNATIONAL,400163249,"119,088.59"
DFID,DFID,14/06/2011,Consultancy Services,Outreach and Stakeholder Relationships,TRIPLE LINE CONSULTING LTD,400163250,"1,787.50"
DFID,DFID,14/06/2011,Technical and Advisory Services,Outreach and Stakeholder Relationships,TRIPLE LINE CONSULTING LTD,400163250,"9,862.75"
DFID,DFID,13/06/2011,Technical and Advisory Services,Information Systems Department,OPIN SYSTEMS LIMITED,400163251,840
DFID,DFID,14/06/2011,Operating Lease rental of buildings,DFID Southern Africa,Vukile Property Fund Ltd,400163255,"12,008.75"
DFID,DFID,14/06/2011,Operating Lease rental of buildings,DFID Southern Africa,Vukile Property Fund Ltd,400163255,"5,146.61"
DFID,DFID,14/06/2011,Aid Programme - Accountable Grant Payments,DFID Kosovo,University of Sarajevo,400163261,"8,680.67"
DFID,DFID,13/06/2011,Facilities Management payments,DFID Ghana,Multichoice Ghana Limited ,400163267,297.21
DFID,DFID,13/06/2011,Facilities Management payments,DFID Ghana,Multichoice Ghana Limited ,400163267,233.53
DFID,DFID,13/06/2011,Technical and Advisory Services,DFID Mozambique,"ANARKALY,LDA",400163275,522.6
DFID,DFID,22/06/2011,Entertainment & Hospitality,Governance and Social Development Group,MITIE Catering Services Ltd,400163280,412.02
DFID,DFID,22/06/2011,Entertainment & Hospitality,Governance and Social Development Group,MITIE Catering Services Ltd,400163280,11.52
DFID,DFID,22/06/2011,Entertainment & Hospitality,Finance and Performance Department,MITIE Catering Services Ltd,400163280,111.6
DFID,DFID,22/06/2011,Entertainment & Hospitality,Evaluation Department,MITIE Catering Services Ltd,400163280,42.48
DFID,DFID,22/06/2011,Entertainment & Hospitality,Value for Money,MITIE Catering Services Ltd,400163280,53.4
DFID,DFID,22/06/2011,Entertainment & Hospitality,International Directors Office,MITIE Catering Services Ltd,400163280,50.04
DFID,DFID,22/06/2011,Entertainment & Hospitality,Human Development Group,MITIE Catering Services Ltd,400163280,"2,576.16"
DFID,DFID,22/06/2011,Entertainment & Hospitality,Human Development Group,MITIE Catering Services Ltd,400163280,"3,484.20"
DFID,DFID,22/06/2011,Entertainment & Hospitality,FCPD Director,MITIE Catering Services Ltd,400163280,100.56
DFID,DFID,22/06/2011,Entertainment & Hospitality,HR Operations,MITIE Catering Services Ltd,400163280,932.76
DFID,DFID,22/06/2011,Entertainment & Hospitality,Civil Society Department,MITIE Catering Services Ltd,400163280,171.36
DFID,DFID,22/06/2011,Entertainment & Hospitality,HR DFID Initiatives,MITIE Catering Services Ltd,400163280,44.04
DFID,DFID,13/06/2011,Aid Programme - Voluntary contributions,DFID DRC,UNDP CONTRIBUTIONS ACCOUNT,400163281,"591,027.00"
DFID,DFID,13/06/2011,Technical and Advisory Services,Information Systems Department,OPIN SYSTEMS LIMITED,400163286,"6,160.00"
DFID,DFID,14/06/2011,Training Providers/Facilitation Services,Private Sector Department,BPP LEARNING MEDIA LIMITED,400163289,798
DFID,DFID,14/06/2011,Training Providers/Facilitation Services,Private Sector Department,BPP LEARNING MEDIA LIMITED,400163289,325
DFID,DFID,13/06/2011,Technical and Advisory Services,DFID Kenya,HTSPE LTD,400163294,"78,548.55"
DFID,DFID,13/06/2011,Technical and Advisory Services,DFID Ghana,CARE INTERNATIONAL,400163295,"25,257.24"
DFID,DFID,14/06/2011,Removal & waste disposal services,Palace Street,BYWATERS,400163296,"1,039.23"
DFID,DFID,14/06/2011,Removal & waste disposal services,Palace Street,BYWATERS,400163298,"1,013.75"
DFID,DFID,13/06/2011,Technical and Advisory Services,DFID China,HEALTH PARTNERS INTERNATIONAL,400163305,"23,136.75"
DFID,DFID,14/06/2011,Aid Programme - Accountable Grant Payments,Climate and Environment Group,Clean Development Mechanism (CDM) Watch,400163307,"20,684.01"
DFID,DFID,13/06/2011,Air fares,DFID Ethiopia,The Express Travel Group,400163308,522.97
DFID,DFID,13/06/2011,Air fares,DFID Ethiopia,The Express Travel Group,400163308,67.46
DFID,DFID,14/06/2011,Training Providers/Facilitation Services,Trade Policy Unit,THRESHOLDS,400163312,"1,800.00"
DFID,DFID,13/06/2011,Technical and Advisory Services,Stabilisation Unit,Crown Agents Bank,400163313,"9,951.60"
DFID,DFID,13/06/2011,Technical and Advisory Services,DFID Ghana,COFFEY INTERNATIONAL DEVELOPMENT LTD,400163314,"95,896.28"
DFID,DFID,14/06/2011,Technical and Advisory Services,DFID Kosovo,PRICEWATERHOUSECOOPERS,400163316,"50,761.00"
DFID,DFID,13/06/2011,Technical and Advisory Services,DFID Ghana,COFFEY INTERNATIONAL DEVELOPMENT LTD,400163317,"348,578.59"
DFID,DFID,13/06/2011,Aid Programme - Accountable Grant Payments,Civil Society Department,KPMG DEVELOPMENT SERVICE,400163324,"203,326.10"
DFID,DFID,14/06/2011,Technical and Advisory Services,DFID Afghanistan,Supplier Name Witheld,400163326,"17,562.42"
DFID,DFID,14/06/2011,Technical and Advisory Services,DFID India,Futures Group International India Pvt Ltd,400163329,"27,779.97"
DFID,DFID,15/06/2011,Technical and Advisory Services,Civil Society Department,KPMG Development Services,400163330,"57,707.27"
DFID,DFID,13/06/2011,Technical and Advisory Services,DFID Zimbabwe,GRM INTERNATIONAL LTD,400163333,"103,429.22"
DFID,DFID,14/06/2011,Technical and Advisory Services,DFID India,CARE INTERNATIONAL,400163334,"42,360.73"
DFID,DFID,14/06/2011,Technical and Advisory Services,DFID Bangladesh,Mohammed Zulyaminayn,400163341,"3,305.65"
DFID,DFID,15/06/2011,Hotels - Accommodation only,Information Systems Department,Melia Hotel,400163368,634.25
DFID,DFID,14/06/2011,Data Network - land lines,DFID India,IT Solutions,400163381,"1,418.75"
DFID,DFID,14/06/2011,Water charges,DFID India,Deep & Co,400163382,554.42
DFID,DFID,14/06/2011,Consultancy Services,DFID Uganda,SOCIAL DEVELOPMENT DIRECT LTD,400163400,"14,919.88"
DFID,DFID,15/06/2011,Technical and Advisory Services,Human Development Group,THE CROWN AGENTS FOR OVERSEA GOVERNMENTS AND ADMINISTRATIONS LIMITED,400163404,"6,289.70"
DFID,DFID,14/06/2011,FCO shared service charges,DFID Tanzania,JMC Umoja House,400163407,"6,257.65"
DFID,DFID,14/06/2011,FCO shared service charges,DFID Tanzania,JMC Umoja House,400163407,"2,681.85"
DFID,DFID,14/06/2011,Facilities Management payments,DFID Uganda,K.B.M Investments Ltd,400163408,"1,085.58"
DFID,DFID,14/06/2011,Technical and Advisory Services,DFID Caribbean and Nicaragua,ASSOCIATES FOR INTERNATIONAL DEVELOPMENT (AID INC),400163409,"28,596.51"
DFID,DFID,16/06/2011,Facilities Management payments,DFID Tanzania,Future Century Ltd(USD),400163410,572.02
DFID,DFID,16/06/2011,Technical and Advisory Services,DFID Tanzania,Future Century Ltd(USD),400163410,172.69
DFID,DFID,15/06/2011,Technical and Advisory Services,DFID Tanzania,Future Century Ltd(USD),400163413,413.99
DFID,DFID,15/06/2011,Facilities Management payments,DFID Tanzania,Future Century Ltd(USD),400163413,"1,139.73"
DFID,DFID,15/06/2011,Facilities Management payments,DFID Tanzania,Future Century Ltd(USD),400163414,"1,444.44"
DFID,DFID,15/06/2011,Technical and Advisory Services,DFID Tanzania,Future Century Ltd(USD),400163414,487.69
DFID,DFID,14/06/2011,Professional member subscriptions,HR DFID Initiatives,STONEWALL EQUALITY LTD,400163415,"1,800.00"
DFID,DFID,15/06/2011,Facilities Management payments,DFID Tanzania,Future Century Ltd(USD),400163416,860.64
DFID,DFID,15/06/2011,Technical and Advisory Services,DFID Tanzania,Future Century Ltd(USD),400163416,222.51
DFID,DFID,15/06/2011,Technical and Advisory Services,DFID Tanzania,Future Century Ltd(USD),400163418,129.51
DFID,DFID,15/06/2011,Facilities Management payments,DFID Tanzania,Future Century Ltd(USD),400163418,712.32
DFID,DFID,14/06/2011,Relocation costs,DFID Rwanda,CROWN RELOCATIONS  UK,400163420,"3,142.73"
DFID,DFID,15/06/2011,Facilities Management payments,DFID Tanzania,Future Century Ltd(USD),400163424,"1,010.96"
DFID,DFID,15/06/2011,Technical and Advisory Services,DFID Tanzania,Future Century Ltd(USD),400163424,118.79
DFID,DFID,15/06/2011,Aid Programme - Accountable Grant Payments,DFID Jerusalem and Palestinian Programme, Norwegian Refugee Council,400163426,"366,343.00"
DFID,DFID,15/06/2011,Aid Programme - Accountable Grant Payments,"Conflict, Humanitarian and Security Department",ALTUS GLOBAL ALLIANCE,400163428,"117,387.00"
DFID,DFID,15/06/2011,Facilities Management payments,DFID Tanzania,Future Century Ltd(USD),400163432,"1,428.52"
DFID,DFID,14/06/2011,Technical and Advisory Services,DFID Mozambique,EESAE (Esape Empresa de Servicos e Apoio Empresarial),400163441,"1,523.34"
DFID,DFID,15/06/2011,Data Network - land lines,Information Systems Department,GLOBAL CROSSING (UK) TELECOMMS LTD,400163452,516
DFID,DFID,14/06/2011,Recruitment costs,DFID India,Human Capital Solutions,400163456,"1,816.95"
DFID,DFID,14/06/2011,Technical and Advisory Services,DFID India,Sonalini Mirchandani,400163460,"8,310.36"
DFID,DFID,15/06/2011,Aid Programme - Accountable Grant Payments,Africa Regional Department,SA INSTITUTE OF INTERNATIONAL AFFAIRS,400163463,"96,483.22"
DFID,DFID,14/06/2011,Technical and Advisory Services,DFID Mozambique,MB Consulting Lda,400163464,"10,909.55"
DFID,DFID,14/06/2011,Other travel costs,Information Systems Department,J & I TAXIS,400163470,550
DFID,DFID,14/06/2011,Technical and Advisory Services,Private Sector Department,THE CROWN AGENTS FOR OVERSEA GOVERNMENTS AND ADMINISTRATIONS LIMITED,400163473,"-6,654.58"
DFID,DFID,14/06/2011,Technical and Advisory Services,Private Sector Department,THE CROWN AGENTS FOR OVERSEA GOVERNMENTS AND ADMINISTRATIONS LIMITED,400163473,"6,654.58"
DFID,DFID,14/06/2011,Technical and Advisory Services,Private Sector Department,THE CROWN AGENTS FOR OVERSEA GOVERNMENTS AND ADMINISTRATIONS LIMITED,400163473,"18,941.33"
DFID,DFID,14/06/2011,Technical and Advisory Services,Private Sector Department,THE CROWN AGENTS FOR OVERSEA GOVERNMENTS AND ADMINISTRATIONS LIMITED,400163473,"-18,941.33"
DFID,DFID,14/06/2011,Consultancy Services,Private Sector Department,THE CROWN AGENTS FOR OVERSEA GOVERNMENTS AND ADMINISTRATIONS LIMITED,400163473,"8,522.83"
DFID,DFID,14/06/2011,Consultancy Services,Private Sector Department,THE CROWN AGENTS FOR OVERSEA GOVERNMENTS AND ADMINISTRATIONS LIMITED,400163473,"-4,315.33"
DFID,DFID,14/06/2011,Consultancy Services,Private Sector Department,THE CROWN AGENTS FOR OVERSEA GOVERNMENTS AND ADMINISTRATIONS LIMITED,400163473,89.86
DFID,DFID,14/06/2011,Technical and Advisory Services,DFID Rwanda,MFI OFFICE SOLUTIONS,400163476,"12,403.09"
DFID,DFID,14/06/2011,Aid Programme - Voluntary contributions,DFID Sudan,UNDP CONTRIBUTIONS ACCOUNT,400163480,"1,000,000.00"
DFID,DFID,14/06/2011,Air fares,DFID Nigeria,Rockview Hotel,400163484,228.76
DFID,DFID,14/06/2011,Air fares,DFID Nigeria,Rockview Hotel,400163484,305.01
DFID,DFID,14/06/2011,Air fares,DFID Nigeria,Rockview Hotel,400163484,228.76
DFID,DFID,14/06/2011,Air fares,DFID Nigeria,Rockview Hotel,400163484,305.01
DFID,DFID,14/06/2011,Aid Programme - Contributions to Debt Relief,"HIPC , Debt Relief",ECGD ACCOUNT,400163495,"3,257,724.35"
DFID,DFID,14/06/2011,Air fares,DFID Nigeria,Pechez International Hotels Ltd,400163498,929.84
DFID,DFID,14/06/2011,Air fares,DFID Nigeria,Pechez International Hotels Ltd,400163498,27.35
DFID,DFID,14/06/2011,Aid Programme - Accountable Grant Payments,DFID Burma,THE SAVE THE CHILDREN FUND,400163499,"350,000.00"
DFID,DFID,14/06/2011,Air fares,DFID Nigeria,Valencia Hotels,400163506,702.37
DFID,DFID,14/06/2011,Air fares,DFID Nigeria,Valencia Hotels,400163506,390.09
DFID,DFID,14/06/2011,Technical and Advisory Services,Overseas Territories Department,Stephanie Murray,400163508,"27,814.41"
DFID,DFID,14/06/2011,Facilities Management payments,DFID Rwanda,Nkurunziza Alpha Prosper,400163509,50.2
DFID,DFID,14/06/2011,Facilities Management payments,DFID Rwanda,Nkurunziza Alpha Prosper,400163509,50.2
DFID,DFID,14/06/2011,Facilities Management payments,DFID Rwanda,Nkurunziza Alpha Prosper,400163509,451.82
DFID,DFID,21/06/2011,Relocation costs,DFID Kenya,CROWN RELOCATIONS  UK,400163511,452
DFID,DFID,14/06/2011,Air fares,DFID Rwanda,SATGURU TRAVEL & TOURS SERVICE,400163514,772.11
DFID,DFID,14/06/2011,Air fares,DFID Rwanda,SATGURU TRAVEL & TOURS SERVICE,400163518,872.24
DFID,DFID,14/06/2011,Legal costs,Overseas Territories Department,THE CROWN AGENTS FOR OVERSEA GOVERNMENTS AND ADMINISTRATIONS LIMITED,400163527,"14,000.00"
DFID,DFID,14/06/2011,House rentals,DFID Sierra Leone and Liberia,Supplier Name Witheld,400163539,"25,184.28"
DFID,DFID,14/06/2011,Technical and Advisory Services,DFID Sierra Leone and Liberia,Yassin Mshana,400163543,"5,970.52"
DFID,DFID,14/06/2011,Medical/Health Services,Palace Street,ENERGY FITNESS PROFESSIONALS LTD,400163558,900
DFID,DFID,15/06/2011,Technical and Advisory Services,Research and Evidence,Fanthorpe Consultancy Ltd,400163563,"8,760.02"
DFID,DFID,15/06/2011,Entertainment & Hospitality,DFID Ethiopia,Aladdin Restaurant Plc.,400163565,904.04
DFID,DFID,14/06/2011,Aid Programme - Accountable Grant Payments,DFID India,Oxfam (India) Trust,400163569,"301,021.00"
DFID,DFID,14/06/2011,Computer hardware maintenance,Information Systems Department,HEWLETT PACKARD,400163572,"9,182.64"
DFID,DFID,14/06/2011,House rentals,DFID Zambia,Supplier Name Witheld,400163573,"5,100.00"
DFID,DFID,15/06/2011,Technical and Advisory Services,DFID Uganda,THE CROWN AGENTS FOR OVERSEA GOVERNMENTS AND ADMINISTRATIONS LIMITED,400163575,"50,829.41"
DFID,DFID,14/06/2011,Other Building Costs,DFID Zambia,Desco Engineering & Contracting Company Ltd,400163579,415.88
DFID,DFID,14/06/2011,Other Building Costs,DFID Zambia,Desco Engineering & Contracting Company Ltd,400163579,75.61
DFID,DFID,14/06/2011,Other Building Costs,DFID Zambia,Desco Engineering & Contracting Company Ltd,400163579,94.52
DFID,DFID,14/06/2011,Research & Development costs,Research and Evidence,IOE University of London,400163581,"28,800.00"
DFID,DFID,14/06/2011,Aid Programme - Accountable Grant Payments,DFID India,VOLUNTARY SERVICE OVERSEAS,400163582,"78,493.00"
DFID,DFID,14/06/2011,Technical and Advisory Services,DFID Ghana,THE IDL GROUP,400163583,"1,500.00"
DFID,DFID,14/06/2011,Aid Programme - Contributions to Debt Relief,"HIPC , Debt Relief",ECGD ACCOUNT,400163584,"4,329.19"
DFID,DFID,15/06/2011,Other Building Costs,DFID Malawi,Personal Trading Services,400163586,"9,198.02"
DFID,DFID,15/06/2011,Other Building Costs,DFID Malawi,Personal Trading Services,400163586,"5,202.17"
DFID,DFID,15/06/2011,Technical and Advisory Services,DFID Pakistan,THE CROWN AGENTS FOR OVERSEA GOVERNMENTS AND ADMINISTRATIONS LIMITED,400163590,"9,618.62"
DFID,DFID,24/06/2011,Hotels - Accommodation only,Research and Evidence,Ulendo Safaris,400163591,203.55
DFID,DFID,24/06/2011,Hotels - Accommodation only,Research and Evidence,Ulendo Safaris,400163591,407.1
DFID,DFID,14/06/2011,Generators & spares,DFID Malawi,British High Commission,400163593,220.6
DFID,DFID,14/06/2011,Generators & spares,DFID Malawi,British High Commission,400163593,"1,219.45"
DFID,DFID,15/06/2011,House rentals,DFID DRC,Utexafrica Texaf,400163600,"21,726.72"
DFID,DFID,15/06/2011,House rentals,DFID DRC,Utexafrica Texaf,400163605,"21,726.72"
DFID,DFID,14/06/2011,Technical and Advisory Services,DFID Nepal,MICHAEL FLINT & PARTNERS,400163609,"8,000.00"
DFID,DFID,15/06/2011,Technical and Advisory Services,HR Operations,PRICEWATERHOUSECOOPERS,400163620,"49,760.73"
DFID,DFID,14/06/2011,Technical and Advisory Services,Overseas Territories Department,STEPHEN A TURNBULL,400163626,"11,322.64"
DFID,DFID,14/06/2011,Technical and Advisory Services,DFID Mozambique,THE CROWN AGENTS FOR OVERSEA GOVERNMENTS AND ADMINISTRATIONS LIMITED,400163627,"46,023.59"
DFID,DFID,15/06/2011,Technical and Advisory Services,DFID Zimbabwe,THE CROWN AGENTS FOR OVERSEA GOVERNMENTS AND ADMINISTRATIONS LIMITED,400163628,"234,461.08"
DFID,DFID,16/06/2011,Aid Programme - Trust Funds contributions,DFID Zambia,GTZ GmBH Eschborn,400163629,"198,500.00"
DFID,DFID,15/06/2011,Gas,Abercrombie House,CORONA ENERGY,400163633,968.75
DFID,DFID,16/06/2011,Gas,Palace Street,CORONA ENERGY,400163634,905.12
DFID,DFID,14/06/2011,Technical and Advisory Services,DFID Pakistan,Mott MacDonald Limited,400163635,"49,465.82"
DFID,DFID,15/06/2011,Gas,Abercrombie House,CORONA ENERGY,400163636,777.8
DFID,DFID,14/06/2011,Technical and Advisory Services,DFID Pakistan,Mott MacDonald Limited,400163638,"41,781.70"
DFID,DFID,15/06/2011,Telephone Usage & services,DFID Afghanistan,Supplier Name Witheld,400163649,43.83
DFID,DFID,15/06/2011,Telephone Usage & services,DFID Afghanistan,Supplier Name Witheld,400163649,43.83
DFID,DFID,15/06/2011,Telephone Usage & services,DFID Afghanistan,Supplier Name Witheld,400163649,"1,358.65"
DFID,DFID,15/06/2011,Telephone Usage & services,DFID Afghanistan,Supplier Name Witheld,400163649,43.82
DFID,DFID,15/06/2011,Telephone Usage & services,DFID Afghanistan,Supplier Name Witheld,400163649,788.89
DFID,DFID,15/06/2011,Vehicle Petrol & Oil,DFID Southern Africa,Lynnwood Motors,400163652,208.24
DFID,DFID,15/06/2011,Vehicle Petrol & Oil,DFID Southern Africa,Lynnwood Motors,400163652,485.91
DFID,DFID,16/06/2011,Aid Programme - Accountable Grant Payments,Human Development Group,Population Council,400163657,"234,990.34"
DFID,DFID,15/06/2011,Training - Travel & Subsistence,DFID Kenya,Sheraton Hotel,400163658,598.9
DFID,DFID,15/06/2011,Training Providers/Facilitation Services,HR Advisory Group,Chiumento Consulting Group,400163659,"2,400.00"
DFID,DFID,15/06/2011,Training - Travel & Subsistence,DFID Kenya,Sheraton Hotel,400163660,598.9
DFID,DFID,15/06/2011,Facilities Management payments,DFID Uganda,A & M Executive Cleaning services Co. Ltd,400163662,628.52
DFID,DFID,15/06/2011,Facilities Management payments,DFID Uganda,A & M Executive Cleaning services Co. Ltd,400163662,323.78
DFID,DFID,15/06/2011,FCO shared service charges,DFID Mozambique,FOREIGN AND COMMONWEALTH OFFICE,400163667,"5,363.15"
DFID,DFID,16/06/2011,Water charges,DFID Zimbabwe,Water Deliveries,400163668,118.97
DFID,DFID,16/06/2011,Water charges,DFID Zimbabwe,Water Deliveries,400163668,500.31
DFID,DFID,16/06/2011,Aid Programme - Accountable Grant Payments,DFID Somalia,MEDAIR,400163677,"169,815.00"
DFID,DFID,15/06/2011,Technical and Advisory Services,DFID Sierra Leone and Liberia,THE CROWN AGENTS FOR OVERSEA GOVERNMENTS AND ADMINISTRATIONS LIMITED,400163679,"110,857.79"
DFID,DFID,20/06/2011,Technical and Advisory Services,DFID Yemen,GRM INTERNATIONAL LTD,400163690,"24,092.82"
DFID,DFID,15/06/2011,Recruitment costs,DFID Ethiopia,Info Mind Solutions plc,400163694,"2,837.51"
DFID,DFID,16/06/2011,Technical and Advisory Services,DFID Mozambique,KPMG Auditores e Consultores SA,400163695,"49,225.50"
DFID,DFID,15/06/2011,Technical and Advisory Services,DFID Zimbabwe,THE CROWN AGENTS FOR OVERSEA GOVERNMENTS AND ADMINISTRATIONS LIMITED,400163696,"59,798.36"
DFID,DFID,15/06/2011,Technical and Advisory Services,DFID Zambia,THE CROWN AGENTS FOR OVERSEA GOVERNMENTS AND ADMINISTRATIONS LIMITED,400163697,508
DFID,DFID,15/06/2011,Recruitment costs,DFID Pakistan,Rozee.pk,400163699,"3,188.27"
DFID,DFID,15/06/2011,Hotels - Accommodation only,DFID Pakistan,PEARL CONTINENTAL HOTEL LAHORE,400163702,503.34
DFID,DFID,15/06/2011,Technical and Advisory Services,DFID Somalia,THE LAW DEVELOPMENT PARTNERSHIP LTD,400163706,"11,625.00"
DFID,DFID,15/06/2011,Technical and Advisory Services,DFID Somalia,THE LAW DEVELOPMENT PARTNERSHIP LTD,400163706,"24,600.00"
DFID,DFID,21/06/2011,Technical and Advisory Services,DFID Pakistan,"McKinsey & Co, Inc UK",400163711,"196,000.00"
DFID,DFID,15/06/2011,Aid Programme - Accountable Grant Payments,DFID Somalia,ACTION AGAINST HUNGER UK,400163712,"290,557.28"
DFID,DFID,15/06/2011,Aid Programme - Accountable Grant Payments,DFID Somalia,ACTION AGAINST HUNGER UK,400163712,"84,977.72"
DFID,DFID,15/06/2011,Recruitment costs,HR DFID Initiatives,Martin Stairs Consulting,400163713,"2,760.00"
DFID,DFID,16/06/2011,Telephone Usage & services,DFID Pakistan,Telenor Pakistan ,400163716,12.24
DFID,DFID,16/06/2011,Aid Programme - Humanitarian Material Relief Assistance and Services,DFID Pakistan,Telenor Pakistan ,400163716,286.27
DFID,DFID,16/06/2011,Telephone Usage & services,DFID Pakistan,Telenor Pakistan ,400163716,362.61
DFID,DFID,15/06/2011,Technical and Advisory Services,DFID Ghana,Godfrey Ewool,400163728,"4,218.19"
DFID,DFID,15/06/2011,Technical and Advisory Services,DFID Pakistan,Imdad Hussain,400163733,"2,288.91"
DFID,DFID,15/06/2011,Technical and Advisory Services,DFID Pakistan,Aamir Riaz,400163737,"2,027.52"
DFID,DFID,24/06/2011,Government Car Scheme UK,Top Management Group,GOVERNMENT CAR AND DESPATCH AGENCY,400163753,600
DFID,DFID,15/06/2011,Air fares,Evaluation Department,EuroTours Ghana Ltd,400163766,229.57
DFID,DFID,15/06/2011,Technical and Advisory Services,DFID Ghana,EuroTours Ghana Ltd,400163766,396.57
DFID,DFID,15/06/2011,Air fares,Evaluation Department,EuroTours Ghana Ltd,400163766,167
DFID,DFID,16/06/2011,Courier & Bag Services,DFID Sierra Leone and Liberia,FCO SERVICES,400163774,725.92
DFID,DFID,16/06/2011,Courier & Bag Services,DFID Sierra Leone and Liberia,FCO SERVICES,400163774,725.92
DFID,DFID,21/06/2011,Technical and Advisory Services,DFID Afghanistan,Supplier Name Witheld,400163776,"177,268.03"
DFID,DFID,15/06/2011,Data Network - land lines,Information Systems Department,BT BACS PAYMENTS,400163778,"5,178.73"
DFID,DFID,15/06/2011,Training Providers/Facilitation Services,Civil Society Department,THRESHOLDS,400163787,"1,500.00"
DFID,DFID,16/06/2011,Training Providers/Facilitation Services,Trade Policy Unit,THRESHOLDS,400163789,"1,500.00"
DFID,DFID,17/06/2011,Training - Course Fees,"Middle East, North Africa Advisory and Corporate (MENARC)",THE COMMUNICAID GROUP LIMITED,400163792,735
DFID,DFID,15/06/2011,Hotels - Accommodation only,DFID Sierra Leone and Liberia,The Country Lodge Complex,400163793,564.22
DFID,DFID,16/06/2011,Technical and Advisory Services,Overseas Territories Department,PKF (UK) LLP,400163794,"3,800.00"
DFID,DFID,15/06/2011,Aid Programme - Development Awareness Fund payments,Outreach and Stakeholder Relationships,THE CROWN AGENTS FOR OVERSEA GOVERNMENTS AND ADMINISTRATIONS LIMITED,400163796,"12,958.35"
DFID,DFID,15/06/2011,Technical and Advisory Services,DFID Zambia,THE CROWN AGENTS FOR OVERSEA GOVERNMENTS AND ADMINISTRATIONS LIMITED,400163798,"44,510.99"
DFID,DFID,15/06/2011,Aid Programme - Accountable Grant Payments,DFID Burundi, Overseas Development Institute,400163800,"2,905.93"
DFID,DFID,15/06/2011,Aid Programme - Other Financial Aid to Government,DFID Tanzania,THE CROWN AGENTS FOR OVERSEA GOVERNMENTS AND ADMINISTRATIONS LIMITED,400163801,"125,000.00"
DFID,DFID,17/06/2011,Generators & spares,DFID Zimbabwe,S  Koronka Manufacturing Ltd,400163803,"1,378.52"
DFID,DFID,17/06/2011,Technical and Advisory Services,DFID Sierra Leone and Liberia,TRIPLE LINE CONSULTING LTD,400163804,"10,919.52"
DFID,DFID,16/06/2011,Technical and Advisory Services,DFID Vietnam,Melia Hotel,400163816,"2,019.56"
DFID,DFID,16/06/2011,Air fares,DFID Ethiopia,SHAKIL EXPRESS (PVT.) LTD,400163820,682.67
DFID,DFID,16/06/2011,Aid Programme - Accountable Grant Payments,DFID Afghanistan,Supplier Name Witheld,400163848,"282,118.00"
DFID,DFID,16/06/2011,Technical and Advisory Services,DFID Sudan,ATOS CONSULTING LIMITED,400163849,"521,480.81"
DFID,DFID,16/06/2011,Technical and Advisory Services,DFID Mozambique,EESAE (Esape Empresa de Servicos e Apoio Empresarial),400163852,"1,521.47"
DFID,DFID,17/06/2011,Removal & waste disposal services,Abercrombie House,SHANKS WASTE MANAGMENT LIMITED,400163853,970.87
DFID,DFID,16/06/2011,Technical and Advisory Services,DFID Nigeria,HTSPE LTD,400163859,"149,574.14"
DFID,DFID,20/06/2011,Research & Development costs,Research and Evidence,Population Council,400163862,"79,551.00"
DFID,DFID,16/06/2011,Technical and Advisory Services,DFID Nigeria,ATOS CONSULTING LIMITED,400163865,"44,694.00"
DFID,DFID,16/06/2011,Facilities Management payments,DFID Uganda,K.B.M Investments Ltd,400163867,602.02
DFID,DFID,16/06/2011,Technical and Advisory Services,Africa Regional Department,COFFEY INTERNATIONAL DEVELOPMENT LTD,400163869,"23,834.92"
DFID,DFID,16/06/2011,Aid Programme - Other Financial Aid to Government,DFID Kenya,THE CROWN AGENTS FOR OVERSEA GOVERNMENTS AND ADMINISTRATIONS LIMITED,400163872,"33,686.15"
DFID,DFID,16/06/2011,Aid Programme - Development Awareness Fund payments,Outreach and Stakeholder Relationships,THE CROWN AGENTS FOR OVERSEA GOVERNMENTS AND ADMINISTRATIONS LIMITED,400163873,"16,900.00"
DFID,DFID,16/06/2011,Recruitment costs,DFID Kenya,Kimberly Ryan Ltd,400163875,"4,730.19"
DFID,DFID,16/06/2011,Aid Programme - Other Financial Aid to Government,DFID Afghanistan,Supplier Name Witheld,400163876,"55,000.00"
DFID,DFID,16/06/2011,Recruitment costs,DFID Kenya,Kimberly Ryan Ltd,400163878,"2,726.95"
DFID,DFID,28/06/2011,Hotels - Accommodation only,Global Partnerships Department,FOREIGN AND COMMONWEALTH OFFICE,400163879,"14,981.34"
DFID,DFID,16/06/2011,Technical and Advisory Services,Overseas Territories Department,FOREIGN AND COMMONWEALTH OFFICE,400163881,"4,806.19"
DFID,DFID,17/06/2011,Research & Development costs,Research and Evidence,SAFOD,400163884,"20,085.00"
DFID,DFID,17/06/2011,Research & Development costs,Research and Evidence,SAFOD,400163885,"20,085.00"
DFID,DFID,16/06/2011,Aid Programme - Accountable Grant Payments,Private Sector Department,THE CROWN AGENTS FOR OVERSEA GOVERNMENTS AND ADMINISTRATIONS LIMITED,400163887,"221,992.00"
DFID,DFID,16/06/2011,Aid Programme - Other Financial Aid to Government,DFID Sierra Leone and Liberia,THE CROWN AGENTS FOR OVERSEA GOVERNMENTS AND ADMINISTRATIONS LIMITED,400163894,"60,000.00"
DFID,DFID,16/06/2011,Training - Course Fees,Global Funds Department,THRESHOLDS,400163895,"1,500.00"
DFID,DFID,16/06/2011,Hotels - Accommodation only,DFID DRC,Grand Hotel,400163896,652.76
DFID,DFID,16/06/2011,Aid Programme - Accountable Grant Payments,DFID Burundi, Overseas Development Institute,400163903,"3,265.28"
DFID,DFID,16/06/2011,Training - Course Fees,DFID Sudan,RIFT VALLEY INSTITUTE,400163904,"2,493.60"
DFID,DFID,20/06/2011,Aid Programme - Accountable Grant Payments,DFID Burundi, Overseas Development Institute,400163905,"3,076.60"
DFID,DFID,27/06/2011,Technical and Advisory Services,DFID Pakistan,ADAM SMITH INTERNATIONAL  LTD,400163907,"6,050.14"
DFID,DFID,16/06/2011,Training - Course Fees,DFID Sudan,RIFT VALLEY INSTITUTE,400163908,"2,493.60"
DFID,DFID,16/06/2011,Research & Development costs,DFID Pakistan,Mosharraf Zaidi,400163909,"3,953.43"
DFID,DFID,16/06/2011,Training - Course Fees,DFID Sudan,RIFT VALLEY INSTITUTE,400163910,"2,493.60"
DFID,DFID,16/06/2011,Research & Development costs,DFID Pakistan,Mosharraf Zaidi,400163911,"5,930.15"
DFID,DFID,20/06/2011,Air fares,DFID Nigeria,Rockview Hotel,400163912,209.86
DFID,DFID,20/06/2011,Air fares,DFID Nigeria,Rockview Hotel,400163912,629.58
DFID,DFID,17/06/2011,Aid Programme - Accountable Grant Payments,DFID Somalia,POPULATION  SERVICES INTERNATIONAL,400163914,"1,242,420.00"
DFID,DFID,21/06/2011,Training - Course Fees,DFID Mozambique, Economic Policy Research Institute,400163917,"4,160.00"
DFID,DFID,22/06/2011,Training - Course Fees,DFID Ethiopia,CHARLES KENDALL & PARTNERS LTD(FEE,400163921,627.15
DFID,DFID,16/06/2011,Training - Course Fees,DFID Ghana,NATIONAL SCHOOL OF GOVERNMENT,400163924,910
DFID,DFID,17/06/2011,Technical and Advisory Services,DFID DRC,EFFECTIVE DEVELOPMENT GROUP (EDG),400163928,"56,942.73"
DFID,DFID,17/06/2011,Technical and Advisory Services,DFID Nepal,GRM INTERNATIONAL LTD,400163931,"6,910.19"
DFID,DFID,17/06/2011,Technical and Advisory Services,DFID Nepal,GRM INTERNATIONAL LTD,400163931,"171,473.36"
DFID,DFID,16/06/2011,Technical and Advisory Services,DFID Kyrgyzstan,GRM INTERNATIONAL LTD,400163937,"33,056.64"
DFID,DFID,16/06/2011,Technical and Advisory Services,DFID Kyrgyzstan,GRM INTERNATIONAL LTD,400163937,"-33,056.64"
DFID,DFID,16/06/2011,Technical and Advisory Services,DFID Kyrgyzstan,GRM INTERNATIONAL LTD,400163937,"118,513.90"
DFID,DFID,16/06/2011,Technical and Advisory Services,DFID Kenya,LIVERPOOL ASSOCIATES IN TROP. HEALTH,400163938,"151,354.70"
DFID,DFID,16/06/2011,Training - Course Fees,Growth and Investment Group,THE SPRINGFIELD CENTRE,400163939,"3,100.00"
DFID,DFID,16/06/2011,Technical and Advisory Services,DFID Kenya,LIVERPOOL ASSOCIATES IN TROP. HEALTH,400163940,"109,824.50"
DFID,DFID,29/06/2011,Technical and Advisory Services,Research and Evidence,LOUGHBOROUGH UNIVERSITY,400163944,"8,843.00"
DFID,DFID,16/06/2011,Medical/Health Services,Information Systems Department,HYGEIA HMO Ltd,400163945,115.83
DFID,DFID,16/06/2011,Technical and Advisory Services,Africa Regional Department,HYGEIA HMO Ltd,400163945,115.83
DFID,DFID,16/06/2011,Medical/Health Services,DFID Nigeria,HYGEIA HMO Ltd,400163945,"3,840.90"
DFID,DFID,16/06/2011,Medical/Health Services,DFID Nigeria,HYGEIA HMO Ltd,400163945,115.83
DFID,DFID,16/06/2011,Medical/Health Services,DFID Nigeria,HYGEIA HMO Ltd,400163945,"2,352.29"
DFID,DFID,16/06/2011,Technical and Advisory Services,DFID Nigeria,HYGEIA HMO Ltd,400163945,115.83
DFID,DFID,16/06/2011,Technical and Advisory Services,DFID Nigeria,GRM INTERNATIONAL LTD,400163948,"265,994.92"
DFID,DFID,16/06/2011,Training - Travel & Subsistence,DFID Uganda,NATIONAL SCHOOL OF GOVERNMENT,400163950,910
DFID,DFID,29/06/2011,Technical and Advisory Services,DFID Tanzania,KPMG EAST AFRICA LTD,400163963,"62,274.00"
DFID,DFID,16/06/2011,House rentals,DFID DRC,ETS PRELUDE,400163966,"18,404.91"
DFID,DFID,16/06/2011,Other rentals,DFID DRC,Safricas Congo SARL,400163969,"6,559.51"
DFID,DFID,16/06/2011,Technical and Advisory Services,DFID Nepal,Richard Thompson Associates,400163972,"1,912.38"
DFID,DFID,17/06/2011,Technical and Advisory Services,Africa Regional Department,SG Management Consulting,400163982,"12,441.39"
DFID,DFID,16/06/2011,Technical and Advisory Services,Research and Evidence,THE CROWN AGENTS FOR OVERSEA GOVERNMENTS AND ADMINISTRATIONS LIMITED,400163985,"30,735.38"
DFID,DFID,24/06/2011,Technical and Advisory Services,Stabilisation Unit,THE CROWN AGENTS FOR OVERSEA GOVERNMENTS AND ADMINISTRATIONS LIMITED,400163994,"8,676.00"
DFID,DFID,24/06/2011,Technical and Advisory Services,Stabilisation Unit,THE CROWN AGENTS FOR OVERSEA GOVERNMENTS AND ADMINISTRATIONS LIMITED,400163994,524
DFID,DFID,27/06/2011,Technical and Advisory Services,Stabilisation Unit,THE CROWN AGENTS FOR OVERSEA GOVERNMENTS AND ADMINISTRATIONS LIMITED,400163997,"3,536.99"
DFID,DFID,27/06/2011,Technical and Advisory Services,Stabilisation Unit,THE CROWN AGENTS FOR OVERSEA GOVERNMENTS AND ADMINISTRATIONS LIMITED,400163997,"3,888.42"
DFID,DFID,17/06/2011,Aid Programme - Accountable Grant Payments,"Conflict, Humanitarian and Security Department",Tufts University,400164005,"17,354.00"
DFID,DFID,29/06/2011,Technical and Advisory Services,Stabilisation Unit,THE CROWN AGENTS FOR OVERSEA GOVERNMENTS AND ADMINISTRATIONS LIMITED,400164007,"9,406.52"
DFID,DFID,29/06/2011,Technical and Advisory Services,Stabilisation Unit,THE CROWN AGENTS FOR OVERSEA GOVERNMENTS AND ADMINISTRATIONS LIMITED,400164007,"3,693.48"
DFID,DFID,27/06/2011,Technical and Advisory Services,Stabilisation Unit,THE CROWN AGENTS FOR OVERSEA GOVERNMENTS AND ADMINISTRATIONS LIMITED,400164009,"9,162.00"
DFID,DFID,27/06/2011,Technical and Advisory Services,Stabilisation Unit,THE CROWN AGENTS FOR OVERSEA GOVERNMENTS AND ADMINISTRATIONS LIMITED,400164009,"4,438.00"
DFID,DFID,27/06/2011,Technical and Advisory Services,Stabilisation Unit,THE CROWN AGENTS FOR OVERSEA GOVERNMENTS AND ADMINISTRATIONS LIMITED,400164010,"8,551.20"
DFID,DFID,27/06/2011,Technical and Advisory Services,Stabilisation Unit,THE CROWN AGENTS FOR OVERSEA GOVERNMENTS AND ADMINISTRATIONS LIMITED,400164010,"3,448.80"
DFID,DFID,27/06/2011,Technical and Advisory Services,Stabilisation Unit,THE CROWN AGENTS FOR OVERSEA GOVERNMENTS AND ADMINISTRATIONS LIMITED,400164011,"8,760.00"
DFID,DFID,27/06/2011,Technical and Advisory Services,Stabilisation Unit,THE CROWN AGENTS FOR OVERSEA GOVERNMENTS AND ADMINISTRATIONS LIMITED,400164011,"3,740.00"
DFID,DFID,17/06/2011,Technical and Advisory Services,DFID Pakistan,THE CROWN AGENTS FOR OVERSEA GOVERNMENTS AND ADMINISTRATIONS LIMITED,400164012,"9,203.82"
DFID,DFID,17/06/2011,Aid Programme - Accountable Grant Payments,DFID Ethiopia,International Food PolicyResearch Institute (IFRI,400164013,"250,000.00"
DFID,DFID,17/06/2011,Aid Programme - Voluntary contributions,DFID Yemen,THE INTERNATIONAL COMMITTEE OF THE RED CROSS (ICRC),400164015,"4,500,000.00"
DFID,DFID,21/06/2011,Technical and Advisory Services,Internal Audit Department,RSM Tenon Limited,400164018,"4,320.00"
DFID,DFID,20/06/2011,Technical and Advisory Services,DFID Afghanistan,Supplier Name Witheld,400164019,"-31,306.43"
DFID,DFID,20/06/2011,Technical and Advisory Services,DFID Afghanistan,Supplier Name Witheld,400164019,"42,918.39"
DFID,DFID,29/06/2011,Technical and Advisory Services,Stabilisation Unit,THE CROWN AGENTS FOR OVERSEA GOVERNMENTS AND ADMINISTRATIONS LIMITED,400164020,"8,658.00"
DFID,DFID,29/06/2011,Technical and Advisory Services,Stabilisation Unit,THE CROWN AGENTS FOR OVERSEA GOVERNMENTS AND ADMINISTRATIONS LIMITED,400164020,42
DFID,DFID,23/06/2011,Technical and Advisory Services,Stabilisation Unit,THE CROWN AGENTS FOR OVERSEA GOVERNMENTS AND ADMINISTRATIONS LIMITED,400164021,"8,760.00"
DFID,DFID,23/06/2011,Technical and Advisory Services,Stabilisation Unit,THE CROWN AGENTS FOR OVERSEA GOVERNMENTS AND ADMINISTRATIONS LIMITED,400164021,"4,440.00"
DFID,DFID,23/06/2011,Technical and Advisory Services,DFID Pakistan,Crown Agents Bank,400164022,"18,512.90"
DFID,DFID,22/06/2011,Technical and Advisory Services,DFID Pakistan,Crown Agents Bank,400164023,"24,796.07"
DFID,DFID,17/06/2011,Research & Development costs,Research and Evidence,SAFOD,400164024,"26,900.00"
DFID,DFID,16/06/2011,Technical and Advisory Services,Africa Regional Department,HYGEIA HMO Ltd,400164027,115.83
DFID,DFID,16/06/2011,Medical/Health Services,DFID Nigeria,HYGEIA HMO Ltd,400164027,115.83
DFID,DFID,16/06/2011,Medical/Health Services,DFID Nigeria,HYGEIA HMO Ltd,400164027,"3,840.90"
DFID,DFID,16/06/2011,Technical and Advisory Services,DFID Nigeria,HYGEIA HMO Ltd,400164027,115.83
DFID,DFID,16/06/2011,Medical/Health Services,DFID Nigeria,HYGEIA HMO Ltd,400164027,"2,352.29"
DFID,DFID,16/06/2011,Medical/Health Services,Information Systems Department,HYGEIA HMO Ltd,400164027,115.83
DFID,DFID,17/06/2011,Furniture & Fittings,DFID Zambia,Carnival Furnishers,400164056,911.65
DFID,DFID,17/06/2011,Property & Construction Services,DFID Ghana,Bluku Services,400164074,"3,386.15"
DFID,DFID,20/06/2011,Government Car Scheme UK,Top Management Group,GOVERNMENT CAR AND DESPATCH AGENCY,400164085,"5,903.54"
DFID,DFID,17/06/2011,Air fares,DFID Nigeria,Olorunshola Emmanuel,400164102,58.66
DFID,DFID,17/06/2011,Air fares,DFID Nigeria,Olorunshola Emmanuel,400164102,469.28
DFID,DFID,24/06/2011,Technical and Advisory Services,Stabilisation Unit,THE CROWN AGENTS FOR OVERSEA GOVERNMENTS AND ADMINISTRATIONS LIMITED,400164104,"9,729.60"
DFID,DFID,24/06/2011,Technical and Advisory Services,Stabilisation Unit,THE CROWN AGENTS FOR OVERSEA GOVERNMENTS AND ADMINISTRATIONS LIMITED,400164104,"4,170.40"
DFID,DFID,17/06/2011,Technical and Advisory Services,DFID Nigeria,British  High Commission Abuja,400164105,118.15
DFID,DFID,17/06/2011,Technical and Advisory Services,DFID Nigeria,British  High Commission Abuja,400164105,187.75
DFID,DFID,17/06/2011,Technical and Advisory Services,DFID Ethiopia,The Express Travel Group,400164121,"2,593.54"
DFID,DFID,17/06/2011,Facilities Management payments,DFID Uganda,Victoria Engineering,400164123,522.67
DFID,DFID,20/06/2011,Technical and Advisory Services,DFID Southern Africa,ONE WORLD,400164124,"52,195.00"
DFID,DFID,17/06/2011,Facilities Management payments,DFID Nigeria,Tahir Guest Palace,400164126,"1,631.18"
DFID,DFID,17/06/2011,Technical and Advisory Services,DFID Ethiopia,DELTA PARTNERSHIP SOLUTIONS LTD,400164128,"27,419.11"
DFID,DFID,17/06/2011,Air fares,DFID Nigeria,Tahir Guest Palace,400164130,886.72
DFID,DFID,17/06/2011,Technical and Advisory Services,DFID Ethiopia,DELTA PARTNERSHIP SOLUTIONS LTD,400164131,"7,562.50"
DFID,DFID,17/06/2011,Technical and Advisory Services,DFID Ethiopia,DELTA PARTNERSHIP SOLUTIONS LTD,400164131,"2,310.00"
DFID,DFID,21/06/2011,Technical and Advisory Services,Overseas Territories Department,JOHN WARWICK,400164134,"1,430.10"
DFID,DFID,21/06/2011,Technical and Advisory Services,Overseas Territories Department,JOHN WARWICK,400164136,"1,987.00"
DFID,DFID,17/06/2011,Medical/Health Services,DFID Zambia,THE CROWN AGENTS FOR OVERSEA GOVERNMENTS AND ADMINISTRATIONS LIMITED,400164140,77.34
DFID,DFID,17/06/2011,Medical/Health Services,DFID Zambia,THE CROWN AGENTS FOR OVERSEA GOVERNMENTS AND ADMINISTRATIONS LIMITED,400164140,"2,666.88"
DFID,DFID,17/06/2011,Technical and Advisory Services,DFID Nepal,OPTIONS CONSULTANCY SERVICES LIMITED,400164144,"390,884.40"
DFID,DFID,29/06/2011,Technical and Advisory Services,Stabilisation Unit,THE CROWN AGENTS FOR OVERSEA GOVERNMENTS AND ADMINISTRATIONS LIMITED,400164146,"4,164.00"
DFID,DFID,29/06/2011,Technical and Advisory Services,Stabilisation Unit,THE CROWN AGENTS FOR OVERSEA GOVERNMENTS AND ADMINISTRATIONS LIMITED,400164146,"9,636.00"
DFID,DFID,20/06/2011,Property & Construction Services,DFID Sudan,DMS AFRICA,400164147,"4,040.60"
DFID,DFID,23/06/2011,Technical and Advisory Services,Stabilisation Unit,THE CROWN AGENTS FOR OVERSEA GOVERNMENTS AND ADMINISTRATIONS LIMITED,400164148,"9,662.40"
DFID,DFID,23/06/2011,Technical and Advisory Services,Stabilisation Unit,THE CROWN AGENTS FOR OVERSEA GOVERNMENTS AND ADMINISTRATIONS LIMITED,400164148,"3,837.60"
DFID,DFID,20/06/2011,Technical and Advisory Services,DFID Kenya,THE WORLD BANK (IBRD ACCOUNT),400164150,"18,612.00"
DFID,DFID,22/06/2011,Aid Programme - Accountable Grant Payments,Africa Regional Department,AGRA IN AFRICA (NO2),400164152,"50,500.00"
DFID,DFID,22/06/2011,Aid Programme - Accountable Grant Payments,DFID Tanzania,AGRA IN AFRICA (NO2),400164152,"50,500.00"
DFID,DFID,20/06/2011,Subscriptions,Governance and Social Development Group,LSN,400164153,"1,800.00"
DFID,DFID,17/06/2011,Technical and Advisory Services,DFID Pakistan,IOD PARC,400164157,"3,575.00"
DFID,DFID,24/06/2011,Technical and Advisory Services,Stabilisation Unit,THE CROWN AGENTS FOR OVERSEA GOVERNMENTS AND ADMINISTRATIONS LIMITED,400164158,"9,741.60"
DFID,DFID,24/06/2011,Technical and Advisory Services,Stabilisation Unit,THE CROWN AGENTS FOR OVERSEA GOVERNMENTS AND ADMINISTRATIONS LIMITED,400164158,"4,558.40"
DFID,DFID,20/06/2011,Technical and Advisory Services,DFID Afghanistan,Supplier Name Witheld,400164161,"8,011.69"
DFID,DFID,17/06/2011,Aid Programme - Voluntary contributions,DFID Ethiopia,UNICEF,400164166,"1,000,000.00"
DFID,DFID,22/06/2011,Technical and Advisory Services,DFID Pakistan,Crown Agents Bank,400164168,"22,043.75"
DFID,DFID,17/06/2011,Technical and Advisory Services,DFID Southern Africa,HLSP LIMITED,400164173,"87,154.67"
DFID,DFID,20/06/2011,Technical and Advisory Services,DFID Nigeria,Robert E Firestine,400164174,"3,565.42"
DFID,DFID,20/06/2011,Aid Programme - Accountable Grant Payments,DFID Kenya,Action Against Hunger - USA,400164181,"321,244.00"
DFID,DFID,17/06/2011,Technical and Advisory Services,Overseas Territories Department,FOREIGN AND COMMONWEALTH OFFICE,400164184,920
DFID,DFID,24/06/2011,Technical and Advisory Services,Stabilisation Unit,THE CROWN AGENTS FOR OVERSEA GOVERNMENTS AND ADMINISTRATIONS LIMITED,400164185,"11,784.00"
DFID,DFID,24/06/2011,Technical and Advisory Services,Stabilisation Unit,THE CROWN AGENTS FOR OVERSEA GOVERNMENTS AND ADMINISTRATIONS LIMITED,400164185,"4,216.00"
DFID,DFID,24/06/2011,Technical and Advisory Services,Stabilisation Unit,THE CROWN AGENTS FOR OVERSEA GOVERNMENTS AND ADMINISTRATIONS LIMITED,400164188,"4,616.00"
DFID,DFID,24/06/2011,Technical and Advisory Services,Stabilisation Unit,THE CROWN AGENTS FOR OVERSEA GOVERNMENTS AND ADMINISTRATIONS LIMITED,400164188,"9,984.00"
DFID,DFID,21/06/2011,Aid Programme - Accountable Grant Payments,DFID Kenya,HelpAge International (Kenya),400164190,"1,626.33"
DFID,DFID,21/06/2011,Aid Programme - Accountable Grant Payments,DFID Kenya,HelpAge International (Kenya),400164190,"6,140.34"
DFID,DFID,27/06/2011,Technical and Advisory Services,Stabilisation Unit,THE CROWN AGENTS FOR OVERSEA GOVERNMENTS AND ADMINISTRATIONS LIMITED,400164191,"1,085.41"
DFID,DFID,27/06/2011,Technical and Advisory Services,Stabilisation Unit,THE CROWN AGENTS FOR OVERSEA GOVERNMENTS AND ADMINISTRATIONS LIMITED,400164191,"10,846.79"
DFID,DFID,17/06/2011,Technical and Advisory Services,DFID Kenya,HELPAGE INTERNATIONAL,400164192,"24,000.00"
DFID,DFID,20/06/2011,Aid Programme - Accountable Grant Payments,DFID Tanzania,Tanzania Private Sector Foundation,400164193,"590,853.81"
DFID,DFID,17/06/2011,Technical and Advisory Services,DFID Southern Africa,HLSP LIMITED,400164196,"1,065,513.26"
DFID,DFID,17/06/2011,Aid Programme - Other Financial Aid to Government,DFID Zambia,THE CROWN AGENTS FOR OVERSEA GOVERNMENTS AND ADMINISTRATIONS LIMITED,400164197,"2,030.35"
DFID,DFID,24/06/2011,Technical and Advisory Services,Stabilisation Unit,THE CROWN AGENTS FOR OVERSEA GOVERNMENTS AND ADMINISTRATIONS LIMITED,400164198,"9,900.00"
DFID,DFID,24/06/2011,Technical and Advisory Services,Stabilisation Unit,THE CROWN AGENTS FOR OVERSEA GOVERNMENTS AND ADMINISTRATIONS LIMITED,400164198,"4,500.00"
DFID,DFID,24/06/2011,Technical and Advisory Services,Stabilisation Unit,THE CROWN AGENTS FOR OVERSEA GOVERNMENTS AND ADMINISTRATIONS LIMITED,400164199,"9,138.00"
DFID,DFID,24/06/2011,Technical and Advisory Services,Stabilisation Unit,THE CROWN AGENTS FOR OVERSEA GOVERNMENTS AND ADMINISTRATIONS LIMITED,400164199,"5,062.00"
DFID,DFID,21/06/2011,Aid Programme - Accountable Grant Payments,DFID Sudan,PACT INC,400164200,"698,027.17"
DFID,DFID,21/06/2011,Aid Programme - Accountable Grant Payments,DFID Tanzania,WaterAid (Tanzania),400164202,"88,443.62"
DFID,DFID,21/06/2011,Generators & spares,DFID Afghanistan,Supplier Name Witheld,400164221,197.69
DFID,DFID,21/06/2011,Generators & spares,DFID Afghanistan,Supplier Name Witheld,400164221,28.24
DFID,DFID,21/06/2011,Generators & spares,DFID Afghanistan,Supplier Name Witheld,400164221,28.24
DFID,DFID,21/06/2011,Generators & spares,DFID Afghanistan,Supplier Name Witheld,400164221,28.24
DFID,DFID,21/06/2011,Generators & spares,DFID Afghanistan,Supplier Name Witheld,400164221,28.24
DFID,DFID,21/06/2011,Generators & spares,DFID Afghanistan,Supplier Name Witheld,400164221,28.24
DFID,DFID,21/06/2011,Generators & spares,DFID Afghanistan,Supplier Name Witheld,400164221,564.81
DFID,DFID,23/06/2011,Technical and Advisory Services,DFID Uganda,WSP INTERNATIONAL LIMITED,400164267,"12,089.35"
DFID,DFID,20/06/2011,Technical and Advisory Services,DFID Afghanistan,Supplier Name Witheld,400164269,"17,849.00"
DFID,DFID,20/06/2011,Technical and Advisory Services,DFID Uganda,PRICEWATERHOUSECOOPERS,400164273,"52,917.90"
DFID,DFID,21/06/2011,Technical and Advisory Services,Research and Evidence,CAB INTERNATIONAL,400164274,"31,616.08"
DFID,DFID,20/06/2011,Technical and Advisory Services,Overseas Territories Department,WSP INTERNATIONAL LIMITED,400164278,"21,793.75"
DFID,DFID,20/06/2011,Technical and Advisory Services,DFID India,CARE INTERNATIONAL,400164279,"47,165.00"
DFID,DFID,20/06/2011,Technical and Advisory Services,DFID India,CARE INTERNATIONAL,400164279,"2,783.60"
DFID,DFID,20/06/2011,Technical and Advisory Services,Overseas Territories Department,WSP INTERNATIONAL LIMITED,400164280,"26,905.75"
DFID,DFID,20/06/2011,Research & Development costs,Research and Evidence,THE CROWN AGENTS FOR OVERSEA GOVERNMENTS AND ADMINISTRATIONS LIMITED,400164281,854.29
DFID,DFID,20/06/2011,Technical and Advisory Services,Human Development Group,TROPICAL HEALTH EDUCATION TRUST,400164282,"168,907.75"
DFID,DFID,24/06/2011,Aid Programme - Core contributions,Global Funds Department,THE WORLD BANK (IBRD ACCOUNT),400164287,"851,525.06"
DFID,DFID,20/06/2011,Research & Development costs,Research and Evidence,INSTITUTE OF DEVELOPMENT STUDIES,400164291,"17,870.00"
DFID,DFID,20/06/2011,Research & Development costs,Research and Evidence,INSTITUTE OF DEVELOPMENT STUDIES,400164291,"17,870.00"
DFID,DFID,20/06/2011,Aid Programme - Humanitarian Material Relief Assistance and Services,DFID Pakistan,OMAR TRAVELS,400164293,870.74
DFID,DFID,20/06/2011,Training - Course Fees,DFID Mozambique,Maria Dulce Tavares,400164294,"1,567.93"
DFID,DFID,20/06/2011,Aid Programme - Accountable Grant Payments,DFID Sierra Leone and Liberia, Overseas Development Institute,400164296,"1,037.28"
DFID,DFID,21/06/2011,Technical and Advisory Services,DFID Pakistan,THE CROWN AGENTS FOR OVERSEA GOVERNMENTS AND ADMINISTRATIONS LIMITED,400164297,"44,548.00"
DFID,DFID,21/06/2011,Technical and Advisory Services,DFID Pakistan,THE CROWN AGENTS FOR OVERSEA GOVERNMENTS AND ADMINISTRATIONS LIMITED,400164297,"14,400.00"
DFID,DFID,20/06/2011,Aid Programme - Accountable Grant Payments,DFID Sierra Leone and Liberia, Overseas Development Institute,400164300,"9,637.89"
DFID,DFID,20/06/2011,Medicines & Drugs,DFID Nigeria,THE CROWN AGENTS FOR OVERSEA GOVERNMENTS AND ADMINISTRATIONS LIMITED,400164302,"16,809.23"
DFID,DFID,20/06/2011,Training - Course Fees,DFID Mozambique,Maria Dulce Tavares,400164304,"4,021.76"
DFID,DFID,20/06/2011,Telephone Usage & services,DFID Pakistan,PMCL,400164305,101.15
DFID,DFID,20/06/2011,Telephone Usage & services,DFID Pakistan,PMCL,400164305,817.24
DFID,DFID,20/06/2011,Telephone Usage & services,DFID Pakistan,PMCL,400164305,48.8
DFID,DFID,20/06/2011,Aid Programme - Humanitarian Material Relief Assistance and Services,DFID Pakistan,PMCL,400164305,18.63
DFID,DFID,21/06/2011,Training - Course Fees,DFID Nigeria,British Airways PLC,400164310,813.36
DFID,DFID,20/06/2011,Air fares,DFID Afghanistan,Supplier Name Witheld,400164313,226.17
DFID,DFID,20/06/2011,Air fares,DFID Afghanistan,Supplier Name Witheld,400164313,"1,201.62"
DFID,DFID,20/06/2011,Air fares,DFID Afghanistan,Supplier Name Witheld,400164313,95.89
DFID,DFID,23/06/2011,Property rates,Abercrombie House,SOUTH LANARKSHIRE COUNCIL,400164316,"216,933.00"
DFID,DFID,20/06/2011,Office Supplies,DFID Pakistan,"Metro Cash & Carry, Pakistan, Islamabad",400164317,536.53
DFID,DFID,20/06/2011,Office Equipment - Purchases,DFID Pakistan,"Metro Cash & Carry, Pakistan, Islamabad",400164317,191.22
DFID,DFID,20/06/2011,Hotels - Accommodation only,DFID Pakistan,PEARL CONTINENTAL HOTEL LAHORE,400164324,"2,585.76"
DFID,DFID,21/06/2011,Technical and Advisory Services,DFID Bangladesh,BMB MOTT  MACDONALD,400164325,"73,439.95"
DFID,DFID,21/06/2011,Technical and Advisory Services,DFID Bangladesh,BMB MOTT  MACDONALD,400164330,"371,657.76"
DFID,DFID,20/06/2011,Office Supplies,Abercrombie House,WELL FINISHED LTD,400164331,605
DFID,DFID,20/06/2011,"Conferences, Seminars & Meeting/Event Resource",DFID Ghana,EuroTours Ghana Ltd,400164333,549.03
DFID,DFID,20/06/2011,"Conferences, Seminars & Meeting/Event Resource",DFID Ghana,EuroTours Ghana Ltd,400164333,698.55
DFID,DFID,20/06/2011,Hotels - Accommodation only,DFID Pakistan,PEARL CONTINENTAL HOTEL LAHORE,400164338,843.96
DFID,DFID,20/06/2011,Property & Construction Services,DFID Sudan,TURNER & TOWNSEND,400164341,"5,254.97"
DFID,DFID,20/06/2011,Consultancy Services,DFID Sudan,TURNER & TOWNSEND,400164341,"15,965.20"
DFID,DFID,20/06/2011,Technical and Advisory Services,DFID Nigeria,WSP INTERNATIONAL LIMITED,400164343,"1,400.00"
DFID,DFID,20/06/2011,Medical/Health Services,DFID Zambia,THE CROWN AGENTS FOR OVERSEA GOVERNMENTS AND ADMINISTRATIONS LIMITED,400164344,"4,382.34"
DFID,DFID,20/06/2011,Medical/Health Services,DFID Zambia,THE CROWN AGENTS FOR OVERSEA GOVERNMENTS AND ADMINISTRATIONS LIMITED,400164344,"153,400.03"
DFID,DFID,20/06/2011,Technical and Advisory Services,DFID India,DELOITTE TOUCHE TOHMATSU INDIA PRIVA,400164346,"8,059.52"
DFID,DFID,20/06/2011,Air fares,HR DFID Initiatives,OMAR TRAVELS,400164347,706.98
DFID,DFID,20/06/2011,Research & Development costs,Research and Evidence,THE CROWN AGENTS FOR OVERSEA GOVERNMENTS AND ADMINISTRATIONS LIMITED,400164348,"2,889.43"
DFID,DFID,20/06/2011,Aid Programme - Poverty Reduction Budget Support,DFID Mozambique,THE CROWN AGENTS FOR OVERSEA GOVERNMENTS AND ADMINISTRATIONS LIMITED,400164353,"360,000.00"
DFID,DFID,20/06/2011,Aid Programme - Other Financial Aid to Government,DFID India,THE CROWN AGENTS FOR OVERSEA GOVERNMENTS AND ADMINISTRATIONS LIMITED,400164355,"4,011,132.93"
DFID,DFID,20/06/2011,Training - Travel & Subsistence,DFID Pakistan,Supplier Name Witheld,400164356,509.56
DFID,DFID,20/06/2011,Generators & spares,DFID Zimbabwe,Power Electrics (Bristol) Ltd,400164358,"9,600.00"
DFID,DFID,20/06/2011,Technical and Advisory Services,DFID India,SPC MANAGEMENT SERVICES PRIVATE LIMI,400164359,"2,463.58"
DFID,DFID,23/06/2011,Aid Programme - Accountable Grant Payments,Director Asia and Regional Team,International Center for Research on Women (ICRW),400164365,"200,000.00"
DFID,DFID,20/06/2011,Facilities Management payments,DFID India,CB RICHARD ELLIS SOUTH ASIA PVT LTD,400164369,"4,434.95"
DFID,DFID,27/06/2011,Technical and Advisory Services,DFID Nepal,ERNST &  YOUNG PRIVATE LTD,400164370,"3,093.75"
DFID,DFID,27/06/2011,Technical and Advisory Services,DFID Nepal,ERNST &  YOUNG PRIVATE LTD,400164370,"3,093.75"
DFID,DFID,27/06/2011,Technical and Advisory Services,DFID Nepal,ERNST &  YOUNG PRIVATE LTD,400164370,"3,093.75"
DFID,DFID,27/06/2011,Technical and Advisory Services,DFID Nepal,ERNST &  YOUNG PRIVATE LTD,400164370,"3,093.75"
DFID,DFID,23/06/2011,Technical and Advisory Services,Value for Money,OXFORD POLICY MANAGEMENT,400164372,"2,550.00"
DFID,DFID,20/06/2011,Technical and Advisory Services,Business Change & Strategy Department,NATIONAL AUDIT OFFICE,400164375,"9,314.74"
DFID,DFID,21/06/2011,Telephone Usage & services,DFID Ethiopia,Ethio Telecom,400164376,58.68
DFID,DFID,21/06/2011,Telephone Usage & services,DFID Ethiopia,Ethio Telecom,400164376,58.68
DFID,DFID,21/06/2011,Data network- remote working,DFID Ethiopia,Ethio Telecom,400164376,231.77
DFID,DFID,21/06/2011,Data network- remote working,DFID Ethiopia,Ethio Telecom,400164376,231.77
DFID,DFID,21/06/2011,Technical and Advisory Services,Asia Division London,COFFEY INTERNATIONAL DEVELOPMENT LTD,400164378,"13,032.46"
DFID,DFID,20/06/2011,Aid Programme - Partnership Programme Arrangements,Civil Society Department,INTERNATIONAL HIV/AIDS ALLIANCE,400164380,"972,905.75"
DFID,DFID,21/06/2011,Vehicle Repairs & Maintenance,DFID Southern Africa,Santam,400164390,"1,274.65"
DFID,DFID,21/06/2011,Vehicle Repairs & Maintenance,DFID Southern Africa,Santam,400164390,"2,974.19"
DFID,DFID,21/06/2011,Telephone Usage & services,DFID Southern Africa,Telkom SA Ltd,400164394,643.01
DFID,DFID,21/06/2011,Telephone Usage & services,DFID Southern Africa,Telkom SA Ltd,400164394,"1,500.36"
DFID,DFID,20/06/2011,Technical and Advisory Services,DFID Bangladesh,MAXWELL STAMP PLC,400164408,"41,898.81"
DFID,DFID,29/06/2011,Technical and Advisory Services,DFID China,MARTIN TAYLOR,400164411,"14,350.00"
DFID,DFID,20/06/2011,Technical and Advisory Services,DFID Bangladesh,COFFEY INTERNATIONAL DEVELOPMENT LTD,400164417,"13,028.40"
DFID,DFID,20/06/2011,Technical and Advisory Services,DFID Bangladesh,COFFEY INTERNATIONAL DEVELOPMENT LTD,400164417,"13,028.40"
DFID,DFID,20/06/2011,Technical and Advisory Services,DFID Southern Africa,Imraan Abdul Kader,400164418,"6,859.52"
DFID,DFID,20/06/2011,Aid Programme - Joint programme contribution,DFID Somalia,UNDP CONTRIBUTIONS ACCOUNT,400164438,"200,000.00"
DFID,DFID,29/06/2011,Technical and Advisory Services,Overseas Territories Department,DEPARTMENT OF DISASTER MANAGEMENT,400164447,"14,804.90"
DFID,DFID,20/06/2011,Office Supplies,DFID Sierra Leone and Liberia,Sunshine Enterprises,400164456,295.22
DFID,DFID,20/06/2011,Office Supplies,DFID Sierra Leone and Liberia,Sunshine Enterprises,400164456,442.84
DFID,DFID,20/06/2011,Technical and Advisory Services,Human Development Group,Cambridge  Education Limited,400164459,"26,359.95"
DFID,DFID,21/06/2011,Technical and Advisory Services,Research and Evidence,HAREWELLE INTERNATIONAL LIMITED,400164460,"15,100.88"
DFID,DFID,21/06/2011,Technical and Advisory Services,DFID Somalia,COFFEY INTERNATIONAL DEVELOPMENT LTD,400164461,"16,121.00"
DFID,DFID,21/06/2011,Technical and Advisory Services,DFID Pakistan,Supplier Name Witheld,400164462,"80,520.09"
DFID,DFID,21/06/2011,Aid Programme - Accountable Grant Payments,DFID Sudan, Assessment & Evaluation Commission,400164463,"868,830.00"
DFID,DFID,21/06/2011,Computer Software Licenses,Information Systems Department,NCC SERVICES LIMITED,400164472,954
DFID,DFID,21/06/2011,Technical and Advisory Services,DFID Nigeria,TRL LTD,400164479,"89,557.96"
DFID,DFID,21/06/2011,Aid Programme - Other Financial Aid to Government,DFID Zambia,THE CROWN AGENTS FOR OVERSEA GOVERNMENTS AND ADMINISTRATIONS LIMITED,400164482,"12,004.93"
DFID,DFID,23/06/2011,Training - Course Fees,Human Development Group,"Development Worldwide, civic association (DWW)",400164484,830.68
DFID,DFID,20/06/2011,Training Providers/Facilitation Services,Asia Directors Office,INDUSTRY AND PARLIAMENT TRUST,400164485,999
DFID,DFID,21/06/2011,Aid Programme - Accountable Grant Payments,Growth and Investment Group,EMERGENCY NUTRITION NETWORK,400164488,"10,497.00"
DFID,DFID,24/06/2011,Aid Programme - Partnership Programme Arrangements,Civil Society Department,ARTICLE 19,400164493,"135,671.75"
DFID,DFID,21/06/2011,Facilities Management payments,DFID India,CB RICHARD ELLIS SOUTH ASIA PVT LTD,400164500,"1,083.96"
DFID,DFID,21/06/2011,Facilities Management payments,DFID Nepal,John Sanday Associates Pvt. Ltd,400164501,589.06
DFID,DFID,21/06/2011,Facilities Management payments,DFID Nepal,John Sanday Associates Pvt. Ltd,400164501,43.71
DFID,DFID,21/06/2011,Facilities Management payments,DFID Nepal,John Sanday Associates Pvt. Ltd,400164501,"1,769.96"
DFID,DFID,21/06/2011,Facilities Management payments,DFID Nepal,John Sanday Associates Pvt. Ltd,400164501,124.07
DFID,DFID,21/06/2011,Facilities Management payments,DFID Nepal,John Sanday Associates Pvt. Ltd,400164501,10.31
DFID,DFID,21/06/2011,Facilities Management payments,DFID Nepal,John Sanday Associates Pvt. Ltd,400164501,"2,361.58"
DFID,DFID,21/06/2011,Facilities Management payments,DFID Nepal,John Sanday Associates Pvt. Ltd,400164501,683.52
DFID,DFID,21/06/2011,Taxi costs,DFID Vietnam,Hongkong Land Company,400164503,16.03
DFID,DFID,21/06/2011,Other rentals,DFID Vietnam,Hongkong Land Company,400164503,16.03
DFID,DFID,21/06/2011,Electricity,DFID Vietnam,Hongkong Land Company,400164503,532.88
DFID,DFID,21/06/2011,Electricity,DFID Vietnam,Hongkong Land Company,400164503,228.39
DFID,DFID,21/06/2011,Technical and Advisory Services,DFID Nepal,Rajendra Niraula,400164504,432.85
DFID,DFID,21/06/2011,Technical and Advisory Services,DFID Nepal,Rajendra Niraula,400164504,432.85
DFID,DFID,21/06/2011,Technical and Advisory Services,DFID Nepal,Rajendra Niraula,400164504,432.85
DFID,DFID,21/06/2011,Technical and Advisory Services,DFID Nepal,Rajendra Niraula,400164504,432.85
DFID,DFID,21/06/2011,Other non-passenger transportation,DFID India,G4S FACILITY SERVICES (INDIA) PVT. L,400164505,"3,152.45"
DFID,DFID,21/06/2011,Air fares,DFID Vietnam,Hanoi Toserco,400164509,98.54
DFID,DFID,21/06/2011,Air fares,DFID Vietnam,Hanoi Toserco,400164509,"2,140.07"
DFID,DFID,21/06/2011,Technical and Advisory Services,DFID India,BACE MARKETING PVT LTD,400164513,"7,958.48"
DFID,DFID,21/06/2011,Technical and Advisory Services,DFID India,KPMG.,400164516,"9,724.12"
DFID,DFID,21/06/2011,Technical and Advisory Services,DFID Vietnam,Phan Van Quyet,400164536,929.96
DFID,DFID,21/06/2011,Other Admin Costs,DFID Bangladesh,Dhaka Electric Supply Company Ltd,400164541,134.6
DFID,DFID,21/06/2011,Other Admin Costs,DFID Bangladesh,Dhaka Electric Supply Company Ltd,400164541,110.25
DFID,DFID,21/06/2011,House rentals,DFID Bangladesh,Dhaka Electric Supply Company Ltd,400164541,14.02
DFID,DFID,21/06/2011,House rentals,DFID Bangladesh,Dhaka Electric Supply Company Ltd,400164541,28.01
DFID,DFID,21/06/2011,Electricity,DFID Bangladesh,Dhaka Electric Supply Company Ltd,400164541,979.03
DFID,DFID,21/06/2011,Hotels - Accommodation only,DFID Pakistan,PEARL CONTINENTAL HOTEL LAHORE,400164552,526
DFID,DFID,21/06/2011,Technical and Advisory Services,DFID Bangladesh,Harewelle International Limited.,400164553,"178,821.11"
DFID,DFID,21/06/2011,Aid Programme - Challenge Fund payments,DFID Bangladesh,Harewelle International Limited.,400164553,"453,572.41"
DFID,DFID,21/06/2011,Hotels - Accommodation only,DFID Pakistan,PEARL CONTINENTAL HOTEL LAHORE,400164554,"1,106.30"
DFID,DFID,22/06/2011,Oil - Other Utilities,DFID Ethiopia,British Embassy,400164556,319.27
DFID,DFID,22/06/2011,Vehicle Petrol & Oil,DFID Ethiopia,British Embassy,400164556,260.74
DFID,DFID,22/06/2011,Vehicle Petrol & Oil,DFID Ethiopia,British Embassy,400164556,260.74
DFID,DFID,22/06/2011,Oil - Other Utilities,DFID Ethiopia,British Embassy,400164556,319.26
DFID,DFID,21/06/2011,Aid Programme - Voluntary contributions,United Nations and Commonwealth Dept (UNCD),UNDP CONTRIBUTIONS ACCOUNT,400164557,"3,875,000.00"
DFID,DFID,21/06/2011,Technical and Advisory Services,DFID Afghanistan,Supplier Name Witheld,400164575,"46,810.82"
DFID,DFID,21/06/2011,Technical and Advisory Services,DFID Afghanistan,Supplier Name Witheld,400164580,"31,207.21"
DFID,DFID,21/06/2011,Facilities Management payments,DFID Nigeria,Spaces and Structures Team Ltd,400164582,837.79
DFID,DFID,21/06/2011,Facilities Management payments,DFID Nigeria,Spaces and Structures Team Ltd,400164582,"1,023.97"
DFID,DFID,21/06/2011,Technical and Advisory Services,DFID Afghanistan,Supplier Name Witheld,400164583,"39,009.02"
DFID,DFID,21/06/2011,Training - Course Fees,DFID Mozambique,Mancosa,400164584,"1,151.66"
DFID,DFID,21/06/2011,Technical and Advisory Services,DFID Mozambique,Kerry Selvester (Moz),400164588,"1,236.86"
DFID,DFID,21/06/2011,Recruitment costs,DFID Pakistan,TOURISM PROMOTION SERVICES/ ISLAMABA,400164589,712.63
DFID,DFID,21/06/2011,Travel - Subsistence,Research and Evidence,Supplier Name Witheld,400164590,156
DFID,DFID,21/06/2011,Hotels - Accommodation only,Research and Evidence,Supplier Name Witheld,400164590,378
DFID,DFID,21/06/2011,Rail Transport,Research and Evidence,Supplier Name Witheld,400164590,29.8
DFID,DFID,21/06/2011,Other travel costs,Research and Evidence,Supplier Name Witheld,400164590,17.8
DFID,DFID,21/06/2011,Technical and Advisory Services,DFID Mozambique,Consultores HODI Lda,400164591,"8,277.55"
DFID,DFID,21/06/2011,Office Supplies,DFID Nigeria,Xerox,400164597,241.15
DFID,DFID,21/06/2011,Office Supplies,DFID Nigeria,Xerox,400164597,294.73
DFID,DFID,22/06/2011,Vehicle Purchase Costs,DFID Nigeria,THE CROWN AGENTS FOR OVERSEA GOVERNMENTS AND ADMINISTRATIONS LIMITED,400164603,"17,861.06"
DFID,DFID,21/06/2011,Subscriptions,DFID India,BRITISH HIGH COMMISSION,400164604,"1,085.05"
DFID,DFID,21/06/2011,Technical and Advisory Services,DFID Nigeria,Policy. and Legal Advocacy Centre,400164611,"30,929.16"
DFID,DFID,21/06/2011,Aid Programme - Core contributions,Africa Regional Department,International Monetary Fund (GBP),400164612,"2,000,000.00"
DFID,DFID,21/06/2011,Technical and Advisory Services,Climate and Environment Group,HAREWELLE INTERNATIONAL LIMITED,400164625,"3,263.00"
DFID,DFID,21/06/2011,Technical and Advisory Services,Overseas Territories Department,WSP INTERNATIONAL LIMITED,400164627,"7,800.00"
DFID,DFID,22/06/2011,Rail Transport,HR DFID Initiatives,Supplier Name Witheld,400164630,3.7
DFID,DFID,22/06/2011,Air fares,HR DFID Initiatives,Supplier Name Witheld,400164630,665
DFID,DFID,22/06/2011,Hotels - Accommodation only,HR DFID Initiatives,Supplier Name Witheld,400164630,45
DFID,DFID,22/06/2011,Taxi costs,HR DFID Initiatives,Supplier Name Witheld,400164630,5.2
DFID,DFID,22/06/2011,Other passenger transport,HR DFID Initiatives,Supplier Name Witheld,400164630,5
DFID,DFID,21/06/2011,Aid Programme - Core contributions,Africa Regional Department,International Monetary Fund (GBP),400164633,"2,000,000.00"
DFID,DFID,21/06/2011,Aid Programme - Accountable Grant Payments,Research and Evidence,BBC WORLD SERVICE TRUST,400164646,"113,796.00"
DFID,DFID,21/06/2011,Technical and Advisory Services,Procurement Department,MICHAEL PAGE INTERNATIONAL RECRUITMENT LIMITED,400164652,"1,170.15"
DFID,DFID,23/06/2011,Telephone Usage & services,DFID Uganda,MTN Uganda Ltd,400164653,635.51
DFID,DFID,23/06/2011,Telephone Usage & services,DFID Uganda,MTN Uganda Ltd,400164653,327.38
DFID,DFID,21/06/2011,Postage Costs,Abercrombie House,NEOPOST LIMITED,400164656,"4,000.00"
DFID,DFID,23/06/2011,Telephone Usage & services,DFID Uganda,MTN Uganda Ltd,400164659,184.1
DFID,DFID,23/06/2011,Telephone Usage & services,DFID Uganda,MTN Uganda Ltd,400164659,357.38
DFID,DFID,23/06/2011,Telephone Usage & services,DFID Uganda,Uganda Telecom,400164660,383.72
DFID,DFID,23/06/2011,Telephone Usage & services,DFID Uganda,Uganda Telecom,400164660,197.67
DFID,DFID,22/06/2011,Technical and Advisory Services,DFID Afghanistan,Supplier Name Witheld,400164662,"49,776.00"
DFID,DFID,22/06/2011,Technical and Advisory Services,DFID Afghanistan,Supplier Name Witheld,400164667,"49,776.00"
DFID,DFID,24/06/2011,Rail Transport,HR DFID Initiatives,Supplier Name Witheld,400164671,3.1
DFID,DFID,24/06/2011,Air fares,HR DFID Initiatives,Supplier Name Witheld,400164671,716
DFID,DFID,24/06/2011,Hotels - Accommodation only,HR DFID Initiatives,Supplier Name Witheld,400164671,130
DFID,DFID,21/06/2011,Technical and Advisory Services,Human Development Group,IMPERIAL COLLEGE LONDON,400164675,"46,857.97"
DFID,DFID,21/06/2011,Rail Transport,HR DFID Initiatives,Supplier Name Witheld,400164679,29.5
DFID,DFID,21/06/2011,Air fares,HR DFID Initiatives,Supplier Name Witheld,400164679,443.93
DFID,DFID,21/06/2011,Taxi costs,HR DFID Initiatives,Supplier Name Witheld,400164679,35
DFID,DFID,21/06/2011,Technical and Advisory Services,Civil Society Department,Triple Line Consulting Limited,400164690,"512,815.27"
DFID,DFID,21/06/2011,Technical and Advisory Services,DFID Zambia,OXFORD POLICY MANAGEMENT,400164694,"5,350.00"
DFID,DFID,22/06/2011,Aid Programme - Accountable Grant Payments,Research and Evidence,World Federation of Science Journalists (GBP),400164697,"20,300.00"
DFID,DFID,21/06/2011,Technical and Advisory Services,DFID Uganda,MAXWELL STAMP PLC,400164701,"191,953.70"
DFID,DFID,21/06/2011,Technical and Advisory Services,DFID Uganda,MAXWELL STAMP PLC,400164702,"191,953.70"
DFID,DFID,21/06/2011,Technical and Advisory Services,DFID Bangladesh,MAXWELL STAMP PLC,400164705,"434,719.50"
DFID,DFID,21/06/2011,Technical and Advisory Services,DFID Bangladesh,MAXWELL STAMP PLC,400164707,"181,599.59"
DFID,DFID,21/06/2011,Technical and Advisory Services,DFID Bangladesh,MAXWELL STAMP PLC,400164707,"200,000.00"
DFID,DFID,21/06/2011,Training Providers/Facilitation Services,Africa Regional Department,CRANFIELD UNIVERSITY,400164713,995
DFID,DFID,22/06/2011,Technical and Advisory Services,DFID Sudan,ADAM SMITH INTERNATIONAL  LTD,400164717,"73,352.09"
DFID,DFID,21/06/2011,Technical and Advisory Services,DFID Nigeria,HTSPE LTD,400164719,"27,720.69"
DFID,DFID,22/06/2011,Technical and Advisory Services,DFID Sudan,ADAM SMITH INTERNATIONAL  LTD,400164721,"178,775.06"
DFID,DFID,22/06/2011,Technical and Advisory Services,DFID Sudan,ADAM SMITH INTERNATIONAL  LTD,400164721,"-89,386.03"
DFID,DFID,22/06/2011,Air fares,HR DFID Initiatives,Supplier Name Witheld,400164724,713.71
DFID,DFID,22/06/2011,Hotels - Accommodation only,HR DFID Initiatives,Supplier Name Witheld,400164724,85
DFID,DFID,22/06/2011,Taxi costs,HR DFID Initiatives,Supplier Name Witheld,400164724,14
DFID,DFID,22/06/2011,Technical and Advisory Services,DFID Nigeria,THE SPRINGFIELD CENTRE,400164725,"2,100.00"
DFID,DFID,21/06/2011,Technical and Advisory Services,DFID Malawi,ADAM SMITH INTERNATIONAL  LTD,400164727,"11,486.00"
DFID,DFID,21/06/2011,Medicines & Drugs,DFID Nigeria,THE CROWN AGENTS FOR OVERSEA GOVERNMENTS AND ADMINISTRATIONS LIMITED,400164730,"20,451.99"
DFID,DFID,21/06/2011,Other travel costs,Information Systems Department,Southern Sun Ridgeway,400164740,682.87
DFID,DFID,23/06/2011,Technical and Advisory Services,DFID Sierra Leone and Liberia,BRITISH COUNCIL,400164741,"461,655.43"
DFID,DFID,21/06/2011,Hotels - Accommodation only,DFID Sierra Leone and Liberia,The Country Lodge Complex,400164748,501.98
DFID,DFID,23/06/2011,Travel - Subsistence,DFID Afghanistan,Supplier Name Witheld,400164753,487.05
DFID,DFID,23/06/2011,Hotels - Accommodation only,DFID Afghanistan,Supplier Name Witheld,400164753,193.59
DFID,DFID,22/06/2011,Other Admin Costs,DFID Bangladesh,Sheikh Nasim Imam,400164783,"2,906.69"
DFID,DFID,22/06/2011,Rail Transport,HR DFID Initiatives,recipient withheld,400164805,13.94
DFID,DFID,22/06/2011,Air fares,HR DFID Initiatives,recipient withheld,400164805,379.06
DFID,DFID,22/06/2011,Hotels - Accommodation only,HR DFID Initiatives,recipient withheld,400164805,125.9
DFID,DFID,22/06/2011,Other passenger transport,HR DFID Initiatives,recipient withheld,400164805,11
DFID,DFID,23/06/2011,Data Network - land lines,Information Systems Department,BT BACS PAYMENTS,400164810,"32,764.04"
DFID,DFID,24/06/2011,Technical and Advisory Services,Growth and Investment Group,iMEDIA ASSOCIATES LTD,400164812,"12,166.80"
DFID,DFID,22/06/2011,Aid Programme - Accountable Grant Payments,DFID Zambia,NDI,400164818,"1,546,885.00"
DFID,DFID,22/06/2011,House rentals,DFID Bangladesh,Supplier Name Witheld,400164819,"3,694.95"
DFID,DFID,22/06/2011,House rentals,DFID Bangladesh,Supplier Name Witheld,400164820,"2,463.30"
DFID,DFID,22/06/2011,House rentals,DFID Bangladesh,Supplier Name Witheld,400164824,"2,143.07"
DFID,DFID,22/06/2011,House rentals,DFID Bangladesh,Supplier Name Witheld,400164825,"2,216.97"
DFID,DFID,22/06/2011,House rentals,DFID Bangladesh,Supplier Name Witheld,400164826,"2,330.13"
DFID,DFID,22/06/2011,Technical and Advisory Services,"Health, Work and Wellbeing",MS MARGARET SHARP,400164828,510
DFID,DFID,22/06/2011,House rentals,DFID Bangladesh,Supplier Name Witheld,400164829,"3,818.11"
DFID,DFID,22/06/2011,Aid Programme - Accountable Grant Payments,Overseas Territories Department,Wildscreen,400164830,"20,082.42"
DFID,DFID,22/06/2011,House rentals,DFID Bangladesh,Supplier Name Witheld,400164831,"3,818.11"
DFID,DFID,22/06/2011,House rentals,DFID Bangladesh,Supplier Name Witheld,400164832,"5,172.92"
DFID,DFID,22/06/2011,Educational Supplies/Aids,DFID Bangladesh,THE CROWN AGENTS FOR OVERSEA GOVERNMENTS AND ADMINISTRATIONS LIMITED,400164833,"2,923.04"
DFID,DFID,22/06/2011,Medical/Health Services,DFID Zambia,THE CROWN AGENTS FOR OVERSEA GOVERNMENTS AND ADMINISTRATIONS LIMITED,400164834,88.15
DFID,DFID,22/06/2011,Medical/Health Services,DFID Zambia,THE CROWN AGENTS FOR OVERSEA GOVERNMENTS AND ADMINISTRATIONS LIMITED,400164834,"1,741.00"
DFID,DFID,24/06/2011,Data network- remote working,DFID Kenya,Callkey East Africa Ltd (Kenya),400164835,522.89
DFID,DFID,22/06/2011,House rentals,DFID Bangladesh,Supplier Name Witheld,400164836,"2,783.53"
DFID,DFID,22/06/2011,House rentals,DFID Bangladesh,Supplier Name Witheld,400164838,"1,847.47"
DFID,DFID,22/06/2011,House rentals,DFID Bangladesh,Supplier Name Witheld,400164839,"3,448.62"
DFID,DFID,22/06/2011,House rentals,DFID Bangladesh,Supplier Name Witheld,400164842,"1,847.47"
DFID,DFID,27/06/2011,Technical and Advisory Services,DFID Afghanistan,Supplier Name Witheld,400164847,"217,502.86"
DFID,DFID,22/06/2011,Furniture & Fittings,DFID Zimbabwe,Sterling Export Corporation,400164860,503.2
DFID,DFID,23/06/2011,Telephone Usage & services,DFID India,BHARTI AIRTEL LIMITED,400164871,697.54
DFID,DFID,22/06/2011,Medical/Health Services,DFID Zimbabwe,FLIMAS,400164876,"1,691.75"
DFID,DFID,22/06/2011,Medical/Health Services,DFID Zimbabwe,FLIMAS,400164876,"2,199.12"
DFID,DFID,22/06/2011,Training - Course Fees,DFID Nigeria,Chelsea Hotel Abuja,400164878,"2,202.95"
DFID,DFID,22/06/2011,Training - Course Fees,DFID Nigeria,Chelsea Hotel Abuja,400164878,"1,802.41"
DFID,DFID,22/06/2011,Technical and Advisory Services,DFID Malawi,WSP INTERNATIONAL LIMITED,400164887,"3,250.00"
DFID,DFID,24/06/2011,Recruitment costs,HR DFID Initiatives,Penna Barkers,400164890,"9,826.68"
DFID,DFID,22/06/2011,Technical and Advisory Services,DFID Nigeria,MOTT MACDONALD INTERNATIONAL,400164893,"11,429.73"
DFID,DFID,24/06/2011,Technical and Advisory Services,DFID India,CAMBRIDGE EDUCATION LTD,400164894,"154,189.08"
DFID,DFID,28/06/2011,Technical and Advisory Services,"Conflict, Humanitarian and Security Department",THE CROWN AGENTS FOR OVERSEA GOVERNMENTS AND ADMINISTRATIONS LIMITED,400164895,"119,268.12"
DFID,DFID,22/06/2011,Technical and Advisory Services,"Conflict, Humanitarian and Security Department",THE CROWN AGENTS FOR OVERSEA GOVERNMENTS AND ADMINISTRATIONS LIMITED,400164899,"7,364.44"
DFID,DFID,23/06/2011,Technical and Advisory Services,Overseas Territories Department,Expatplus c/o Vanbreda Int.,400164906,"3,293.68"
DFID,DFID,28/06/2011,Technical and Advisory Services,News Team,COI - GCN,400164907,"40,000.00"
DFID,DFID,22/06/2011,Aid Programme - Accountable Grant Payments,Climate and Environment Group,GVEP INTERNATIONAL LTD,400164909,"186,184.00"
DFID,DFID,22/06/2011,Operating Lease rental of buildings,DFID Southern Africa,CSIR,400164913,"2,676.85"
DFID,DFID,24/06/2011,Aid Programme - Joint programme contribution,DFID Nepal,The World Bank (EFO),400164920,"50,000.00"
DFID,DFID,22/06/2011,Technical and Advisory Services,Stabilisation Unit,THE CROWN AGENTS FOR OVERSEA GOVERNMENTS AND ADMINISTRATIONS LIMITED,400164923,"1,220.40"
DFID,DFID,29/06/2011,Aid Programme - Accountable Grant Payments,DFID Southern Africa,University of Cape Town,400164924,"499,521.44"
DFID,DFID,24/06/2011,Technical and Advisory Services,DFID India,CAMBRIDGE EDUCATION LTD,400164925,"118,694.85"
DFID,DFID,24/06/2011,Office Equipment - Purchases,Abercrombie House,MARTIN YALE INTERNATIONAL LTD,400164926,"4,947.46"
DFID,DFID,30/06/2011,Technical and Advisory Services,DFID Vietnam,William Burnett,400164929,"14,840.00"
DFID,DFID,29/06/2011,Technical and Advisory Services,Research and Evidence,INTER PRESS SERVICES AFRICA,400164931,"24,020.83"
DFID,DFID,22/06/2011,Technical and Advisory Services,DFID Burundi,Mott MacDonald Limited,400164932,"66,053.75"
DFID,DFID,22/06/2011,Aid Programme - Accountable Grant Payments,Outreach and Stakeholder Relationships,The Ragdoll Foundation,400164934,"49,267.72"
DFID,DFID,22/06/2011,Aid Programme - Accountable Grant Payments,DFID India,THE SAVE THE CHILDREN FUND,400164941,"171,732.92"
DFID,DFID,24/06/2011,Office Equipment - Purchases,DFID Pakistan,PRIMEPOWER INTERNATIONAL LTD,400164947,"8,487.27"
DFID,DFID,22/06/2011,Technical and Advisory Services,Stabilisation Unit,THE CROWN AGENTS FOR OVERSEA GOVERNMENTS AND ADMINISTRATIONS LIMITED,400164948,537.9
DFID,DFID,22/06/2011,Facilities Management payments,DFID Ghana,HitL Co. Ltd,400164951,289.37
DFID,DFID,22/06/2011,Facilities Management payments,DFID Ghana,HitL Co. Ltd,400164951,368.28
DFID,DFID,22/06/2011,Data Network - land lines,Information Systems Department,Virgin Media Business,400164952,"27,678.45"
DFID,DFID,22/06/2011,Data Network - land lines,Information Systems Department,Virgin Media Business,400164953,"44,457.49"
DFID,DFID,23/06/2011,Medical/Health Services,DFID Bangladesh,recipient withheld,400164958,18.35
DFID,DFID,22/06/2011,Technical and Advisory Services,DFID India,NATURAL RESOURCES INTERN,400164959,"91,708.91"
DFID,DFID,22/06/2011,Technical and Advisory Services,Stabilisation Unit,HOME OFFICE,400164961,"15,745.90"
DFID,DFID,23/06/2011,Vehicle Repairs & Maintenance,DFID Tanzania,SOKOINE DRIVE SERVICE STATION LTD.,400164965,168.79
DFID,DFID,23/06/2011,Vehicle Repairs & Maintenance,DFID Tanzania,SOKOINE DRIVE SERVICE STATION LTD.,400164965,393.85
DFID,DFID,23/06/2011,Electricity,DFID Vietnam,Tay Ho Electricity Company,400164973,651.52
DFID,DFID,23/06/2011,Furniture & Fittings,DFID Mozambique,St Ozone Lda,400165002,"7,549.91"
DFID,DFID,23/06/2011,Training - Course Fees,DFID Nepal,Jaya Travels & Tours Ltd,400165008,723.84
DFID,DFID,23/06/2011,Generators & spares,DFID Malawi,Barloworld Equipment,400165015,133.18
DFID,DFID,23/06/2011,Generators & spares,DFID Malawi,Barloworld Equipment,400165015,572.19
DFID,DFID,23/06/2011,Hotels - Accommodation only,Information Systems Department,Cresta Crossroads Hotel,400165017,782.86
DFID,DFID,23/06/2011,Hotels - Accommodation only,DFID Malawi,Ryalls Hotel,400165021,590.46
DFID,DFID,23/06/2011,Aid Programme - Core contributions,Africa Regional Department,AFRICAN DEVELOPMENT BANK GRP,400165042,"400,000.00"
DFID,DFID,23/06/2011,Aid Programme - Core contributions,Africa Regional Department,AFRICAN DEVELOPMENT BANK GRP,400165042,"220,000.00"
DFID,DFID,23/06/2011,Aid Programme - Core contributions,Africa Regional Department,AFRICAN DEVELOPMENT BANK GRP,400165042,"360,000.00"
DFID,DFID,23/06/2011,Aid Programme - Core contributions,Africa Regional Department,AFRICAN DEVELOPMENT BANK GRP,400165042,"50,000.00"
DFID,DFID,23/06/2011,Aid Programme - Core contributions,Africa Regional Department,AFRICAN DEVELOPMENT BANK GRP,400165042,"51,500.00"
DFID,DFID,27/06/2011,Telephone Usage & services,DFID Rwanda,MTN RWANDACELL,400165048,212.46
DFID,DFID,27/06/2011,Telephone Usage & services,DFID Rwanda,MTN RWANDACELL,400165048,495.73
DFID,DFID,24/06/2011,Aid Programme - Accountable Grant Payments,DFID Uganda,Uganda Local Governments Association,400165058,"22,159.55"
DFID,DFID,23/06/2011,Relocation costs,DFID Rwanda,WORLDWIDE MOVERS RWANDA,400165070,"1,098.44"
DFID,DFID,24/06/2011,Air fares,DFID Kenya,WFP Somalia,400165073,"1,261.60"
DFID,DFID,27/06/2011,Technical and Advisory Services,DFID Afghanistan,Supplier Name Witheld,400165077,11.92
DFID,DFID,27/06/2011,Technical and Advisory Services,DFID Afghanistan,Supplier Name Witheld,400165077,11.92
DFID,DFID,27/06/2011,Technical and Advisory Services,DFID Afghanistan,Supplier Name Witheld,400165077,11.92
DFID,DFID,27/06/2011,Office Supplies,DFID Afghanistan,Supplier Name Witheld,400165077,369.44
DFID,DFID,27/06/2011,Office Supplies,DFID Afghanistan,Supplier Name Witheld,400165077,214.52
DFID,DFID,27/06/2011,Oil - Other Utilities,DFID Afghanistan,Supplier Name Witheld,400165080,"3,313.04"
DFID,DFID,27/06/2011,Oil - Other Utilities,DFID Afghanistan,Supplier Name Witheld,400165080,"9,465.84"
DFID,DFID,27/06/2011,Oil - Other Utilities,DFID Afghanistan,Supplier Name Witheld,400165080,473.29
DFID,DFID,27/06/2011,Oil - Other Utilities,DFID Afghanistan,Supplier Name Witheld,400165080,473.29
DFID,DFID,24/06/2011,Aid Programme - Trust Funds contributions,Stabilisation Unit,IBRD HSBC T,400165081,"36,690.00"
DFID,DFID,24/06/2011,Aid Programme - Trust Funds contributions,Growth and Investment Group,IBRD HSBC T,400165081,"33,310.00"
DFID,DFID,23/06/2011,Aid Programme - Accountable Grant Payments,Climate and Environment Group,INTERNATIONAL INSTITUTE FOR ENVIRO,400165087,"49,738.00"
DFID,DFID,23/06/2011,Aid Programme - Other Financial Aid to Government,Overseas Territories Department,FCO SERVICES,400165089,"6,497.14"
DFID,DFID,23/06/2011,Training - Travel & Subsistence,DFID Uganda,THE SPRINGFIELD CENTRE,400165099,"3,100.00"
DFID,DFID,23/06/2011,Technical and Advisory Services,DFID Nepal,Alan Smith,400165101,"2,350.00"
DFID,DFID,23/06/2011,House rentals,DFID Ethiopia,Supplier Name Witheld,400165111,"22,145.25"
DFID,DFID,23/06/2011,Hotels - Accommodation only,DFID Ethiopia,J.H Simex PLC/Intercontinental Hotel,400165117,624.33
DFID,DFID,24/06/2011,Technical and Advisory Services,DFID Malawi,EPOS Health Consultants GmbH,400165120,"92,143.70"
DFID,DFID,24/06/2011,Technical and Advisory Services,DFID Malawi,EPOS Health Consultants GmbH,400165120,"-76,463.43"
DFID,DFID,23/06/2011,Vehicle Repairs & Maintenance,DFID Ethiopia,AFS INTERNATIONAL,400165121,270.4
DFID,DFID,23/06/2011,Vehicle Repairs & Maintenance,DFID Ethiopia,AFS INTERNATIONAL,400165121,270.4
DFID,DFID,29/06/2011,Aid Programme - Core contributions,DFID DRC,UNOPS (ACCESS SUPPORT TEAM PROJECT),400165125,"1,814,915.00"
DFID,DFID,24/06/2011,Air fares,HR DFID Initiatives,recipient withheld,400165127,"1,157.66"
DFID,DFID,24/06/2011,Hotels - Accommodation only,HR DFID Initiatives,recipient withheld,400165127,59.25
DFID,DFID,24/06/2011,Travel documentation costs,HR DFID Initiatives,recipient withheld,400165127,77.36
DFID,DFID,24/06/2011,Taxi costs,HR DFID Initiatives,recipient withheld,400165127,38.72
DFID,DFID,24/06/2011,Other passenger transport,HR DFID Initiatives,recipient withheld,400165127,5
DFID,DFID,25/06/2011,Other rentals,DFID Mozambique,Condominios JAT,400165129,434.57
DFID,DFID,25/06/2011,Other rentals,DFID Mozambique,Condominios JAT,400165129,"1,738.26"
DFID,DFID,25/06/2011,Other rentals,DFID Mozambique,JAT Constroi Lda,400165135,"23,234.09"
DFID,DFID,25/06/2011,Other rentals,DFID Mozambique,JAT Constroi Lda,400165135,"5,808.52"
DFID,DFID,25/06/2011,Other rentals,DFID Mozambique,JAT Constroi Lda,400165147,"1,129.87"
DFID,DFID,25/06/2011,Other rentals,DFID Mozambique,JAT Constroi Lda,400165147,"4,519.49"
DFID,DFID,24/06/2011,House rentals,DFID Mozambique,Nadia Olinda Vaz,400165152,"6,864.56"
DFID,DFID,23/06/2011,House rentals,DFID Mozambique,Ana Maria de Sousa Alves Pereira,400165154,"5,565.86"
DFID,DFID,23/06/2011,House rentals,DFID Mozambique,Alexandre da Conceicao Zandamela,400165156,"7,421.15"
DFID,DFID,23/06/2011,House rentals,DFID Mozambique,Afonso Rosa Mohamed Sicandar,400165158,"5,565.86"
DFID,DFID,23/06/2011,House rentals,DFID Mozambique,G.A.C. Nkolo,400165164,"6,493.51"
DFID,DFID,23/06/2011,House rentals,DFID Mozambique,Benjamin Alfredo,400165165,"1,700.68"
DFID,DFID,23/06/2011,Aid Programme - Poverty Reduction Budget Support,DFID Ethiopia,Adelina Isabel Bernardino P Mocumbi,400165169,"8,000,000.00"
DFID,DFID,23/06/2011,House rentals,DFID Mozambique,Adelina Isabel Bernardino P Mocumbi,400165171,"7,421.15"
DFID,DFID,24/06/2011,Mobile telephones & accessories,DFID Mozambique,Telecomunicacoes de Mocambique,400165173,"1,839.94"
DFID,DFID,29/06/2011,Aid Programme - Humanitarian Material Relief Assistance and Services,"Conflict, Humanitarian and Security Department",THE CROWN AGENTS FOR OVERSEA GOVERNMENTS AND ADMINISTRATIONS LIMITED,400165178,"20,697.03"
DFID,DFID,29/06/2011,Aid Programme - Humanitarian Material Relief Assistance and Services,"Conflict, Humanitarian and Security Department",THE CROWN AGENTS FOR OVERSEA GOVERNMENTS AND ADMINISTRATIONS LIMITED,400165178,37.18
DFID,DFID,23/06/2011,Technical and Advisory Services,DFID Mozambique,MB Consulting Lda,400165180,"9,323.13"
DFID,DFID,23/06/2011,Technical and Advisory Services,DFID Pakistan,STEVE JONES AND ASSOCIATES,400165181,"15,815.38"
DFID,DFID,23/06/2011,Training - Course Fees,Research and Evidence,THRESHOLDS,400165183,950
DFID,DFID,23/06/2011,Technical and Advisory Services,DFID Afghanistan,Supplier Name Witheld,400165193,"164,783.33"
DFID,DFID,23/06/2011,Aid Programme - Accountable Grant Payments,DFID Burundi, Overseas Development Institute,400165195,"3,799.74"
DFID,DFID,23/06/2011,Technical and Advisory Services,DFID Nigeria,COFFEY INTERNATIONAL DEVELOPMENT LTD,400165196,"139,334.90"
DFID,DFID,28/06/2011,Technical and Advisory Services,Value for Money,OXFORD POLICY MANAGEMENT,400165197,"3,060.00"
DFID,DFID,23/06/2011,Aid Programme - Accountable Grant Payments,DFID Burundi, Overseas Development Institute,400165202,"3,132.80"
DFID,DFID,23/06/2011,Technical and Advisory Services,Civil Society Department,TRIPLE LINE CONSULTING LTD,400165204,"58,693.24"
DFID,DFID,23/06/2011,Technical and Advisory Services,Civil Society Department,Triple Line Consulting Limited,400165205,"3,304.50"
DFID,DFID,23/06/2011,Professional member subscriptions,HR Business Partners,PEOPLE IN AID LTD,400165208,900
DFID,DFID,23/06/2011,Technical and Advisory Services,DFID Pakistan,British Council,400165215,"42,427.62"
DFID,DFID,30/06/2011,Telephone Usage & services,DFID Tanzania,VODACOM TANZANIA,400165220,745.81
DFID,DFID,30/06/2011,Telephone Usage & services,DFID Tanzania,VODACOM TANZANIA,400165220,319.63
DFID,DFID,30/06/2011,Technical and Advisory Services,DFID Tanzania,VODACOM TANZANIA,400165220,287.68
DFID,DFID,24/06/2011,House rentals,DFID Tanzania,British High Commission(USD),400165222,"1,221.40"
DFID,DFID,24/06/2011,House rentals,DFID Tanzania,British High Commission(USD),400165223,"1,233.60"
DFID,DFID,24/06/2011,FCO shared service charges,DFID Tanzania,British High Commission(Tsh),400165225,"2,075.26"
DFID,DFID,24/06/2011,FCO shared service charges,DFID Tanzania,British High Commission(Tsh),400165225,"4,842.28"
DFID,DFID,24/06/2011,Office Supplies,DFID Tanzania,Siyumbo General Enterprises(Tsh),400165252,875.2
DFID,DFID,24/06/2011,Data network- remote working,Information Systems Department,Ghana Telecommunications Company Ltd,400165267,"2,992.27"
DFID,DFID,24/06/2011,Aid Programme - Other Financial Aid to Government,DFID Ethiopia,IBRD HSBC T,400165268,"2,500,000.00"
DFID,DFID,29/06/2011,Vehicle Repairs & Maintenance,DFID Malawi,TOYOTA MALAWI,400165271,320.96
DFID,DFID,29/06/2011,Vehicle Repairs & Maintenance,DFID Malawi,TOYOTA MALAWI,400165271,785.8
DFID,DFID,24/06/2011,Data network- remote working,DFID Malawi,Broadband Digital Solutions (BSD),400165277,571.42
DFID,DFID,24/06/2011,Cleaning Costs,DFID Nigeria,Sparklean Services Nig Ltd,400165283,"1,849.40"
DFID,DFID,24/06/2011,Cleaning Costs,DFID Nigeria,Sparklean Services Nig Ltd,400165283,706.04
DFID,DFID,24/06/2011,Data Network -Satellite,Information Systems Department,VIZADA NETWORKS,400165285,"2,132.82"
DFID,DFID,24/06/2011,Training - Course Fees,DFID Ethiopia,The Express Travel Group,400165291,248.09
DFID,DFID,24/06/2011,Training - Course Fees,DFID Ethiopia,The Express Travel Group,400165291,870.04
DFID,DFID,24/06/2011,Training - Course Fees,DFID Ethiopia,The Express Travel Group,400165291,408.51
DFID,DFID,24/06/2011,Air fares,DFID Ethiopia,The Express Travel Group,400165291,"6,191.69"
DFID,DFID,24/06/2011,Aid Programme - Voluntary contributions,DFID Caribbean and Nicaragua,INTER AMERICAN DEVELOPMENT BANK,400165292,"2,000,000.00"
DFID,DFID,24/06/2011,Technical and Advisory Services,DFID Zimbabwe,GRM INTERNATIONAL LTD,400165306,"2,093,497.21"
DFID,DFID,24/06/2011,Technical and Advisory Services,DFID Nepal, HUMANITARIAN ACTIVITIES LTD,400165307,"17,603.31"
DFID,DFID,24/06/2011,Air fares,HR DFID Initiatives,recipient withheld,400165308,"1,009.46"
DFID,DFID,24/06/2011,Hotels - Accommodation only,HR DFID Initiatives,recipient withheld,400165308,59
DFID,DFID,24/06/2011,Travel - Subsistence,HR DFID Initiatives,recipient withheld,400165308,7.99
DFID,DFID,24/06/2011,Taxi costs,HR DFID Initiatives,recipient withheld,400165308,20
DFID,DFID,27/06/2011,Air fares,DFID India,KUONI BUSINESS TRAVEL INDIA PVT LTD,400165309,"1,664.31"
DFID,DFID,27/06/2011,Air fares,DFID India,KUONI BUSINESS TRAVEL INDIA PVT LTD,400165310,952.4
DFID,DFID,27/06/2011,Taxi costs,HR DFID Initiatives,recipient withheld,400165311,53.3
DFID,DFID,27/06/2011,Other passenger transport,HR DFID Initiatives,recipient withheld,400165311,4.5
DFID,DFID,27/06/2011,Air fares,HR DFID Initiatives,recipient withheld,400165311,"1,267.03"
DFID,DFID,27/06/2011,Hotels - Accommodation only,HR DFID Initiatives,recipient withheld,400165311,130
DFID,DFID,27/06/2011,Travel - Subsistence,HR DFID Initiatives,recipient withheld,400165311,52
DFID,DFID,27/06/2011,Training - Course Fees,DFID India,KUONI BUSINESS TRAVEL INDIA PVT LTD,400165312,"1,958.58"
DFID,DFID,24/06/2011,Technical and Advisory Services,DFID Nepal,Emily Wilde,400165321,"12,000.00"
DFID,DFID,27/06/2011,Training - Course Fees,Europe Department,Jean-Robert LeBrun,400165329,535.86
DFID,DFID,28/06/2011,Technical and Advisory Services,DFID Mozambique,KPMG Auditores e Consultores SA,400165332,"47,906.06"
DFID,DFID,24/06/2011,Technical and Advisory Services,DFID Caribbean and Nicaragua,ASSOCIATES FOR INTERNATIONAL DEVELOPMENT (AID INC),400165336,"55,267.08"
DFID,DFID,27/06/2011,Aid Programme - Accountable Grant Payments,Africa Regional Department,OVERSEAS DEVELOPMENT INSTITUTE,400165338,"11,739.31"
DFID,DFID,27/06/2011,Other travel costs,Information Systems Department,KUONI BUSINESS TRAVEL INDIA PVT LTD,400165339,529.11
DFID,DFID,28/06/2011,Aid Programme - Accountable Grant Payments,DFID Kenya,Olympus Mons Foundation,400165340,"59,900.00"
DFID,DFID,27/06/2011,Technical and Advisory Services,DFID China,Joseph Tak Fai Lau ,400165341,"8,675.00"
DFID,DFID,24/06/2011,Aid Programme - Accountable Grant Payments,DFID Kenya,SAVE THE CHILDREN,400165342,"304,375.00"
DFID,DFID,24/06/2011,Technical and Advisory Services,DFID Kenya,Susan Amlango Aletia,400165350,"2,314.18"
DFID,DFID,24/06/2011,Technical and Advisory Services,DFID Kenya,Carree Njeri Ndoka,400165351,"2,035.42"
DFID,DFID,24/06/2011,Technical and Advisory Services,DFID Kenya,Kairichi Consultancy Limited,400165352,"3,086.98"
DFID,DFID,24/06/2011,Technical and Advisory Services,DFID Somalia,THE LAW DEVELOPMENT PARTNERSHIP LTD,400165355,"3,335.88"
DFID,DFID,24/06/2011,Technical and Advisory Services,DFID Somalia,THE LAW DEVELOPMENT PARTNERSHIP LTD,400165355,"11,475.00"
DFID,DFID,24/06/2011,Technical and Advisory Services,DFID Kenya,Andrew Nyabera Nyagwencha,400165356,"1,550.20"
DFID,DFID,24/06/2011,Technical and Advisory Services,DFID Somalia,Supplier Name Witheld,400165357,"38,143.64"
DFID,DFID,24/06/2011,Technical and Advisory Services,DFID Ethiopia,P S GILKES,400165358,"22,800.00"
DFID,DFID,27/06/2011,Technical and Advisory Services,DFID Kenya,Leonard Matheka (Kenya USD),400165359,"4,554.84"
DFID,DFID,27/06/2011,Technical and Advisory Services,DFID Nigeria,CHEMONICS,400165361,"198,371.07"
DFID,DFID,24/06/2011,Training - Course Fees,DFID Tanzania, International Development UEA,400165362,"3,200.00"
DFID,DFID,29/06/2011,Technical and Advisory Services,DFID Kenya,HAREWELLE INTERNATIONAL LIMITED,400165363,"28,660.49"
DFID,DFID,24/06/2011,Technical and Advisory Services,Overseas Territories Department,OPTIONS CONSULTANCY SERVICES LIMITED,400165364,"24,038.30"
DFID,DFID,24/06/2011,Aid Programme - Accountable Grant Payments,DFID Burundi, Overseas Development Institute,400165365,"3,265.28"
DFID,DFID,26/06/2011,Air fares,DFID Bangladesh,Saimon Overseas Ltd,400165368,487.7
DFID,DFID,26/06/2011,Air fares,DFID Bangladesh,Saimon Overseas Ltd,400165368,126.55
DFID,DFID,26/06/2011,Air fares,DFID Bangladesh,MAF-Sweden Air Support,400165371,"1,394.87"
DFID,DFID,27/06/2011,House rentals,DFID Bangladesh,Supplier Name Witheld,400165453,"1,396.73"
DFID,DFID,27/06/2011,Aid Programme - Accountable Grant Payments,DFID Malawi,WATERAID,400165454,"178,082.00"
DFID,DFID,27/06/2011,House rentals,DFID Bangladesh,Supplier Name Witheld,400165460,"2,285.56"
DFID,DFID,27/06/2011,Air fares,HR DFID Initiatives,Supplier Name Witheld,400165462,827.3
DFID,DFID,27/06/2011,Hotels - Accommodation only,HR DFID Initiatives,Supplier Name Witheld,400165462,65
DFID,DFID,27/06/2011,Travel - Subsistence,HR DFID Initiatives,Supplier Name Witheld,400165462,12
DFID,DFID,27/06/2011,House rentals,DFID Bangladesh,Supplier Name Witheld,400165464,"1,777.66"
DFID,DFID,27/06/2011,Technical and Advisory Services,DFID Afghanistan,ADAM SMITH INTERNATIONAL  LTD,400165473,"68,285.70"
DFID,DFID,27/06/2011,Facilities Management payments,DFID Kenya,Sparrow & Co Ltd,400165477,"1,018.82"
DFID,DFID,27/06/2011,Aid Programme - Voluntary contributions,DFID Caribbean and Nicaragua,National Integrity Action Forum -UWI,400165484,"60,000.00"
DFID,DFID,27/06/2011,Technical and Advisory Services,DFID Uganda,PRICEWATERHOUSECOOPERS,400165489,"22,552.50"
DFID,DFID,27/06/2011,Technical and Advisory Services,Africa Regional Department,THE CROWN AGENTS FOR OVERSEA GOVERNMENTS AND ADMINISTRATIONS LIMITED,400165490,"9,400.00"
DFID,DFID,27/06/2011,Technical and Advisory Services,DFID Bangladesh,Naushad Faiz (Bangladesh),400165497,"3,606.10"
DFID,DFID,27/06/2011,Aid Programme - Challenge Fund payments,Civil Society Department,Triple Line Consulting Limited,400165499,"317,497.61"
DFID,DFID,27/06/2011,Technical and Advisory Services,DFID Bangladesh,Dr. Salahuddin M Aminuzzaman,400165500,899.49
DFID,DFID,27/06/2011,Technical and Advisory Services,DFID Nepal,OPTIONS CONSULTANCY SERVICES LIMITED,400165501,"170,880.00"
DFID,DFID,28/06/2011,Hotels - Accommodation only,DFID Pakistan,Ramada Multan,400165503,"1,034.34"
DFID,DFID,28/06/2011,Other Admin Costs,DFID Bangladesh,Mamun Al Rashid,400165505,"1,904.63"
DFID,DFID,28/06/2011,Aid Programme - Core contributions,Private Sector Department,SG HAMBROS BANK & TRUST LTD (USD),400165511,"90,909.00"
